Body Name ,Purpose of Expenditure,Directorate,Dr/Cr,Gross Amount,Beneficiary ,Transaction Date
Nottinghamshire County Council,Minor Works,"Children, Families & Cultural Services",Debit,2.40,b  q 1241,17/03/2017
Nottinghamshire County Council,Minor Works,"Children, Families & Cultural Services",Debit,19.20,b  q 1241,17/03/2017
Nottinghamshire County Council,Minor Works,"Children, Families & Cultural Services",Debit,2.40,b  q 1241,17/03/2017
Nottinghamshire County Council,Minor Works,"Children, Families & Cultural Services",Debit,19.20,b  q 1241,17/03/2017
Nottinghamshire County Council,Minor Works,"Children, Families & Cultural Services",Debit,95.19,paypal ,15/03/2017
Nottinghamshire County Council,Minor Works,"Children, Families & Cultural Services",Debit,79.98,nhbs ltd,15/03/2017
Nottinghamshire County Council,Minor Works,"Children, Families & Cultural Services",Debit,93.50,www.ink-a-board.com,13/03/2017
Nottinghamshire County Council,Provisions,"Children, Families & Cultural Services",Debit,50.54,tesco stores 3378,08/03/2017
Nottinghamshire County Council,Provisions,"Children, Families & Cultural Services",Debit,79.78,tesco stores 3378,05/03/2017
Nottinghamshire County Council,Clients - H & S Equipt,"Children, Families & Cultural Services",Debit,80.00,wilko retail limit,30/03/2017
Nottinghamshire County Council,Clients - H & S Equipt,"Children, Families & Cultural Services",Debit,30.96,poundstretcher 569,30/03/2017
Nottinghamshire County Council,Clients - H & S Equipt,"Children, Families & Cultural Services",Debit,38.98,bm retail,30/03/2017
Nottinghamshire County Council,Clients - H & S Equipt,"Children, Families & Cultural Services",Debit,111.00,allpay moto (callpay/ivr,22/03/2017
Nottinghamshire County Council,Clients - H & S Equipt,"Children, Families & Cultural Services",Debit,37.31,p nwkshwd dc,23/03/2017
Nottinghamshire County Council,Clients - H & S Equipt,"Children, Families & Cultural Services",Debit,47.99,www.coopelectrical,22/03/2017
Nottinghamshire County Council,Clients - H & S Equipt,"Children, Families & Cultural Services",Credit ,-49.99,tesco direct,22/03/2017
Nottinghamshire County Council,Clients - H & S Equipt,"Children, Families & Cultural Services",Debit,49.99,tesco - hughes,22/03/2017
Nottinghamshire County Council,Clients - H & S Equipt,"Children, Families & Cultural Services",Debit,277.00,jrw flooring,21/03/2017
Nottinghamshire County Council,Clients - H & S Equipt,"Children, Families & Cultural Services",Debit,145.50,tvlicensing.co.uk,16/03/2017
Nottinghamshire County Council,Clients - H & S Equipt,"Children, Families & Cultural Services",Debit,185.00,the furniture project,14/03/2017
Nottinghamshire County Council,Clients - H & S Equipt,"Children, Families & Cultural Services",Debit,48.00,tesco stores 2995,14/03/2017
Nottinghamshire County Council,Clients - H & S Equipt,"Children, Families & Cultural Services",Debit,714.96,currys online,09/03/2017
Nottinghamshire County Council,Clients - H & S Equipt,"Children, Families & Cultural Services",Debit,139.00,ex catalogue furniture,09/03/2017
Nottinghamshire County Council,Minor Works,"Children, Families & Cultural Services",Debit,9.44,b  q 1241,17/03/2017
Nottinghamshire County Council,Minor Works,"Children, Families & Cultural Services",Debit,19.20,b  q 1241,17/03/2017
Nottinghamshire County Council,Minor Works,"Children, Families & Cultural Services",Debit,2.40,b  q 1241,17/03/2017
Nottinghamshire County Council,Minor Works,"Children, Families & Cultural Services",Debit,4.80,b  q 1241,17/03/2017
Nottinghamshire County Council,Minor Works,"Children, Families & Cultural Services",Debit,9.44,b  q 1241,17/03/2017
Nottinghamshire County Council,Minor Works,"Children, Families & Cultural Services",Debit,4.99,b  q 1241,17/03/2017
Nottinghamshire County Council,Clothing/Shoes/Uniforms,"Children, Families & Cultural Services",Debit,24.95,asda george com leeds,03/03/2017
Nottinghamshire County Council,Personal Needs,"Children, Families & Cultural Services",Debit,1.35,amazon uk retail amazon.,03/03/2017
Nottinghamshire County Council,Provisions,"Children, Families & Cultural Services",Debit,330.02,owen taylor  sons,06/03/2017
Nottinghamshire County Council,Personal Needs,"Children, Families & Cultural Services",Debit,59.99,amazon uk retail amazon.,07/03/2017
Nottinghamshire County Council,Office / General Equipment,"Children, Families & Cultural Services",Debit,185.07,handi centre bingham,08/03/2017
Nottinghamshire County Council,Clothing/Shoes/Uniforms,"Children, Families & Cultural Services",Debit,17.50,marksspencer plc,08/03/2017
Nottinghamshire County Council,Aids & Appliances,"Adult Social Care, Health & Public Protection ",Debit,7.15,amazon uk marketplace,30/03/2017
Nottinghamshire County Council,Books - General,"Adult Social Care, Health & Public Protection ",Debit,40.02,amazon uk retail amazon.,15/03/2017
Nottinghamshire County Council,Books - General,"Adult Social Care, Health & Public Protection ",Debit,60.30,amazon uk marketplace,14/03/2017
Nottinghamshire County Council,Personal Needs,"Children, Families & Cultural Services",Debit,20.00,i jump trampoline park,30/03/2017
Nottinghamshire County Council,Provisions,"Children, Families & Cultural Services",Debit,3.00,wm morrisons plc,27/03/2017
Nottinghamshire County Council,Personal Needs,"Children, Families & Cultural Services",Debit,12.59,boots 6552,27/03/2017
Nottinghamshire County Council,Provisions,"Children, Families & Cultural Services",Debit,5.25,bargain booze,27/03/2017
Nottinghamshire County Council,Provisions,"Children, Families & Cultural Services",Debit,7.28,mcdonalds,27/03/2017
Nottinghamshire County Council,Personal Needs,"Children, Families & Cultural Services",Debit,1.00,boots 6552,27/03/2017
Nottinghamshire County Council,Provisions,"Children, Families & Cultural Services",Debit,17.17,bargain booze,24/03/2017
Nottinghamshire County Council,Office / General Equipment,"Children, Families & Cultural Services",Debit,14.98,amazon uk marketplace,12/03/2017
Nottinghamshire County Council,Clothing/Shoes/Uniforms,"Children, Families & Cultural Services",Debit,21.00,www.asos.com,11/03/2017
Nottinghamshire County Council,Clothing/Shoes/Uniforms,"Children, Families & Cultural Services",Debit,20.95,asda george com leeds,08/03/2017
Nottinghamshire County Council,Aids & Appliances,"Children, Families & Cultural Services",Debit,19.33,argos retail group,09/03/2017
Nottinghamshire County Council,Personal Needs,"Children, Families & Cultural Services",Debit,59.99,amazon uk retail amazon.,10/03/2017
Nottinghamshire County Council,Office / General Equipment,"Children, Families & Cultural Services",Debit,43.29,amazon uk marketplace,10/03/2017
Nottinghamshire County Council,Provisions,"Children, Families & Cultural Services",Debit,131.06,owen taylor  sons,13/03/2017
Nottinghamshire County Council,Cleaning & Domestic Equipment,"Children, Families & Cultural Services",Debit,44.83,www.nisbets.com,13/03/2017
Nottinghamshire County Council,Clothing/Shoes/Uniforms,"Children, Families & Cultural Services",Debit,135.84,alexandra website,16/03/2017
Nottinghamshire County Council,Personal Needs,"Children, Families & Cultural Services",Debit,30.18,amazon uk marketplace,19/03/2017
Nottinghamshire County Council,Clothing/Shoes/Uniforms,"Children, Families & Cultural Services",Debit,16.32,alexandra website,21/03/2017
Nottinghamshire County Council,Cleaning & Domestic Equipment,"Children, Families & Cultural Services",Debit,7.99,amazon uk marketplace,22/03/2017
Nottinghamshire County Council,Personal Needs,"Children, Families & Cultural Services",Debit,43.92,esup ltd,24/03/2017
Nottinghamshire County Council,Clothing/Shoes/Uniforms,"Children, Families & Cultural Services",Credit ,-16.32,alexandra website,16/03/2017
Nottinghamshire County Council,Stationery,"Children, Families & Cultural Services",Debit,3.33,amazon uk marketplace,27/03/2017
Nottinghamshire County Council,Personal Needs,"Children, Families & Cultural Services",Debit,24.57,amazon uk marketplace,27/03/2017
Nottinghamshire County Council,Office / General Equipment,"Children, Families & Cultural Services",Debit,41.00,tesco direct,27/03/2017
Nottinghamshire County Council,Cleaning & Domestic Equipment,"Children, Families & Cultural Services",Debit,13.32,amazon uk marketplace,27/03/2017
Nottinghamshire County Council,Stationery,"Children, Families & Cultural Services",Debit,28.70,amazon uk marketplace,27/03/2017
Nottinghamshire County Council,Personal Needs,"Children, Families & Cultural Services",Debit,12.00,amazon uk marketplace,29/03/2017
Nottinghamshire County Council,Personal Needs,"Children, Families & Cultural Services",Debit,28.49,amazon uk retail amazon.,29/03/2017
Nottinghamshire County Council,Personal Needs,"Children, Families & Cultural Services",Debit,9.51,amazon uk retail amazon.,29/03/2017
Nottinghamshire County Council,Provisions,"Children, Families & Cultural Services",Debit,11.80,sainsburys s/mkts,05/03/2017
Nottinghamshire County Council,Provisions,"Children, Families & Cultural Services",Debit,48.81,tesco stores 5437,08/03/2017
Nottinghamshire County Council,Provisions,"Children, Families & Cultural Services",Debit,6.15,w m morrison plc,14/03/2017
Nottinghamshire County Council,Provisions,"Children, Families & Cultural Services",Debit,41.38,tesco stores 5437,15/03/2017
Nottinghamshire County Council,Provisions,"Children, Families & Cultural Services",Debit,74.81,tesco stores 5437,22/03/2017
Nottinghamshire County Council,Provisions,"Children, Families & Cultural Services",Debit,47.12,tesco stores 5437,27/03/2017
Nottinghamshire County Council,Provisions,"Children, Families & Cultural Services",Debit,0.85,sainsburys s/mkts,30/03/2017
Nottinghamshire County Council,Personal Needs,"Children, Families & Cultural Services",Debit,1.29,mcdonalds,30/03/2017
Nottinghamshire County Council,Provisions,"Children, Families & Cultural Services",Debit,1.00,sainsburys s/mkts,30/03/2017
Nottinghamshire County Council,Activities & Support,"Children, Families & Cultural Services",Debit,123.94,www.argos.co.uk,11/03/2017
Nottinghamshire County Council,Clients - H & S Equipt,"Children, Families & Cultural Services",Debit,50.00,asda  stores 4201,23/02/2017
Nottinghamshire County Council,Other Fee's & Services,"Adult Social Care, Health & Public Protection ",Debit,7.99,amazon uk prime amzn.co.,26/03/2017
Nottinghamshire County Council,Provisions,"Adult Social Care, Health & Public Protection ",Debit,123.49,w m morrisons.com,30/03/2017
Nottinghamshire County Council,Cleaning Materials,"Adult Social Care, Health & Public Protection ",Debit,15.00,w m morrisons.com,27/03/2017
Nottinghamshire County Council,Provisions,"Adult Social Care, Health & Public Protection ",Debit,141.49,w m morrisons.com,27/03/2017
Nottinghamshire County Council,Provisions,"Adult Social Care, Health & Public Protection ",Debit,149.03,w m morrisons.com,23/03/2017
Nottinghamshire County Council,Cleaning Materials,"Adult Social Care, Health & Public Protection ",Debit,10.48,w m morrisons.com,20/03/2017
Nottinghamshire County Council,Provisions,"Adult Social Care, Health & Public Protection ",Debit,137.04,w m morrisons.com,20/03/2017
Nottinghamshire County Council,Cleaning Materials,"Adult Social Care, Health & Public Protection ",Debit,10.57,w m morrisons.com,16/03/2017
Nottinghamshire County Council,Provisions,"Adult Social Care, Health & Public Protection ",Debit,137.57,w m morrisons.com,16/03/2017
Nottinghamshire County Council,Cleaning Materials,"Adult Social Care, Health & Public Protection ",Debit,11.66,w m morrisons.com,13/03/2017
Nottinghamshire County Council,Provisions,"Adult Social Care, Health & Public Protection ",Debit,163.64,w m morrisons.com,13/03/2017
Nottinghamshire County Council,Provisions,"Adult Social Care, Health & Public Protection ",Debit,7.00,w m morrisons.com,09/03/2017
Nottinghamshire County Council,Provisions,"Adult Social Care, Health & Public Protection ",Debit,130.99,w m morrisons.com,09/03/2017
Nottinghamshire County Council,Cleaning Materials,"Adult Social Care, Health & Public Protection ",Debit,16.69,w m morrisons.com,06/03/2017
Nottinghamshire County Council,Provisions,"Adult Social Care, Health & Public Protection ",Debit,135.15,w m morrisons.com,06/03/2017
Nottinghamshire County Council,Cleaning Materials,"Adult Social Care, Health & Public Protection ",Debit,10.54,w m morrisons.com,02/02/2017
Nottinghamshire County Council,Provisions,"Adult Social Care, Health & Public Protection ",Debit,92.15,w m morrisons.com,02/02/2017
Nottinghamshire County Council,Cleaning Materials,"Adult Social Care, Health & Public Protection ",Debit,15.78,w m morrisons.com,30/01/2017
Nottinghamshire County Council,Catering Consumables,"Adult Social Care, Health & Public Protection ",Debit,10.00,w m morrisons.com,30/01/2017
Nottinghamshire County Council,Provisions,"Adult Social Care, Health & Public Protection ",Debit,174.23,w m morrisons.com,30/01/2017
Nottinghamshire County Council,Provisions,"Adult Social Care, Health & Public Protection ",Debit,135.64,w m morrisons.com,26/01/2017
Nottinghamshire County Council,Provisions,"Adult Social Care, Health & Public Protection ",Credit ,-0.82,w m morrisons.com,25/01/2017
Nottinghamshire County Council,Provisions,"Adult Social Care, Health & Public Protection ",Debit,131.45,w m morrisons.com,23/01/2017
Nottinghamshire County Council,Provisions,"Adult Social Care, Health & Public Protection ",Debit,145.31,w m morrisons.com,19/01/2017
Nottinghamshire County Council,Cleaning Materials,"Adult Social Care, Health & Public Protection ",Debit,15.89,w m morrisons.com,16/01/2017
Nottinghamshire County Council,Provisions,"Adult Social Care, Health & Public Protection ",Debit,146.87,w m morrisons.com,16/01/2017
Nottinghamshire County Council,Provisions,"Adult Social Care, Health & Public Protection ",Debit,125.51,w m morrisons.com,12/01/2017
Nottinghamshire County Council,Cleaning Materials,"Adult Social Care, Health & Public Protection ",Debit,24.35,w m morrisons.com,09/01/2017
Nottinghamshire County Council,Provisions,"Adult Social Care, Health & Public Protection ",Debit,96.79,w m morrisons.com,09/01/2017
Nottinghamshire County Council,Provisions,"Adult Social Care, Health & Public Protection ",Debit,7.00,w m morrisons.com,09/01/2017
Nottinghamshire County Council,Provisions,"Adult Social Care, Health & Public Protection ",Debit,86.14,w m morrisons.com,05/01/2017
Nottinghamshire County Council,Provisions,"Adult Social Care, Health & Public Protection ",Debit,103.17,w m morrisons.com,04/01/2017
Nottinghamshire County Council,Clients - H & S Equipt,"Children, Families & Cultural Services",Debit,50.00,wm morrison 048,23/02/2017
Nottinghamshire County Council,Aftercare Lodging/Hostel,"Children, Families & Cultural Services",Debit,48.64,bassetlaw d.c.,28/02/2017
Nottinghamshire County Council,Provisions,"Children, Families & Cultural Services",Debit,31.73,amazon uk retail amazon.,08/02/2017
Nottinghamshire County Council,Provisions,"Children, Families & Cultural Services",Debit,52.80,tesco stores 3378,24/02/2017
Nottinghamshire County Council,Aftercare - Equipment,"Children, Families & Cultural Services",Debit,145.50,tvlicensing.co.uk,16/02/2017
Nottinghamshire County Council,Aftercare Lodging/Hostel,"Children, Families & Cultural Services",Debit,300.00,midland hotel,14/02/2017
Nottinghamshire County Council,Aftercare Lodging/Hostel,"Children, Families & Cultural Services",Debit,412.00,allpay moto (callpay/ivr,09/02/2017
Nottinghamshire County Council,Aftercare - Equipment,"Children, Families & Cultural Services",Debit,514.00,scs 100148,09/02/2017
Nottinghamshire County Council,Aftercare - Equipment,"Children, Families & Cultural Services",Debit,550.99,ao retail limited,09/02/2017
Nottinghamshire County Council,Aftercare - Equipment,"Children, Families & Cultural Services",Debit,169.99,jysk ltd,09/02/2017
Nottinghamshire County Council,Provisions,"Children, Families & Cultural Services",Debit,8.00,tesco stores 2995,28/02/2017
Nottinghamshire County Council,Personal Needs,"Children, Families & Cultural Services",Debit,20.00,i jump trampoline park,28/02/2017
Nottinghamshire County Council,Provisions,"Children, Families & Cultural Services",Debit,77.36,aldi,27/02/2017
Nottinghamshire County Council,Provisions,"Children, Families & Cultural Services",Debit,22.75,sainsburys s/mkts,27/02/2017
Nottinghamshire County Council,Provisions,"Children, Families & Cultural Services",Debit,3.15,asda store ston in as,27/02/2017
Nottinghamshire County Council,Provisions,"Children, Families & Cultural Services",Debit,10.00,i jump trampoline park,25/02/2017
Nottinghamshire County Council,Provisions,"Children, Families & Cultural Services",Debit,4.17,mcdonalds,25/02/2017
Nottinghamshire County Council,Office / General Equipment,"Children, Families & Cultural Services",Debit,14.29,co-op group 017091,26/02/2017
Nottinghamshire County Council,Provisions,"Children, Families & Cultural Services",Debit,17.25,bargain booze,24/02/2017
Nottinghamshire County Council,Personal Needs,"Children, Families & Cultural Services",Debit,6.88,amazon uk marketplace,03/02/2017
Nottinghamshire County Council,Personal Needs,"Children, Families & Cultural Services",Credit ,-5.99,amazon uk marketplace,04/02/2017
Nottinghamshire County Council,Clothing/Shoes/Uniforms,"Children, Families & Cultural Services",Debit,4.76,amazon uk marketplace,03/02/2017
Nottinghamshire County Council,Stationery,"Children, Families & Cultural Services",Debit,2.93,amazon uk marketplace,03/02/2017
Nottinghamshire County Council,Holidays,"Children, Families & Cultural Services",Debit,243.62,residencial secar de la,03/02/2017
Nottinghamshire County Council,Clothing/Shoes/Uniforms,"Children, Families & Cultural Services",Debit,20.98,amazon uk marketplace,03/02/2017
Nottinghamshire County Council,Holidays,"Children, Families & Cultural Services",Debit,232.50,ryanair   ,02/02/2017
Nottinghamshire County Council,Aids & Appliances,"Children, Families & Cultural Services",Credit ,-22.78,incchoice,08/02/2017
Nottinghamshire County Council,Office / General Equipment,"Children, Families & Cultural Services",Debit,211.02,handi centre bingham,08/02/2017
Nottinghamshire County Council,Personal Needs,"Children, Families & Cultural Services",Debit,40.00,royal centre moto,10/02/2017
Nottinghamshire County Council,Clothing/Shoes/Uniforms,"Children, Families & Cultural Services",Debit,20.94,amazon uk marketplace,14/02/2017
Nottinghamshire County Council,Personal Needs,"Children, Families & Cultural Services",Debit,12.50,www.nottingham.climbin,20/02/2017
Nottinghamshire County Council,Provisions,"Children, Families & Cultural Services",Debit,464.61,owen taylor  sons,20/02/2017
Nottinghamshire County Council,Personal Needs,"Children, Families & Cultural Services",Debit,2.35,amazon uk marketplace,21/02/2017
Nottinghamshire County Council,Protective Clothing,"Children, Families & Cultural Services",Debit,33.75,fledglings,21/02/2017
Nottinghamshire County Council,Personal Needs,"Children, Families & Cultural Services",Debit,6.48,amazon uk marketplace,22/02/2017
Nottinghamshire County Council,Clothing/Shoes/Uniforms,"Children, Families & Cultural Services",Debit,10.15,asda george com leeds,22/02/2017
Nottinghamshire County Council,Personal Needs,"Children, Families & Cultural Services",Debit,31.38,amazon uk marketplace,23/02/2017
Nottinghamshire County Council,Personal Needs,"Children, Families & Cultural Services",Debit,19.95,amazon uk retail,23/02/2017
Nottinghamshire County Council,Personal Needs,"Children, Families & Cultural Services",Debit,1.93,amazon uk marketplace,23/02/2017
Nottinghamshire County Council,Personal Needs,"Children, Families & Cultural Services",Debit,19.47,amazon uk retail amazon.,25/02/2017
Nottinghamshire County Council,Grounds Maintenance,"Children, Families & Cultural Services",Debit,97.18,new hollybeck nurs,28/02/2017
Nottinghamshire County Council,Personal Needs,"Children, Families & Cultural Services",Debit,19.60,wilko.com,28/02/2017
Nottinghamshire County Council,Laundry & Dry Cleaning,"Children, Families & Cultural Services",Debit,12.98,amazon uk marketplace,01/03/2017
Nottinghamshire County Council,Laundry & Dry Cleaning,"Children, Families & Cultural Services",Debit,6.97,amazon uk marketplace,01/03/2017
Nottinghamshire County Council,Clothing/Shoes/Uniforms,"Children, Families & Cultural Services",Debit,21.10,amazon uk marketplace,02/03/2017
Nottinghamshire County Council,Clothing/Shoes/Uniforms,"Children, Families & Cultural Services",Credit ,-16.99,amz blua donau,02/03/2017
Nottinghamshire County Council,Clothing/Shoes/Uniforms,"Children, Families & Cultural Services",Debit,28.97,select - mansfield 2,07/02/2017
Nottinghamshire County Council,Clothing/Shoes/Uniforms,"Children, Families & Cultural Services",Debit,14.99,new look 2015,07/02/2017
Nottinghamshire County Council,Provisions,"Children, Families & Cultural Services",Debit,64.20,tesco stores 5437,08/02/2017
Nottinghamshire County Council,Clothing/Shoes/Uniforms,"Children, Families & Cultural Services",Debit,17.70,primark,07/02/2017
Nottinghamshire County Council,Provisions,"Children, Families & Cultural Services",Debit,54.32,tesco stores 5437,13/02/2017
Nottinghamshire County Council,Provisions,"Children, Families & Cultural Services",Debit,41.75,w m morrison plc,15/02/2017
Nottinghamshire County Council,Provisions,"Children, Families & Cultural Services",Debit,1.50,tesco stores 5437,15/02/2017
Nottinghamshire County Council,Fixtures & Fittings,"Children, Families & Cultural Services",Debit,2.50,tesco stores 5437,15/02/2017
Nottinghamshire County Council,Provisions,"Children, Families & Cultural Services",Debit,49.71,tesco stores 5437,20/02/2017
Nottinghamshire County Council,Clothing/Shoes/Uniforms,"Children, Families & Cultural Services",Debit,35.05,j d sports 621,21/02/2017
Nottinghamshire County Council,Provisions,"Children, Families & Cultural Services",Debit,4.17,mcdonalds,21/02/2017
Nottinghamshire County Council,Personal Needs,"Children, Families & Cultural Services",Debit,8.60,1st bowl,17/02/2017
Nottinghamshire County Council,Provisions,"Children, Families & Cultural Services",Debit,7.30,subway,17/02/2017
Nottinghamshire County Council,Provisions,"Children, Families & Cultural Services",Debit,7.06,bargain booze,16/02/2017
Nottinghamshire County Council,Provisions,"Children, Families & Cultural Services",Debit,8.83,bargain booze,11/02/2017
Nottinghamshire County Council,Provisions,"Children, Families & Cultural Services",Debit,105.24,aldi,06/02/2017
Nottinghamshire County Council,Provisions,"Children, Families & Cultural Services",Debit,10.65,sainsburys s/mkts,06/02/2017
Nottinghamshire County Council,Stationery,"Adult Social Care, Health & Public Protection ",Debit,26.25,amazon uk retail amazon.,25/02/2017
Nottinghamshire County Council,Cleaning & Domestic Equipment,"Children, Families & Cultural Services",Debit,6.28,amazon uk marketplace,10/01/2017
Nottinghamshire County Council,Cleaning & Domestic Equipment,"Children, Families & Cultural Services",Debit,8.78,amazon uk marketplace,10/01/2017
Nottinghamshire County Council,Provisions,"Children, Families & Cultural Services",Debit,43.00,tesco stores 3378,17/01/2017
Nottinghamshire County Council,Cleaning & Domestic Equipment,"Children, Families & Cultural Services",Debit,78.75,amazon uk retail,19/01/2017
Nottinghamshire County Council,Cleaning & Domestic Equipment,"Children, Families & Cultural Services",Debit,20.90,amazon uk marketplace,23/01/2017
Nottinghamshire County Council,Office / General Equipment,"Children, Families & Cultural Services",Debit,8.21,amazon uk marketplace,02/02/2017
Nottinghamshire County Council,Office / General Equipment,"Children, Families & Cultural Services",Debit,39.84,b  q 1241,12/01/2017
Nottinghamshire County Council,Office / General Equipment,"Children, Families & Cultural Services",Debit,9.87,b  q 1241,12/01/2017
Nottinghamshire County Council,Office / General Equipment,"Children, Families & Cultural Services",Debit,8.00,b  q 1241,12/01/2017
Nottinghamshire County Council,Office / General Equipment,"Children, Families & Cultural Services",Debit,15.94,b  q 1241,12/01/2017
Nottinghamshire County Council,Office / General Equipment,"Children, Families & Cultural Services",Debit,5.94,b  q 1310,12/01/2017
Nottinghamshire County Council,Office / General Equipment,"Children, Families & Cultural Services",Debit,3.21,b  q 1310,17/01/2017
Nottinghamshire County Council,Office / General Equipment,"Children, Families & Cultural Services",Debit,2.19,b  q 1310,17/01/2017
Nottinghamshire County Council,Office / General Equipment,"Children, Families & Cultural Services",Debit,1.42,b  q 1310,17/01/2017
Nottinghamshire County Council,Office / General Equipment,"Children, Families & Cultural Services",Debit,3.21,b  q 1310,17/01/2017
Nottinghamshire County Council,Office / General Equipment,"Children, Families & Cultural Services",Debit,12.72,b  q 1310,17/01/2017
Nottinghamshire County Council,Office / General Equipment,"Children, Families & Cultural Services",Debit,12.72,b  q 1310,17/01/2017
Nottinghamshire County Council,Office / General Equipment,"Children, Families & Cultural Services",Debit,3.21,b  q 1310,17/01/2017
Nottinghamshire County Council,Office / General Equipment,"Children, Families & Cultural Services",Debit,2.19,b  q 1310,17/01/2017
Nottinghamshire County Council,Office / General Equipment,"Children, Families & Cultural Services",Debit,31.73,b  q 1310,17/01/2017
Nottinghamshire County Council,Office / General Equipment,"Children, Families & Cultural Services",Debit,1.04,b  q 1310,17/01/2017
Nottinghamshire County Council,Office / General Equipment,"Children, Families & Cultural Services",Debit,3.80,b  q 1310,17/01/2017
Nottinghamshire County Council,Clients - H & S Equipt,"Children, Families & Cultural Services",Debit,7.70,asda  stores 4201,01/02/2017
Nottinghamshire County Council,Aftercare Lodging/Hostel,"Children, Families & Cultural Services",Debit,54.88,bassetlaw district cou,04/01/2017
Nottinghamshire County Council,Aftercare - Equipment,"Children, Families & Cultural Services",Debit,149.00,ao retail limited,05/01/2017
Nottinghamshire County Council,Clients - H & S Equipt,"Children, Families & Cultural Services",Debit,8.45,bm retail,05/01/2017
Nottinghamshire County Council,Aids & Appliances,"Adult Social Care, Health & Public Protection ",Debit,13.75,amazon uk marketplace,25/01/2017
Nottinghamshire County Council,Provisions,"Children, Families & Cultural Services",Debit,9.15,bargain booze,02/02/2017
Nottinghamshire County Council,Provisions,"Children, Families & Cultural Services",Debit,5.67,bargain booze,31/01/2017
Nottinghamshire County Council,Personal Needs,"Children, Families & Cultural Services",Debit,10.00,tesco stores 2995,27/01/2017
Nottinghamshire County Council,Cleaning Materials,"Children, Families & Cultural Services",Debit,12.44,bargain booze,29/01/2017
Nottinghamshire County Council,Provisions,"Children, Families & Cultural Services",Debit,5.88,co-op group 017091,26/01/2017
Nottinghamshire County Council,Provisions,"Children, Families & Cultural Services",Debit,4.99,kfc sutton in ashfield,10/01/2017
Nottinghamshire County Council,Provisions,"Children, Families & Cultural Services",Debit,85.88,asda store ston in as,10/01/2017
Nottinghamshire County Council,Provisions,"Children, Families & Cultural Services",Debit,6.15,bargain booze,09/01/2017
Nottinghamshire County Council,Provisions,"Children, Families & Cultural Services",Debit,5.94,bargain booze,04/01/2017
Nottinghamshire County Council,Personal Needs,"Children, Families & Cultural Services",Credit ,-16.04,amazon uk marketplace,04/01/2017
Nottinghamshire County Council,Provisions,"Children, Families & Cultural Services",Debit,490.78,owen taylor  sons,05/01/2017
Nottinghamshire County Council,First Aid Equipment Purchases,"Children, Families & Cultural Services",Debit,18.16,amazon uk retail,09/01/2017
Nottinghamshire County Council,Office / General Equipment,"Children, Families & Cultural Services",Debit,237.74,www.factory-direct-floor,10/01/2017
Nottinghamshire County Council,Stationery,"Children, Families & Cultural Services",Debit,19.65,amazon uk marketplace,10/01/2017
Nottinghamshire County Council,First Aid Equipment Purchases,"Children, Families & Cultural Services",Debit,12.49,medpac,13/01/2017
Nottinghamshire County Council,Cleaning & Domestic Equipment,"Children, Families & Cultural Services",Debit,92.84,www.nisbets.com,16/01/2017
Nottinghamshire County Council,Clothing/Shoes/Uniforms,"Children, Families & Cultural Services",Debit,97.00,fledglings,17/01/2017
Nottinghamshire County Council,Personal Needs,"Children, Families & Cultural Services",Debit,5.98,amazon uk marketplace,23/01/2017
Nottinghamshire County Council,Personal Needs,"Children, Families & Cultural Services",Debit,8.99,amazon uk marketplace,23/01/2017
Nottinghamshire County Council,Personal Needs,"Children, Families & Cultural Services",Debit,41.82,amazon uk retail,24/01/2017
Nottinghamshire County Council,Clothing/Shoes/Uniforms,"Children, Families & Cultural Services",Debit,19.50,k  h sports,24/01/2017
Nottinghamshire County Council,Stationery,"Children, Families & Cultural Services",Debit,12.95,amazon uk marketplace,24/01/2017
Nottinghamshire County Council,Personal Needs,"Children, Families & Cultural Services",Debit,78.30,tesco stores 5379,24/01/2017
Nottinghamshire County Council,Personal Needs,"Children, Families & Cultural Services",Debit,10.49,amazon uk marketplace,25/01/2017
Nottinghamshire County Council,Holidays,"Children, Families & Cultural Services",Debit,14.40,sp  activity village,25/01/2017
Nottinghamshire County Council,Personal Needs,"Children, Families & Cultural Services",Debit,4.29,amazon svcs europesar,26/01/2017
Nottinghamshire County Council,Aids & Appliances,"Children, Families & Cultural Services",Debit,38.96,incchoice,26/01/2017
Nottinghamshire County Council,Personal Needs,"Children, Families & Cultural Services",Debit,8.69,amazon uk marketplace,27/01/2017
Nottinghamshire County Council,Personal Needs,"Children, Families & Cultural Services",Debit,25.59,amazon uk retail,27/01/2017
Nottinghamshire County Council,Other Public Transport,"Children, Families & Cultural Services",Debit,30.00,national railcard,30/01/2017
Nottinghamshire County Council,Aids & Appliances,"Children, Families & Cultural Services",Debit,64.77,incchoice,31/01/2017
Nottinghamshire County Council,Aids & Appliances,"Children, Families & Cultural Services",Debit,4.49,www.collectplus.co.uk,31/01/2017
Nottinghamshire County Council,Office / General Equipment,"Children, Families & Cultural Services",Debit,12.94,amazon uk marketplace,02/02/2017
Nottinghamshire County Council,First Aid Equipment Purchases,"Children, Families & Cultural Services",Debit,59.94,medpac,02/02/2017
Nottinghamshire County Council,Clothing/Shoes/Uniforms,"Children, Families & Cultural Services",Debit,7.19,amazon uk marketplace,02/02/2017
Nottinghamshire County Council,Personal Needs,"Children, Families & Cultural Services",Debit,2.49,amazon uk marketplace,02/02/2017
Nottinghamshire County Council,Provisions,"Children, Families & Cultural Services",Debit,48.77,tesco stores 5437,27/01/2017
Nottinghamshire County Council,Provisions,"Children, Families & Cultural Services",Debit,43.78,tesco stores 5437,23/01/2017
Nottinghamshire County Council,Provisions,"Children, Families & Cultural Services",Debit,2.00,tesco stores 5437,22/01/2017
Nottinghamshire County Council,Personal Needs,"Children, Families & Cultural Services",Debit,6.99,b  m retail,17/01/2017
Nottinghamshire County Council,Specialist Equipment,"Adult Social Care, Health & Public Protection ",Debit,190.08,pp tdhcatering,11/01/2017
Nottinghamshire County Council,Provisions,"Children, Families & Cultural Services",Debit,55.05,tesco stores 3378,03/01/2017
Nottinghamshire County Council,Provisions,"Children, Families & Cultural Services",Debit,106.94,aldi,03/01/2017
Nottinghamshire County Council,Office / General Equipment,"Children, Families & Cultural Services",Debit,34.99,tesco stores 5437,02/01/2017
Nottinghamshire County Council,Provisions,"Children, Families & Cultural Services",Debit,4.16,wm morrisons plc,02/01/2017
Nottinghamshire County Council,Fuel - Diesel,"Children, Families & Cultural Services",Debit,44.03,tesco pfs 5538,01/01/2017
Nottinghamshire County Council,Contrib to Provisions Premises,"Adult Social Care, Health & Public Protection ",Debit,109.48,w m morrisons.com,02/03/2017
Nottinghamshire County Council,Provisions,"Adult Social Care, Health & Public Protection ",Debit,82.68,w m morrisons.com,27/02/2017
Nottinghamshire County Council,Provisions,"Adult Social Care, Health & Public Protection ",Debit,149.23,w m morrisons.com,23/02/2017
Nottinghamshire County Council,Cleaning Materials,"Adult Social Care, Health & Public Protection ",Debit,16.54,amazon uk marketplace,22/02/2017
Nottinghamshire County Council,Staff Training,"Adult Social Care, Health & Public Protection ",Debit,240.00,british epilepsy assoc,21/02/2017
Nottinghamshire County Council,Activities & Support,"Adult Social Care, Health & Public Protection ",Debit,99.00,home leisure direct lt,21/02/2017
Nottinghamshire County Council,Cleaning Materials,"Adult Social Care, Health & Public Protection ",Debit,24.77,w m morrisons.com,20/02/2017
Nottinghamshire County Council,Provisions,"Adult Social Care, Health & Public Protection ",Debit,129.73,w m morrisons.com,20/02/2017
Nottinghamshire County Council,Provisions,"Adult Social Care, Health & Public Protection ",Debit,122.13,w m morrisons.com,16/02/2017
Nottinghamshire County Council,Stationery,"Adult Social Care, Health & Public Protection ",Debit,130.63,www.greenstationery.co,16/02/2017
Nottinghamshire County Council,Fixtures & Fittings,"Adult Social Care, Health & Public Protection ",Debit,171.74,amazon uk marketplace,13/02/2017
Nottinghamshire County Council,Provisions,"Adult Social Care, Health & Public Protection ",Debit,110.48,w m morrisons.com,13/02/2017
Nottinghamshire County Council,Provisions,"Adult Social Care, Health & Public Protection ",Debit,7.00,w m morrisons.com,09/02/2017
Nottinghamshire County Council,Provisions,"Adult Social Care, Health & Public Protection ",Debit,121.64,w m morrisons.com,09/02/2017
Nottinghamshire County Council,Cleaning Materials,"Adult Social Care, Health & Public Protection ",Debit,7.70,w m morrisons.com,06/02/2017
Nottinghamshire County Council,Provisions,"Adult Social Care, Health & Public Protection ",Debit,119.75,w m morrisons.com,06/02/2017
Nottinghamshire County Council,Provisions,"Children, Families & Cultural Services",Debit,3.13,b  q 1098,27/02/2017
Nottinghamshire County Council,Provisions,"Children, Families & Cultural Services",Debit,2.35,b  q 1098,27/02/2017
Nottinghamshire County Council,Provisions,"Children, Families & Cultural Services",Debit,2.14,b  q 1098,27/02/2017
Nottinghamshire County Council,Provisions,"Children, Families & Cultural Services",Debit,2.14,b  q 1098,27/02/2017
Nottinghamshire County Council,Provisions,"Children, Families & Cultural Services",Debit,3.23,b  q 1098,27/02/2017
Nottinghamshire County Council,Provisions,"Children, Families & Cultural Services",Debit,3.23,b  q 1098,27/02/2017
Nottinghamshire County Council,Provisions,"Children, Families & Cultural Services",Debit,10.00,b  q 1098,20/02/2017
Nottinghamshire County Council,Provisions,"Children, Families & Cultural Services",Debit,10.00,b  q 1098,20/02/2017
Nottinghamshire County Council,Provisions,"Children, Families & Cultural Services",Debit,10.52,b  q 1098,20/02/2017
Nottinghamshire County Council,Provisions,"Children, Families & Cultural Services",Debit,45.25,aldi,27/02/2017
Nottinghamshire County Council,Provisions,"Children, Families & Cultural Services",Debit,25.49,asda stores 4517,27/02/2017
Nottinghamshire County Council,Provisions,"Children, Families & Cultural Services",Debit,7.17,central eng coop,24/02/2017
Nottinghamshire County Council,Provisions,"Children, Families & Cultural Services",Debit,7.01,asda stores 4517,24/02/2017
Nottinghamshire County Council,Provisions,"Children, Families & Cultural Services",Debit,44.60,asda stores 4517,20/02/2017
Nottinghamshire County Council,Provisions,"Children, Families & Cultural Services",Debit,39.25,aldi,20/02/2017
Nottinghamshire County Council,Provisions,"Children, Families & Cultural Services",Debit,2.94,aldi,20/02/2017
Nottinghamshire County Council,Provisions,"Children, Families & Cultural Services",Debit,9.40,stapletons lock  safe,20/02/2017
Nottinghamshire County Council,Provisions,"Children, Families & Cultural Services",Debit,13.79,aldi,16/02/2017
Nottinghamshire County Council,Provisions,"Children, Families & Cultural Services",Debit,11.64,tesco store 3439,14/02/2017
Nottinghamshire County Council,Provisions,"Children, Families & Cultural Services",Debit,10.34,aldi,13/02/2017
Nottinghamshire County Council,Provisions,"Children, Families & Cultural Services",Debit,3.58,aldi,09/02/2017
Nottinghamshire County Council,Provisions,"Children, Families & Cultural Services",Debit,4.00,poundworld,07/02/2017
Nottinghamshire County Council,Provisions,"Children, Families & Cultural Services",Debit,22.30,aldi,06/02/2017
Nottinghamshire County Council,Provisions,"Children, Families & Cultural Services",Debit,11.84,asda stores 4517,06/02/2017
Nottinghamshire County Council,Provisions,"Children, Families & Cultural Services",Debit,52.10,asda stores 4517,06/02/2017
Nottinghamshire County Council,Provisions,"Children, Families & Cultural Services",Debit,10.00,halfords 0493,31/01/2017
Nottinghamshire County Council,Provisions,"Children, Families & Cultural Services",Debit,6.00,poundworld,31/01/2017
Nottinghamshire County Council,Provisions,"Children, Families & Cultural Services",Debit,7.00,asda stores 4517,30/01/2017
Nottinghamshire County Council,Provisions,"Children, Families & Cultural Services",Debit,46.40,tesco store 3439,30/01/2017
Nottinghamshire County Council,Provisions,"Children, Families & Cultural Services",Debit,29.95,aldi,30/01/2017
Nottinghamshire County Council,Provisions,"Children, Families & Cultural Services",Debit,8.45,asda stores 4517,27/01/2017
Nottinghamshire County Council,Provisions,"Children, Families & Cultural Services",Debit,6.00,asda stores 4517,26/01/2017
Nottinghamshire County Council,Provisions,"Children, Families & Cultural Services",Debit,1.80,asda stores 4517,26/01/2017
Nottinghamshire County Council,Provisions,"Children, Families & Cultural Services",Debit,24.50,wm morrison store,26/01/2017
Nottinghamshire County Council,Provisions,"Children, Families & Cultural Services",Debit,3.40,tesco store 3439,24/01/2017
Nottinghamshire County Council,Provisions,"Children, Families & Cultural Services",Debit,5.55,tesco store 3439,24/01/2017
Nottinghamshire County Council,Provisions,"Children, Families & Cultural Services",Debit,3.79,amazon uk marketplace,24/01/2017
Nottinghamshire County Council,Provisions,"Children, Families & Cultural Services",Debit,30.61,asda stores 4517,23/01/2017
Nottinghamshire County Council,Provisions,"Children, Families & Cultural Services",Debit,2.19,amazon uk marketplace,23/01/2017
Nottinghamshire County Council,Provisions,"Children, Families & Cultural Services",Debit,14.37,aldi,23/01/2017
Nottinghamshire County Council,Provisions,"Children, Families & Cultural Services",Debit,3.99,original factory s,23/01/2017
Nottinghamshire County Council,Provisions,"Children, Families & Cultural Services",Debit,17.55,asda stores 4517,20/01/2017
Nottinghamshire County Council,Provisions,"Children, Families & Cultural Services",Debit,7.45,asda stores 4517,19/01/2017
Nottinghamshire County Council,Provisions,"Children, Families & Cultural Services",Debit,4.00,poundworld,17/01/2017
Nottinghamshire County Council,Provisions,"Children, Families & Cultural Services",Debit,8.25,central eng coop,17/01/2017
Nottinghamshire County Council,Provisions,"Children, Families & Cultural Services",Debit,49.99,currys-worksop 2369,16/01/2017
Nottinghamshire County Council,Provisions,"Children, Families & Cultural Services",Debit,39.20,tesco store 3439,16/01/2017
Nottinghamshire County Council,Provisions,"Children, Families & Cultural Services",Debit,29.55,asda stores 4517,13/01/2017
Nottinghamshire County Council,Provisions,"Children, Families & Cultural Services",Debit,1.85,asda stores 4517,13/01/2017
Nottinghamshire County Council,Provisions,"Children, Families & Cultural Services",Debit,9.70,aldi,12/01/2017
Nottinghamshire County Council,Provisions,"Children, Families & Cultural Services",Debit,40.00,go-bounce (trampoline,10/01/2017
Nottinghamshire County Council,Provisions,"Children, Families & Cultural Services",Debit,62.55,tesco store 3439,09/01/2017
Nottinghamshire County Council,Provisions,"Children, Families & Cultural Services",Debit,39.16,asda stores 4517,17/03/2017
Nottinghamshire County Council,Provisions,"Children, Families & Cultural Services",Debit,3.00,tesco stores-3439,17/03/2017
Nottinghamshire County Council,Provisions,"Children, Families & Cultural Services",Debit,38.63,aldi,17/03/2017
Nottinghamshire County Council,Provisions,"Children, Families & Cultural Services",Debit,10.05,asda stores 4517,16/03/2017
Nottinghamshire County Council,Provisions,"Children, Families & Cultural Services",Debit,4.82,asda stores 4517,14/03/2017
Nottinghamshire County Council,Provisions,"Children, Families & Cultural Services",Debit,29.03,aldi,13/03/2017
Nottinghamshire County Council,Provisions,"Children, Families & Cultural Services",Debit,8.00,poundworld,13/03/2017
Nottinghamshire County Council,Provisions,"Children, Families & Cultural Services",Debit,7.23,wm morrison store,10/03/2017
Nottinghamshire County Council,Provisions,"Children, Families & Cultural Services",Debit,37.50,asda stores 4517,09/03/2017
Nottinghamshire County Council,Provisions,"Children, Families & Cultural Services",Debit,2.00,asda stores 4517,09/03/2017
Nottinghamshire County Council,Provisions,"Children, Families & Cultural Services",Debit,6.41,aldi,07/03/2017
Nottinghamshire County Council,Provisions,"Children, Families & Cultural Services",Debit,18.50,original factory s,06/03/2017
Nottinghamshire County Council,Provisions,"Children, Families & Cultural Services",Debit,19.64,tesco store 3439,06/03/2017
Nottinghamshire County Council,Provisions,"Children, Families & Cultural Services",Debit,10.00,tesco store 3439,06/03/2017
Nottinghamshire County Council,Provisions,"Children, Families & Cultural Services",Debit,4.00,asda stores 4517,03/03/2017
Nottinghamshire County Council,Personal Needs,"Children, Families & Cultural Services",Debit,255.00,burrows opthalmic opti,17/03/2017
Nottinghamshire County Council,Personal Needs,"Children, Families & Cultural Services",Debit,68.54,wp-express chemist,14/03/2017
Nottinghamshire County Council,Personal Needs,"Children, Families & Cultural Services",Debit,511.64,www.incentiveplus.co.u,09/03/2017
Nottinghamshire County Council,Office / General Equipment,"Children, Families & Cultural Services",Debit,16.96,amazon uk retail,09/03/2017
Nottinghamshire County Council,Office / General Equipment,"Children, Families & Cultural Services",Debit,148.98,www.guitarguitar.co.uk,27/01/2017
Nottinghamshire County Council,Office / General Equipment,"Children, Families & Cultural Services",Debit,500.95,currys online,27/01/2017
Nottinghamshire County Council,Office / General Equipment,"Children, Families & Cultural Services",Debit,20.85,amazon uk retail,26/01/2017
Nottinghamshire County Council,Personal Needs,"Children, Families & Cultural Services",Debit,23.92,crossbow education,25/01/2017
Nottinghamshire County Council,Office / General Equipment,"Children, Families & Cultural Services",Debit,4.89,amazon uk marketplace,25/01/2017
Nottinghamshire County Council,Office / General Equipment,"Children, Families & Cultural Services",Debit,203.95,currys online,23/01/2017
Nottinghamshire County Council,Office / General Equipment,"Children, Families & Cultural Services",Debit,18.95,amazon uk marketplace,20/01/2017
Nottinghamshire County Council,Office / General Equipment,"Children, Families & Cultural Services",Debit,20.30,amazon uk marketplace,20/01/2017
Nottinghamshire County Council,Office / General Equipment,"Children, Families & Cultural Services",Debit,59.00,amazon uk marketplace,20/01/2017
Nottinghamshire County Council,Office / General Equipment,"Children, Families & Cultural Services",Debit,21.97,amazon uk marketplace,20/01/2017
Nottinghamshire County Council,Office / General Equipment,"Children, Families & Cultural Services",Debit,36.01,amazon uk marketplace,13/01/2017
Nottinghamshire County Council,Books - General,"Children, Families & Cultural Services",Debit,7.79,amazon uk retail,13/01/2017
Nottinghamshire County Council,Office / General Equipment,"Children, Families & Cultural Services",Debit,84.00,sign it (nottm) ltd,10/01/2017
Nottinghamshire County Council,Personal Needs,"Children, Families & Cultural Services",Debit,18.49,sensory direct,28/02/2017
Nottinghamshire County Council,Stationery,"Children, Families & Cultural Services",Debit,35.75,amazon uk marketplace,28/02/2017
Nottinghamshire County Council,Stationery,"Children, Families & Cultural Services",Debit,57.48,crossbow education,23/02/2017
Nottinghamshire County Council,Office / General Equipment,"Children, Families & Cultural Services",Debit,36.01,amazon uk marketplace,20/02/2017
Nottinghamshire County Council,Fire Precaution Equipment,"Children, Families & Cultural Services",Debit,157.09,sensory direct,17/02/2017
Nottinghamshire County Council,Office / General Equipment,"Children, Families & Cultural Services",Debit,144.99,dri nuance,14/02/2017
Nottinghamshire County Council,Computer Equipment,"Children, Families & Cultural Services",Debit,802.96,currys online,14/02/2017
Nottinghamshire County Council,Non-Employees medical fees,"Children, Families & Cultural Services",Debit,212.49,pearson ed ltd,06/02/2017
Nottinghamshire County Council,Activities & Support,"Children, Families & Cultural Services",Debit,13.75,sainsburys local,22/02/2017
Nottinghamshire County Council,Activities & Support,"Children, Families & Cultural Services",Debit,7.99,amazon uk marketplace,20/02/2017
Nottinghamshire County Council,Activities & Support,"Children, Families & Cultural Services",Debit,1.55,amazon uk marketplace,20/02/2017
Nottinghamshire County Council,Activities & Support,"Children, Families & Cultural Services",Debit,4.25,asda superstore,18/02/2017
Nottinghamshire County Council,Activities & Support,"Children, Families & Cultural Services",Debit,6.44,sainsburys local,17/02/2017
Nottinghamshire County Council,Activities & Support,"Children, Families & Cultural Services",Debit,1.89,amazon uk marketplace,18/02/2017
Nottinghamshire County Council,Activities & Support,"Children, Families & Cultural Services",Debit,26.81,amazon uk marketplace,19/02/2017
Nottinghamshire County Council,Activities & Support,"Children, Families & Cultural Services",Debit,5.19,asda superstore,18/02/2017
Nottinghamshire County Council,Activities & Support,"Children, Families & Cultural Services",Debit,24.09,b  m retail,15/02/2017
Nottinghamshire County Council,Activities & Support,"Children, Families & Cultural Services",Debit,125.00,magic show jj,15/02/2017
Nottinghamshire County Council,Activities & Support,"Children, Families & Cultural Services",Debit,12.99,the range,10/02/2017
Nottinghamshire County Council,Activities & Support,"Children, Families & Cultural Services",Debit,67.18,staples uk,10/02/2017
Nottinghamshire County Council,Activities & Support,"Children, Families & Cultural Services",Debit,8.03,aldi,09/02/2017
Nottinghamshire County Council,Activities & Support,"Children, Families & Cultural Services",Debit,8.90,sainsburys s/mkts,09/02/2017
Nottinghamshire County Council,Activities & Support,"Children, Families & Cultural Services",Debit,15.30,sainsburys s/mkts,04/02/2017
Nottinghamshire County Council,Activities & Support,"Children, Families & Cultural Services",Debit,8.90,sainsburys s/mkts,02/02/2017
Nottinghamshire County Council,Activities & Support,"Children, Families & Cultural Services",Debit,64.90,smyths toys,02/02/2017
Nottinghamshire County Council,Activities & Support,"Children, Families & Cultural Services",Debit,100.91,smyths toys,02/02/2017
Nottinghamshire County Council,Activities & Support,"Children, Families & Cultural Services",Debit,19.77,amazon uk marketplace,20/01/2017
Nottinghamshire County Council,Activities & Support,"Children, Families & Cultural Services",Debit,1.50,sainsburys smkt,21/01/2017
Nottinghamshire County Council,Activities & Support,"Children, Families & Cultural Services",Debit,16.26,aldi,20/01/2017
Nottinghamshire County Council,Activities & Support,"Children, Families & Cultural Services",Debit,3.98,aldi,18/01/2017
Nottinghamshire County Council,Activities & Support,"Children, Families & Cultural Services",Debit,5.97,w boyes  co ltd newar,14/01/2017
Nottinghamshire County Council,Activities & Support,"Children, Families & Cultural Services",Debit,3.15,aldi,06/01/2017
Nottinghamshire County Council,Activities & Support,"Children, Families & Cultural Services",Debit,3.15,sainsburys local,07/01/2017
Nottinghamshire County Council,Activities & Support,"Children, Families & Cultural Services",Debit,125.00,paypal ,04/01/2017
Nottinghamshire County Council,Activities & Support,"Children, Families & Cultural Services",Debit,15.00,elc-internet,31/03/2017
Nottinghamshire County Council,Activities & Support,"Children, Families & Cultural Services",Debit,3.30,sainsburys local,18/03/2017
Nottinghamshire County Council,Activities & Support,"Children, Families & Cultural Services",Debit,7.62,aldi,17/03/2017
Nottinghamshire County Council,Activities & Support,"Children, Families & Cultural Services",Debit,6.00,sainsburys s/mkts,16/03/2017
Nottinghamshire County Council,Activities & Support,"Children, Families & Cultural Services",Debit,150.29,staples uk,10/03/2017
Nottinghamshire County Council,Activities & Support,"Children, Families & Cultural Services",Debit,54.36,staples uk,10/03/2017
Nottinghamshire County Council,Activities & Support,"Children, Families & Cultural Services",Debit,29.98,amazon uk marketplace,10/03/2017
Nottinghamshire County Council,Activities & Support,"Children, Families & Cultural Services",Debit,6.20,amazon uk marketplace,09/03/2017
Nottinghamshire County Council,Activities & Support,"Children, Families & Cultural Services",Debit,6.20,amazon.co.uk,08/03/2017
Nottinghamshire County Council,Activities & Support,"Children, Families & Cultural Services",Debit,9.00,tiger uk (midlands)ltd,05/03/2017
Nottinghamshire County Council,Activities & Support,"Children, Families & Cultural Services",Debit,6.28,wickes,04/03/2017
Nottinghamshire County Council,Activities & Support,"Children, Families & Cultural Services",Debit,23.46,farmfoods limited,20/01/2017
Nottinghamshire County Council,Office / General Equipment,"Children, Families & Cultural Services",Debit,19.33,amazon uk marketplace,31/03/2017
Nottinghamshire County Council,First Aid Equipment Purchases,"Children, Families & Cultural Services",Debit,49.84,medisave,16/03/2017
Nottinghamshire County Council,Provisions,"Children, Families & Cultural Services",Debit,2.34,co-op group 010941,30/03/2017
Nottinghamshire County Council,Provisions,"Children, Families & Cultural Services",Debit,55.50,asda superstore 04030,15/03/2017
Nottinghamshire County Council,Provisions,"Children, Families & Cultural Services",Debit,26.33,tesco stores 2702,06/03/2017
Nottinghamshire County Council,Provisions,"Children, Families & Cultural Services",Debit,17.51,aldi,24/02/2017
Nottinghamshire County Council,Office / General Equipment,Resources,Debit,25.00,slades florist ltd,28/02/2017
Nottinghamshire County Council,Staff Training,Resources,Debit,499.00,www.adass.org.uk,31/01/2017
Nottinghamshire County Council,Rent / Hire Rooms,Resources,Debit,108.00,rufford park parkwood le,16/03/2017
Nottinghamshire County Council,Activities & Support,"Children, Families & Cultural Services",Debit,58.44,dwn limited,10/03/2017
Nottinghamshire County Council,Activities & Support,"Children, Families & Cultural Services",Credit ,-38.96,dwn limited,07/02/2017
Nottinghamshire County Council,Activities & Support,"Children, Families & Cultural Services",Debit,58.44,dwn limited,05/02/2017
Nottinghamshire County Council,Minor Works,"Children, Families & Cultural Services",Debit,24.00,robert m sansom plant lt,02/03/2017
Nottinghamshire County Council,Minor Works,"Children, Families & Cultural Services",Debit,5.86,morrisons petrol,02/03/2017
Nottinghamshire County Council,Minor Works,"Children, Families & Cultural Services",Debit,3.22,tesco stores 2702,02/03/2017
Nottinghamshire County Council,Minor Works,"Children, Families & Cultural Services",Debit,4.98,sainsburys s/mkt,28/02/2017
Nottinghamshire County Council,Minor Works,"Children, Families & Cultural Services",Debit,4.33,tesco stores 2702,23/02/2017
Nottinghamshire County Council,Minor Works,"Children, Families & Cultural Services",Debit,48.00,terratruck distrib,21/02/2017
Nottinghamshire County Council,Minor Works,"Children, Families & Cultural Services",Debit,3.43,tesco stores 2702,21/02/2017
Nottinghamshire County Council,Minor Works,"Children, Families & Cultural Services",Debit,13.20,frank key (notts) ltd,20/02/2017
Nottinghamshire County Council,Minor Works,"Children, Families & Cultural Services",Debit,63.08,frank key (notts) ltd,17/02/2017
Nottinghamshire County Council,Minor Works,"Children, Families & Cultural Services",Debit,7.03,tesco stores 2702,16/02/2017
Nottinghamshire County Council,Minor Works,"Children, Families & Cultural Services",Debit,44.28,terratruck distrib,15/02/2017
Nottinghamshire County Council,Minor Works,"Children, Families & Cultural Services",Debit,3.43,sainsburys s/mkt,07/02/2017
Nottinghamshire County Council,Minor Works,"Children, Families & Cultural Services",Debit,7.47,tesco stores 2702,02/02/2017
Nottinghamshire County Council,Minor Works,"Children, Families & Cultural Services",Debit,26.78,plv arrow cars,01/02/2017
Nottinghamshire County Council,Minor Works,"Children, Families & Cultural Services",Debit,26.04,plv arrow cars,30/01/2017
Nottinghamshire County Council,Minor Works,"Children, Families & Cultural Services",Debit,6.00,shell awsworth,26/01/2017
Nottinghamshire County Council,Minor Works,"Children, Families & Cultural Services",Debit,12.67,tesco stores 2702,26/01/2017
Nottinghamshire County Council,Minor Works,"Children, Families & Cultural Services",Debit,43.28,frank key (notts) ltd,25/01/2017
Nottinghamshire County Council,Minor Works,"Children, Families & Cultural Services",Debit,30.55,tesco stores 2702,25/01/2017
Nottinghamshire County Council,Minor Works,"Children, Families & Cultural Services",Debit,4.22,central co-op,24/01/2017
Nottinghamshire County Council,Minor Works,"Children, Families & Cultural Services",Debit,10.03,tesco stores 2702,19/01/2017
Nottinghamshire County Council,Minor Works,"Children, Families & Cultural Services",Debit,4.26,co-op group 017091,17/01/2017
Nottinghamshire County Council,Minor Works,"Children, Families & Cultural Services",Debit,2.79,tesco stores 2702,12/01/2017
Nottinghamshire County Council,Minor Works,"Children, Families & Cultural Services",Debit,48.90,the horse  groom,05/01/2017
Nottinghamshire County Council,Minor Works,"Children, Families & Cultural Services",Debit,114.40,the horse  groom,04/01/2017
Nottinghamshire County Council,Minor Works,"Children, Families & Cultural Services",Debit,3.43,tesco stores 2702,23/03/2017
Nottinghamshire County Council,Minor Works,"Children, Families & Cultural Services",Debit,5.75,tesco pfs 4083,21/03/2017
Nottinghamshire County Council,Minor Works,"Children, Families & Cultural Services",Debit,8.42,tesco stores 2702,21/03/2017
Nottinghamshire County Council,Minor Works,"Children, Families & Cultural Services",Debit,132.42,frank key (notts) ltd,16/03/2017
Nottinghamshire County Council,Minor Works,"Children, Families & Cultural Services",Debit,4.42,tesco stores 2702,16/03/2017
Nottinghamshire County Council,Minor Works,"Children, Families & Cultural Services",Debit,7.98,tesco stores 2702,14/03/2017
Nottinghamshire County Council,Minor Works,"Children, Families & Cultural Services",Debit,5.64,sainsburys s/mkt,07/03/2017
Nottinghamshire County Council,Clothing/Shoes/Uniforms,"Children, Families & Cultural Services",Debit,8.00,primark,30/03/2017
Nottinghamshire County Council,Fixtures & Fittings,"Children, Families & Cultural Services",Debit,10.00,sainsburys s/mkts,21/03/2017
Nottinghamshire County Council,Personal Needs,"Children, Families & Cultural Services",Debit,20.25,sainsburys s/mkts,21/03/2017
Nottinghamshire County Council,Personal Needs,"Children, Families & Cultural Services",Debit,5.40,water meadows,19/03/2017
Nottinghamshire County Council,Personal Needs,"Children, Families & Cultural Services",Debit,9.99,asda store ston in as,18/03/2017
Nottinghamshire County Council,Personal Needs,"Children, Families & Cultural Services",Debit,5.70,festival hall leis,18/03/2017
Nottinghamshire County Council,Personal Needs,"Children, Families & Cultural Services",Debit,5.26,mcdonalds,08/03/2017
Nottinghamshire County Council,Personal Needs,"Children, Families & Cultural Services",Debit,9.00,the dome,08/03/2017
Nottinghamshire County Council,Provisions,"Children, Families & Cultural Services",Debit,0.95,tesco stores 5437,04/03/2017
Nottinghamshire County Council,Provisions,"Children, Families & Cultural Services",Debit,48.93,w m morrison plc,30/01/2017
Nottinghamshire County Council,Personal Needs,"Children, Families & Cultural Services",Debit,1.78,nottingham best food,07/01/2017
Nottinghamshire County Council,Personal Needs,"Children, Families & Cultural Services",Debit,5.70,festival hall leis,07/01/2017
Nottinghamshire County Council,Provisions,"Children, Families & Cultural Services",Debit,48.98,w m morrison plc,24/02/2017
Nottinghamshire County Council,Provisions,"Children, Families & Cultural Services",Debit,0.89,tesco pfs 5425,19/02/2017
Nottinghamshire County Council,Personal Needs,"Children, Families & Cultural Services",Debit,5.70,festival hall leis,19/02/2017
Nottinghamshire County Council,Personal Needs,"Children, Families & Cultural Services",Debit,5.40,water meadows,18/02/2017
Nottinghamshire County Council,Personal Needs,"Children, Families & Cultural Services",Debit,0.55,sainsburys s/mkts,05/02/2017
Nottinghamshire County Council,Provisions,"Children, Families & Cultural Services",Debit,1.99,tesco pfs 5538,05/02/2017
Nottinghamshire County Council,Personal Needs,"Children, Families & Cultural Services",Debit,5.00,sainsburys s/mkts,05/02/2017
Nottinghamshire County Council,Provisions,"Children, Families & Cultural Services",Debit,17.41,sainsburys s/mkts,05/02/2017
Nottinghamshire County Council,Personal Needs,"Children, Families & Cultural Services",Debit,14.60,sainsburys s/mkts,05/02/2017
Nottinghamshire County Council,Minor Works,"Children, Families & Cultural Services",Debit,5.95,brobot rainworth,13/01/2017
Nottinghamshire County Council,Minor Works,"Children, Families & Cultural Services",Debit,74.15,ps marsden lmower svs lt,10/03/2017
Nottinghamshire County Council,Clothing And Footwear,"Children, Families & Cultural Services",Debit,9.00,thomaskneale.co.uk,10/03/2017
Nottinghamshire County Council,Clothing And Footwear,"Children, Families & Cultural Services",Debit,"1,079.64",thomaskneale.co.uk,10/03/2017
Nottinghamshire County Council,Building Maintenance,"Children, Families & Cultural Services",Debit,13.49,screwfix direct,30/03/2017
Nottinghamshire County Council,Office / General Equipment,"Children, Families & Cultural Services",Debit,20.26,www.police-supplies.co,30/03/2017
Nottinghamshire County Council,Building Maintenance,"Children, Families & Cultural Services",Debit,21.73,amazon uk marketplace,30/03/2017
Nottinghamshire County Council,Phone - Mobile,"Children, Families & Cultural Services",Debit,24.00,textmagiccom,28/03/2017
Nottinghamshire County Council,Other Fee's & Services,"Children, Families & Cultural Services",Debit,998.07,freds of ilkeston,23/03/2017
Nottinghamshire County Council,Building Maintenance,"Children, Families & Cultural Services",Debit,112.97,screwfix direct,21/03/2017
Nottinghamshire County Council,Phone and Network (Land Lines),"Children, Families & Cultural Services",Debit,24.00,textmagiccom,19/03/2017
Nottinghamshire County Council,Building Maintenance,"Children, Families & Cultural Services",Debit,8.10,willbond plumbing centre,16/03/2017
Nottinghamshire County Council,Phone and Network (Land Lines),"Children, Families & Cultural Services",Debit,24.00,textmagiccom,14/03/2017
Nottinghamshire County Council,Building Maintenance,"Children, Families & Cultural Services",Debit,75.00,amazon uk retail amazon.,13/03/2017
Nottinghamshire County Council,Health & Safety,"Children, Families & Cultural Services",Debit,350.45,www.cellsecurity.co.uk,14/03/2017
Nottinghamshire County Council,Building Maintenance,"Children, Families & Cultural Services",Debit,5.99,amazon uk marketplace,14/03/2017
Nottinghamshire County Council,Building Maintenance,"Children, Families & Cultural Services",Debit,12.51,paypal  ,13/03/2017
Nottinghamshire County Council,Building Maintenance,"Children, Families & Cultural Services",Debit,48.77,midland fixings ltd,10/03/2017
Nottinghamshire County Council,Building Maintenance,"Children, Families & Cultural Services",Debit,21.29,screwfix direct,12/03/2017
Nottinghamshire County Council,Building Maintenance,"Children, Families & Cultural Services",Debit,14.23,amazon uk marketplace,09/03/2017
Nottinghamshire County Council,Building Maintenance,"Children, Families & Cultural Services",Debit,125.00,amazon uk marketplace,09/03/2017
Nottinghamshire County Council,Building Maintenance,"Children, Families & Cultural Services",Debit,124.73,screwfix direct,09/03/2017
Nottinghamshire County Council,Building Maintenance,"Children, Families & Cultural Services",Debit,18.69,amazon uk retail amazon.,09/03/2017
Nottinghamshire County Council,Building Maintenance,"Children, Families & Cultural Services",Debit,20.99,amazon uk marketplace,08/03/2017
Nottinghamshire County Council,Building Maintenance,"Children, Families & Cultural Services",Debit,13.99,amazon uk marketplace,08/03/2017
Nottinghamshire County Council,Building Maintenance,"Children, Families & Cultural Services",Debit,446.90,amazon uk marketplace,07/03/2017
Nottinghamshire County Council,Activities & Support,"Children, Families & Cultural Services",Debit,9.99,lovefilm by post,06/03/2017
Nottinghamshire County Council,Building Maintenance,"Children, Families & Cultural Services",Debit,66.12,rs components,27/01/2017
Nottinghamshire County Council,Building Maintenance,"Children, Families & Cultural Services",Debit,40.18,rs components,27/01/2017
Nottinghamshire County Council,Building Maintenance,"Children, Families & Cultural Services",Debit,71.18,amazon uk marketplace,01/02/2017
Nottinghamshire County Council,Building Maintenance,"Children, Families & Cultural Services",Debit,16.00,amazon uk retail amazon.,01/02/2017
Nottinghamshire County Council,Building Maintenance,"Children, Families & Cultural Services",Debit,79.98,amazon uk marketplace,31/01/2017
Nottinghamshire County Council,Building Maintenance,"Children, Families & Cultural Services",Debit,32.97,amazon uk marketplace,31/01/2017
Nottinghamshire County Council,Building Maintenance,"Children, Families & Cultural Services",Debit,235.74,keyboard specialis,31/01/2017
Nottinghamshire County Council,Phone - Mobile,"Children, Families & Cultural Services",Debit,24.00,textmagiccom,24/01/2017
Nottinghamshire County Council,Clothing And Footwear,"Children, Families & Cultural Services",Debit,141.20,safetybootsuk,24/01/2017
Nottinghamshire County Council,Building Maintenance,"Children, Families & Cultural Services",Debit,62.96,screwfix direct,24/01/2017
Nottinghamshire County Council,Building Maintenance,"Children, Families & Cultural Services",Debit,19.99,screwfix direct,18/01/2017
Nottinghamshire County Council,Clothing And Footwear,"Children, Families & Cultural Services",Debit,168.75,anchor supplies ltd,16/01/2017
Nottinghamshire County Council,Clothing And Footwear,"Children, Families & Cultural Services",Debit,38.97,screwfix direct,17/01/2017
Nottinghamshire County Council,Clothing And Footwear,"Children, Families & Cultural Services",Debit,56.25,anchor supplies ltd,16/01/2017
Nottinghamshire County Council,Building Maintenance,"Children, Families & Cultural Services",Debit,270.60,paypal  wfglazingpr,16/01/2017
Nottinghamshire County Council,Building Maintenance,"Children, Families & Cultural Services",Debit,29.82,amazon uk marketplace,15/01/2017
Nottinghamshire County Council,Building Maintenance,"Children, Families & Cultural Services",Debit,7.98,amazon uk marketplace,14/01/2017
Nottinghamshire County Council,Phone - Mobile,"Children, Families & Cultural Services",Debit,24.00,textmagiccom,12/01/2017
Nottinghamshire County Council,Activities & Support,"Children, Families & Cultural Services",Debit,7.99,lovefilm by post,06/01/2017
Nottinghamshire County Council,Building Maintenance,"Children, Families & Cultural Services",Debit,4.50,amazon uk marketplace,06/01/2017
Nottinghamshire County Council,Phone and Network (Land Lines),"Children, Families & Cultural Services",Debit,24.00,textmagiccom,05/01/2017
Nottinghamshire County Council,Minor Works,"Children, Families & Cultural Services",Debit,137.38,promat uk,05/01/2017
Nottinghamshire County Council,Minor Works,"Children, Families & Cultural Services",Debit,13.59,amazon uk marketplace,04/01/2017
Nottinghamshire County Council,Building Maintenance,"Children, Families & Cultural Services",Debit,7.85,b  q 1241,28/02/2017
Nottinghamshire County Council,Building Maintenance,"Children, Families & Cultural Services",Debit,7.85,b  q 1241,28/02/2017
Nottinghamshire County Council,Building Maintenance,"Children, Families & Cultural Services",Debit,7.85,b  q 1241,28/02/2017
Nottinghamshire County Council,Building Maintenance,"Children, Families & Cultural Services",Debit,14.00,b  q 1039,23/02/2017
Nottinghamshire County Council,Building Maintenance,"Children, Families & Cultural Services",Debit,87.32,dulux decorator centre,10/02/2017
Nottinghamshire County Council,Minor Works,"Children, Families & Cultural Services",Debit,9.60,b  q 1039,10/02/2017
Nottinghamshire County Council,Building Maintenance,"Children, Families & Cultural Services",Debit,2.98,b  q 1039,10/02/2017
Nottinghamshire County Council,Building Maintenance,"Children, Families & Cultural Services",Debit,2.98,b  q 1039,10/02/2017
Nottinghamshire County Council,Building Maintenance,"Children, Families & Cultural Services",Debit,200.00,b  q 1039,10/02/2017
Nottinghamshire County Council,Building Maintenance,"Children, Families & Cultural Services",Debit,3.70,amazon uk marketplace,02/03/2017
Nottinghamshire County Council,Phone - Mobile,"Children, Families & Cultural Services",Debit,24.00,textmagiccom,24/02/2017
Nottinghamshire County Council,Building Maintenance,"Children, Families & Cultural Services",Debit,22.34,amazon uk marketplace,23/02/2017
Nottinghamshire County Council,Stationery,"Children, Families & Cultural Services",Debit,21.48,amazon uk marketplace,23/02/2017
Nottinghamshire County Council,Building Maintenance,"Children, Families & Cultural Services",Debit,282.00,hofmann megaplan uk lt,22/02/2017
Nottinghamshire County Council,Building Maintenance,"Children, Families & Cultural Services",Debit,13.10,amazon uk marketplace,22/02/2017
Nottinghamshire County Council,Building Maintenance,"Children, Families & Cultural Services",Debit,2.39,amazon uk marketplace,22/02/2017
Nottinghamshire County Council,Building Maintenance,"Children, Families & Cultural Services",Debit,5.95,amazon uk marketplace,21/02/2017
Nottinghamshire County Council,Phone - Mobile,"Children, Families & Cultural Services",Debit,24.00,textmagiccom,13/02/2017
Nottinghamshire County Council,Clothing And Footwear,"Children, Families & Cultural Services",Debit,166.17,safetybootsuk,09/02/2017
Nottinghamshire County Council,Activities & Support,"Children, Families & Cultural Services",Debit,9.99,lovefilm by post,06/02/2017
Nottinghamshire County Council,Furniture,"Children, Families & Cultural Services",Debit,"1,128.00",www.officefurnitureonl,03/02/2017
Nottinghamshire County Council,Phone - Mobile,"Children, Families & Cultural Services",Debit,24.00,textmagiccom,03/02/2017
Nottinghamshire County Council,Teaching Equipment,"Children, Families & Cultural Services",Debit,71.97,argos retail group,03/02/2017
Nottinghamshire County Council,Aftercare - Equipment,"Children, Families & Cultural Services",Debit,199.00,argos retail group,02/03/2017
Nottinghamshire County Council,Clients - H & S Equipt,"Children, Families & Cultural Services",Debit,9.60,caffe nero,21/02/2017
Nottinghamshire County Council,Clients - H & S Equipt,"Children, Families & Cultural Services",Debit,3.70,broadmarsh car park up,21/02/2017
Nottinghamshire County Council,Clients - H & S Equipt,"Children, Families & Cultural Services",Debit,30.00,justgiving.com,18/02/2017
Nottinghamshire County Council,Clients - H & S Equipt,"Children, Families & Cultural Services",Debit,3.85,amt coffee,09/02/2017
Nottinghamshire County Council,Clients - H & S Equipt,"Children, Families & Cultural Services",Debit,4.35,st pancras intl,09/02/2017
Nottinghamshire County Council,Clients - H & S Equipt,"Children, Families & Cultural Services",Debit,12.30,lul ticket machine,09/02/2017
Nottinghamshire County Council,Clients - H & S Equipt,"Children, Families & Cultural Services",Debit,5.35,pret a manger,09/02/2017
Nottinghamshire County Council,Clients - H & S Equipt,"Children, Families & Cultural Services",Debit,4.50,crosscountry bhm,08/02/2017
Nottinghamshire County Council,Clients - H & S Equipt,"Children, Families & Cultural Services",Debit,32.07,wm morrisons,08/02/2017
Nottinghamshire County Council,Clients - H & S Equipt,"Children, Families & Cultural Services",Debit,4.80,subway,08/02/2017
Nottinghamshire County Council,Clients - H & S Equipt,"Children, Families & Cultural Services",Debit,8.00,ncp limited,08/02/2017
Nottinghamshire County Council,Clients - H & S Equipt,"Children, Families & Cultural Services",Debit,25.98,carphone warehouse,07/02/2017
Nottinghamshire County Council,Clients - H & S Equipt,"Children, Families & Cultural Services",Debit,12.70,sainsburys s/mkt,31/01/2017
Nottinghamshire County Council,Clients - H & S Equipt,"Children, Families & Cultural Services",Debit,30.00,co-op group food,30/01/2017
Nottinghamshire County Council,Clients - H & S Equipt,"Children, Families & Cultural Services",Debit,93.07,bassetlaw d.c.,20/01/2017
Nottinghamshire County Council,Clients - H & S Equipt,"Children, Families & Cultural Services",Debit,6.48,mcdonalds,20/01/2017
Nottinghamshire County Council,Clients - H & S Equipt,"Children, Families & Cultural Services",Debit,8.68,dominie cross,20/01/2017
Nottinghamshire County Council,Clients - H & S Equipt,"Children, Families & Cultural Services",Debit,0.70,wilko retail limit,20/01/2017
Nottinghamshire County Council,Clients - H & S Equipt,"Children, Families & Cultural Services",Debit,179.99,argos ltd,20/01/2017
Nottinghamshire County Council,Clients - H & S Equipt,"Children, Families & Cultural Services",Debit,55.00,anglian water,20/01/2017
Nottinghamshire County Council,Clients - H & S Equipt,"Children, Families & Cultural Services",Debit,30.00,lul ticket machine,12/01/2017
Nottinghamshire County Council,Clients - H & S Equipt,"Children, Families & Cultural Services",Debit,7.98,wasabi victoria statio,31/03/2017
Nottinghamshire County Council,Clients - H & S Equipt,"Children, Families & Cultural Services",Debit,5.80,cmt (uk) ltd - glasgow,31/03/2017
Nottinghamshire County Council,Aftercare - Equipment,"Children, Families & Cultural Services",Debit,484.00,austins carpets limit,27/03/2017
Nottinghamshire County Council,Aftercare - Equipment,"Children, Families & Cultural Services",Debit,234.97,argos ltd,24/03/2017
Nottinghamshire County Council,Aftercare - Equipment,"Children, Families & Cultural Services",Debit,19.53,sainsburys s/mkt,21/03/2017
Nottinghamshire County Council,Aftercare Lodging/Hostel,"Children, Families & Cultural Services",Debit,42.48,sainsburys s/mkt,21/03/2017
Nottinghamshire County Council,Clients - H & S Equipt,"Children, Families & Cultural Services",Debit,3.07,mcdonalds,21/03/2017
Nottinghamshire County Council,Clients - H & S Equipt,"Children, Families & Cultural Services",Debit,345.79,allpay moto (callpay/ivr,07/03/2017
Nottinghamshire County Council,Activities & Support,"Children, Families & Cultural Services",Debit,19.64,amazon uk retail amazon.,30/03/2017
Nottinghamshire County Council,Activities & Support,"Children, Families & Cultural Services",Debit,18.67,amazon uk marketplace,30/03/2017
Nottinghamshire County Council,Activities & Support,"Children, Families & Cultural Services",Debit,4.56,aldi,28/03/2017
Nottinghamshire County Council,Activities & Support,"Children, Families & Cultural Services",Debit,3.95,amazon uk marketplace,30/03/2017
Nottinghamshire County Council,Activities & Support,"Children, Families & Cultural Services",Debit,5.59,amazon uk marketplace,30/03/2017
Nottinghamshire County Council,Activities & Support,"Children, Families & Cultural Services",Debit,2.65,amazon uk marketplace,30/03/2017
Nottinghamshire County Council,Activities & Support,"Children, Families & Cultural Services",Debit,12.00,book club pay service,28/03/2017
Nottinghamshire County Council,Activities & Support,"Children, Families & Cultural Services",Debit,3.69,amazon uk marketplace,30/03/2017
Nottinghamshire County Council,Activities & Support,"Children, Families & Cultural Services",Debit,1.87,amazon uk marketplace,30/03/2017
Nottinghamshire County Council,Activities & Support,"Children, Families & Cultural Services",Debit,20.99,amazon uk marketplace,30/03/2017
Nottinghamshire County Council,Activities & Support,"Children, Families & Cultural Services",Debit,3.98,b  m retail,14/03/2017
Nottinghamshire County Council,Activities & Support,"Children, Families & Cultural Services",Debit,24.14,amazon uk marketplace,09/03/2017
Nottinghamshire County Council,Activities & Support,"Children, Families & Cultural Services",Debit,49.83,amazon uk marketplace,09/03/2017
Nottinghamshire County Council,Activities & Support,"Children, Families & Cultural Services",Debit,23.49,amazon uk marketplace,09/03/2017
Nottinghamshire County Council,Activities & Support,"Children, Families & Cultural Services",Debit,5.60,amazon uk marketplace,09/03/2017
Nottinghamshire County Council,Activities & Support,"Children, Families & Cultural Services",Debit,14.95,amazon.co.uk,09/03/2017
Nottinghamshire County Council,Activities & Support,"Children, Families & Cultural Services",Debit,23.49,amazon uk retail amazon.,07/03/2017
Nottinghamshire County Council,Activities & Support,"Children, Families & Cultural Services",Debit,7.26,amazon uk marketplace,08/03/2017
Nottinghamshire County Council,Activities & Support,"Children, Families & Cultural Services",Debit,9.55,amazon uk marketplace,08/03/2017
Nottinghamshire County Council,Activities & Support,"Children, Families & Cultural Services",Debit,3.32,amazon uk marketplace,07/03/2017
Nottinghamshire County Council,Activities & Support,"Children, Families & Cultural Services",Debit,29.99,amazon uk retail,13/01/2017
Nottinghamshire County Council,Activities & Support,"Children, Families & Cultural Services",Debit,1.59,amazon uk marketplace,12/01/2017
Nottinghamshire County Council,Activities & Support,"Children, Families & Cultural Services",Debit,6.09,amazon uk marketplace,10/01/2017
Nottinghamshire County Council,Activities & Support,"Children, Families & Cultural Services",Debit,4.85,amazon uk marketplace,10/01/2017
Nottinghamshire County Council,Activities & Support,"Children, Families & Cultural Services",Debit,1.74,amazon uk marketplace,10/01/2017
Nottinghamshire County Council,Activities & Support,"Children, Families & Cultural Services",Debit,7.84,amazon uk marketplace,10/01/2017
Nottinghamshire County Council,Activities & Support,"Children, Families & Cultural Services",Debit,1.44,amazon uk marketplace,09/01/2017
Nottinghamshire County Council,Activities & Support,"Children, Families & Cultural Services",Debit,62.68,amazon uk marketplace,09/01/2017
Nottinghamshire County Council,Activities & Support,"Children, Families & Cultural Services",Debit,7.76,worderyeu,04/01/2017
Nottinghamshire County Council,Activities & Support,"Children, Families & Cultural Services",Debit,16.45,sainsburys s/mkts,15/02/2017
Nottinghamshire County Council,Activities & Support,"Children, Families & Cultural Services",Debit,46.90,amazon uk marketplace,09/02/2017
Nottinghamshire County Council,Activities & Support,"Children, Families & Cultural Services",Debit,10.60,sainsburys s/mkts,07/02/2017
Nottinghamshire County Council,Provisions,"Children, Families & Cultural Services",Debit,33.60,asda superstore 04030,22/02/2017
Nottinghamshire County Council,Provisions,"Children, Families & Cultural Services",Debit,25.05,asda superstore 04030,22/02/2017
Nottinghamshire County Council,Provisions,"Children, Families & Cultural Services",Debit,114.22,asda superstore 04030,14/02/2017
Nottinghamshire County Council,Provisions,"Children, Families & Cultural Services",Debit,20.50,co-op group 065071,10/02/2017
Nottinghamshire County Council,Provisions,"Children, Families & Cultural Services",Debit,15.30,asda superstore 04030,03/02/2017
Nottinghamshire County Council,Provisions,"Children, Families & Cultural Services",Debit,117.05,asda superstore 04030,01/02/2017
Nottinghamshire County Council,Provisions,"Children, Families & Cultural Services",Debit,18.00,co-op group 065071,27/01/2017
Nottinghamshire County Council,Provisions,"Children, Families & Cultural Services",Debit,12.00,co-op group 065071,24/01/2017
Nottinghamshire County Council,Provisions,"Children, Families & Cultural Services",Debit,14.50,co-op group 065071,20/01/2017
Nottinghamshire County Council,Provisions,"Children, Families & Cultural Services",Debit,105.61,asda superstore 04030,11/01/2017
Nottinghamshire County Council,Activities & Support,"Children, Families & Cultural Services",Debit,18.12,tesco stores 5379,02/02/2017
Nottinghamshire County Council,Activities & Support,"Children, Families & Cultural Services",Debit,15.33,sainsburys s/mkts,31/01/2017
Nottinghamshire County Council,Activities & Support,"Children, Families & Cultural Services",Debit,1.85,asda superstore 04030,25/01/2017
Nottinghamshire County Council,Activities & Support,"Children, Families & Cultural Services",Debit,12.85,asda superstore 04030,20/01/2017
Nottinghamshire County Council,Activities & Support,"Children, Families & Cultural Services",Debit,29.42,asda superstore 04030,19/01/2017
Nottinghamshire County Council,Activities & Support,"Children, Families & Cultural Services",Debit,4.53,w m morrisons,16/01/2017
Nottinghamshire County Council,Activities & Support,"Children, Families & Cultural Services",Debit,15.84,tesco stores 5379,09/01/2017
Nottinghamshire County Council,Activities & Support,"Children, Families & Cultural Services",Debit,1.48,tesco stores 5379,05/01/2017
Nottinghamshire County Council,Activities & Support,"Children, Families & Cultural Services",Debit,19.98,tesco stores 3297,17/02/2017
Nottinghamshire County Council,Activities & Support,"Children, Families & Cultural Services",Debit,26.51,tesco stores 3297,17/02/2017
Nottinghamshire County Council,Activities & Support,"Children, Families & Cultural Services",Debit,12.40,asda superstore,08/02/2017
Nottinghamshire County Council,Activities & Support,"Children, Families & Cultural Services",Debit,24.57,asda superstore 04030,28/03/2017
Nottinghamshire County Council,Activities & Support,"Children, Families & Cultural Services",Debit,11.93,asda superstore 04030,23/03/2017
Nottinghamshire County Council,Activities & Support,"Children, Families & Cultural Services",Credit ,-13.00,asda superstore 04030,20/03/2017
Nottinghamshire County Council,Activities & Support,"Children, Families & Cultural Services",Debit,18.09,asda superstore 04030,20/03/2017
Nottinghamshire County Council,Activities & Support,"Children, Families & Cultural Services",Debit,4.56,co-op group 010161,16/03/2017
Nottinghamshire County Council,Activities & Support,"Children, Families & Cultural Services",Debit,14.60,wilko retail limit,16/03/2017
Nottinghamshire County Council,Activities & Support,"Children, Families & Cultural Services",Debit,17.05,asda superstore 04030,16/03/2017
Nottinghamshire County Council,Activities & Support,"Children, Families & Cultural Services",Debit,16.77,w m morrisons,14/03/2017
Nottinghamshire County Council,Activities & Support,"Children, Families & Cultural Services",Debit,10.37,tesco stores 5379,03/01/2017
Nottinghamshire County Council,Activities & Support,"Children, Families & Cultural Services",Debit,35.90,amazon uk marketplace,26/03/2017
Nottinghamshire County Council,Activities & Support,"Children, Families & Cultural Services",Debit,114.05,mimeo,15/03/2017
Nottinghamshire County Council,Activities & Support,"Children, Families & Cultural Services",Debit,65.00,amazon uk retail amazon.,23/03/2017
Nottinghamshire County Council,Activities & Support,"Children, Families & Cultural Services",Debit,124.68,www.headsetco.co.uk,08/03/2017
Nottinghamshire County Council,Activities & Support,"Children, Families & Cultural Services",Debit,73.50,hotel on booking.com,07/03/2017
Nottinghamshire County Council,Activities & Support,"Children, Families & Cultural Services",Debit,203.50,love2shop.co.uk,22/02/2017
Nottinghamshire County Council,Activities & Support,"Children, Families & Cultural Services",Debit,7.26,amazon uk marketplace,17/02/2017
Nottinghamshire County Council,Activities & Support,"Children, Families & Cultural Services",Debit,14.94,amazon uk marketplace,17/02/2017
Nottinghamshire County Council,Activities & Support,"Children, Families & Cultural Services",Debit,36.06,amazon uk marketplace,18/02/2017
Nottinghamshire County Council,Activities & Support,"Children, Families & Cultural Services",Debit,42.73,amazon uk marketplace,14/02/2017
Nottinghamshire County Council,Activities & Support,"Children, Families & Cultural Services",Debit,58.00,amazon uk marketplace,13/02/2017
Nottinghamshire County Council,Activities & Support,"Children, Families & Cultural Services",Debit,44.98,amazon uk marketplace,09/02/2017
Nottinghamshire County Council,Activities & Support,"Children, Families & Cultural Services",Debit,42.75,amazon uk retail,25/01/2017
Nottinghamshire County Council,Activities & Support,"Children, Families & Cultural Services",Debit,110.00,paypal  ,25/01/2017
Nottinghamshire County Council,Activities & Support,"Children, Families & Cultural Services",Debit,15.50,www.johnlewis.com,24/01/2017
Nottinghamshire County Council,Activities & Support,"Children, Families & Cultural Services",Debit,48.96,amazon uk retail amazon.,21/01/2017
Nottinghamshire County Council,Activities & Support,"Children, Families & Cultural Services",Debit,28.73,amazon uk retail amazon.,21/01/2017
Nottinghamshire County Council,Activities & Support,"Children, Families & Cultural Services",Debit,13.98,amazon uk retail,17/01/2017
Nottinghamshire County Council,Activities & Support,"Children, Families & Cultural Services",Debit,104.95,amazon uk marketplace,16/01/2017
Nottinghamshire County Council,Activities & Support,"Children, Families & Cultural Services",Debit,199.02,ges limited,13/01/2017
Nottinghamshire County Council,Activities & Support,"Children, Families & Cultural Services",Debit,19.99,amazon uk marketplace,13/01/2017
Nottinghamshire County Council,Activities & Support,"Children, Families & Cultural Services",Debit,64.99,amazon uk marketplace,13/01/2017
Nottinghamshire County Council,Activities & Support,"Children, Families & Cultural Services",Debit,10.17,amazon uk marketplace,14/01/2017
Nottinghamshire County Council,Activities & Support,"Children, Families & Cultural Services",Debit,102.18,amazon uk marketplace,06/01/2017
Nottinghamshire County Council,Activities & Support,"Children, Families & Cultural Services",Debit,10.50,amazon uk marketplace,06/01/2017
Nottinghamshire County Council,Activities & Support,"Children, Families & Cultural Services",Debit,15.50,www.johnlewis.com,08/01/2017
Nottinghamshire County Council,Activities & Support,"Children, Families & Cultural Services",Debit,86.08,amazon uk retail amazon.,05/01/2017
Nottinghamshire County Council,Activities & Support,"Children, Families & Cultural Services",Debit,23.91,amazon uk marketplace,05/01/2017
Nottinghamshire County Council,Postages,"Children, Families & Cultural Services",Debit,9.78,post office counter,02/02/2017
Nottinghamshire County Council,Postages,"Children, Families & Cultural Services",Debit,11.84,post office counter,26/01/2017
Nottinghamshire County Council,Postages,"Children, Families & Cultural Services",Debit,3.19,post office counter,19/01/2017
Nottinghamshire County Council,Postages,"Children, Families & Cultural Services",Debit,22.93,post office counter,17/01/2017
Nottinghamshire County Council,Postages,"Children, Families & Cultural Services",Debit,3.95,the post office,16/01/2017
Nottinghamshire County Council,Postages,"Children, Families & Cultural Services",Debit,42.44,post office counter,10/01/2017
Nottinghamshire County Council,Postages,"Children, Families & Cultural Services",Debit,2.50,www.edofe.org,06/01/2017
Nottinghamshire County Council,Stationery,"Children, Families & Cultural Services",Debit,"1,920.00",www.edofe.org,06/01/2017
Nottinghamshire County Council,Activities & Support,"Children, Families & Cultural Services",Debit,134.95,www.swi.co.uk,04/01/2017
Nottinghamshire County Council,Postages,"Children, Families & Cultural Services",Debit,11.55,post office counter,20/02/2017
Nottinghamshire County Council,Activities & Support,"Children, Families & Cultural Services",Debit,30.99,www.swi.co.uk,16/02/2017
Nottinghamshire County Council,Postages,"Children, Families & Cultural Services",Debit,16.36,post office counter,16/02/2017
Nottinghamshire County Council,Postages,"Children, Families & Cultural Services",Debit,2.50,www.edofe.org,15/02/2017
Nottinghamshire County Council,Postages,"Children, Families & Cultural Services",Debit,20.67,post office counter,09/02/2017
Nottinghamshire County Council,Postages,"Children, Families & Cultural Services",Debit,40.70,post office counter,06/02/2017
Nottinghamshire County Council,Postages,"Children, Families & Cultural Services",Debit,13.35,post office counter,31/03/2017
Nottinghamshire County Council,Postages,"Children, Families & Cultural Services",Debit,0.10,post office counter,30/03/2017
Nottinghamshire County Council,Postages,"Children, Families & Cultural Services",Debit,19.93,post office counter,30/03/2017
Nottinghamshire County Council,Postages,"Children, Families & Cultural Services",Debit,19.59,post office counter,24/03/2017
Nottinghamshire County Council,Postages,"Children, Families & Cultural Services",Debit,3.95,post office counter,17/03/2017
Nottinghamshire County Council,Postages,"Children, Families & Cultural Services",Debit,2.85,the post office,14/03/2017
Nottinghamshire County Council,Postages,"Children, Families & Cultural Services",Debit,48.03,post office counter,09/03/2017
Nottinghamshire County Council,Stationery,"Children, Families & Cultural Services",Debit,"4,960.00",www.edofe.org,03/03/2017
Nottinghamshire County Council,Postages,"Children, Families & Cultural Services",Debit,11.03,post office counter,03/03/2017
Nottinghamshire County Council,Postages,"Children, Families & Cultural Services",Debit,3.95,post office counter,03/01/2017
Nottinghamshire County Council,Provisions,"Children, Families & Cultural Services",Debit,23.44,sainsburys smkt,03/01/2017
Nottinghamshire County Council,Provisions,"Children, Families & Cultural Services",Debit,27.20,sainsburys smkt,31/03/2017
Nottinghamshire County Council,Provisions,"Children, Families & Cultural Services",Debit,72.95,sainsburys smkt,27/03/2017
Nottinghamshire County Council,Provisions,"Children, Families & Cultural Services",Debit,17.40,sainsburys smkt,24/03/2017
Nottinghamshire County Council,Provisions,"Children, Families & Cultural Services",Debit,7.15,aldi,24/03/2017
Nottinghamshire County Council,Provisions,"Children, Families & Cultural Services",Debit,1.96,sainsburys s/mkts,18/03/2017
Nottinghamshire County Council,Provisions,"Children, Families & Cultural Services",Debit,26.75,sainsburys smkt,19/03/2017
Nottinghamshire County Council,Provisions,"Children, Families & Cultural Services",Debit,6.90,asda superstore,19/03/2017
Nottinghamshire County Council,Provisions,"Children, Families & Cultural Services",Debit,5.20,sainsburys smkt,16/03/2017
Nottinghamshire County Council,Provisions,"Children, Families & Cultural Services",Debit,48.15,sainsburys smkt,13/03/2017
Nottinghamshire County Council,Provisions,"Children, Families & Cultural Services",Debit,5.20,sainsburys s/mkts,11/03/2017
Nottinghamshire County Council,Provisions,"Children, Families & Cultural Services",Debit,37.40,sainsburys smkt,06/03/2017
Nottinghamshire County Council,Provisions,"Children, Families & Cultural Services",Debit,5.10,sainsburys smkt,02/03/2017
Nottinghamshire County Council,Provisions,"Children, Families & Cultural Services",Debit,45.35,sainsburys smkt,27/02/2017
Nottinghamshire County Council,Provisions,"Children, Families & Cultural Services",Debit,16.00,asda superstore,23/02/2017
Nottinghamshire County Council,Provisions,"Children, Families & Cultural Services",Debit,29.30,sainsburys smkt,20/02/2017
Nottinghamshire County Council,Provisions,"Children, Families & Cultural Services",Debit,10.25,sainsburys smkt,13/02/2017
Nottinghamshire County Council,Provisions,"Children, Families & Cultural Services",Debit,39.00,sainsburys smkt,13/02/2017
Nottinghamshire County Council,Provisions,"Children, Families & Cultural Services",Debit,8.80,sainsburys smkt,10/02/2017
Nottinghamshire County Council,Provisions,"Children, Families & Cultural Services",Debit,39.10,sainsburys smkt,06/02/2017
Nottinghamshire County Council,Provisions,"Children, Families & Cultural Services",Debit,17.90,sainsburys smkt,03/02/2017
Nottinghamshire County Council,Provisions,"Children, Families & Cultural Services",Debit,5.52,co op food,04/02/2017
Nottinghamshire County Council,Provisions,"Children, Families & Cultural Services",Debit,14.40,asda superstore,02/02/2017
Nottinghamshire County Council,Provisions,"Children, Families & Cultural Services",Debit,25.50,sainsburys smkt,30/01/2017
Nottinghamshire County Council,Provisions,"Children, Families & Cultural Services",Debit,27.20,sainsburys smkt,27/01/2017
Nottinghamshire County Council,Provisions,"Children, Families & Cultural Services",Debit,12.30,sainsburys smkt,24/01/2017
Nottinghamshire County Council,Provisions,"Children, Families & Cultural Services",Debit,55.85,sainsburys smkt,23/01/2017
Nottinghamshire County Council,Provisions,"Children, Families & Cultural Services",Debit,7.00,sainsburys smkt,20/01/2017
Nottinghamshire County Council,Provisions,"Children, Families & Cultural Services",Debit,27.25,sainsburys smkt,16/01/2017
Nottinghamshire County Council,Provisions,"Children, Families & Cultural Services",Debit,15.30,sainsburys smkt,13/01/2017
Nottinghamshire County Council,Provisions,"Children, Families & Cultural Services",Debit,14.50,asda superstore,13/01/2017
Nottinghamshire County Council,Provisions,"Children, Families & Cultural Services",Debit,47.44,sainsburys smkt,09/01/2017
Nottinghamshire County Council,Provisions,"Children, Families & Cultural Services",Debit,4.80,sainsburys s/mkts,07/01/2017
Nottinghamshire County Council,Other Fee's & Services,"Children, Families & Cultural Services",Debit,11.00,paylink internet,19/01/2017
Nottinghamshire County Council,Other Fee's & Services,"Children, Families & Cultural Services",Debit,11.00,paylink internet,10/01/2017
Nottinghamshire County Council,Other Fee's & Services,"Children, Families & Cultural Services",Debit,11.00,paylink internet,04/01/2017
Nottinghamshire County Council,Other Fee's & Services,"Children, Families & Cultural Services",Debit,129.00,tesco direct,23/02/2017
Nottinghamshire County Council,Other Fee's & Services,"Children, Families & Cultural Services",Debit,145.50,tvlicensing.co.uk,16/02/2017
Nottinghamshire County Council,Other Fee's & Services,"Children, Families & Cultural Services",Debit,145.50,tvlicensing.co.uk,03/02/2017
Nottinghamshire County Council,Provisions,"Children, Families & Cultural Services",Debit,53.37,tesco stores 5437,03/02/2017
Nottinghamshire County Council,Provisions,"Children, Families & Cultural Services",Debit,4.90,sainsburys s/mkts,24/01/2017
Nottinghamshire County Council,Personal Needs,"Children, Families & Cultural Services",Debit,60.22,tesco stores 5437,20/01/2017
Nottinghamshire County Council,Provisions,"Children, Families & Cultural Services",Debit,56.94,tesco stores 5437,16/01/2017
Nottinghamshire County Council,Provisions,"Children, Families & Cultural Services",Debit,46.74,tesco stores 5437,06/01/2017
Nottinghamshire County Council,Personal Needs,"Children, Families & Cultural Services",Debit,1.50,tesco stores 5437,06/01/2017
Nottinghamshire County Council,Provisions,"Children, Families & Cultural Services",Debit,17.91,aldi,24/03/2017
Nottinghamshire County Council,Personal Needs,"Children, Families & Cultural Services",Debit,9.95,supercuts mansfield,16/03/2017
Nottinghamshire County Council,Provisions,"Children, Families & Cultural Services",Debit,50.46,tesco stores 5437,17/03/2017
Nottinghamshire County Council,Provisions,"Children, Families & Cultural Services",Debit,48.16,tesco stores 5437,13/03/2017
Nottinghamshire County Council,Personal Needs,"Children, Families & Cultural Services",Debit,2.00,sainsburys s/mkts,10/03/2017
Nottinghamshire County Council,Provisions,"Children, Families & Cultural Services",Debit,56.61,tesco stores 5437,10/03/2017
Nottinghamshire County Council,Provisions,"Children, Families & Cultural Services",Debit,44.71,tesco stores 5437,03/03/2017
Nottinghamshire County Council,Provisions,"Children, Families & Cultural Services",Debit,103.43,aldi,30/01/2017
Nottinghamshire County Council,Provisions,"Children, Families & Cultural Services",Debit,21.68,aldi,27/01/2017
Nottinghamshire County Council,Personal Needs,"Children, Families & Cultural Services",Debit,97.04,aldi,27/02/2017
Nottinghamshire County Council,Personal Needs,"Children, Families & Cultural Services",Debit,7.40,sainsburys s/mkts,27/02/2017
Nottinghamshire County Council,Provisions,"Children, Families & Cultural Services",Debit,37.87,aldi,24/02/2017
Nottinghamshire County Council,Office / General Equipment,"Adult Social Care, Health & Public Protection ",Debit,1.10,sainsburys s/mkt,27/02/2017
Nottinghamshire County Council,Office / General Equipment,"Adult Social Care, Health & Public Protection ",Debit,28.99,robinsons caravans,27/02/2017
Nottinghamshire County Council,Office / General Equipment,"Adult Social Care, Health & Public Protection ",Debit,2.05,tesco store 3439,13/02/2017
Nottinghamshire County Council,Office / General Equipment,"Adult Social Care, Health & Public Protection ",Debit,1.10,sainsburys s/mkt,30/01/2017
Nottinghamshire County Council,Office / General Equipment,"Adult Social Care, Health & Public Protection ",Debit,1.20,sainsburys local,25/01/2017
Nottinghamshire County Council,Office / General Equipment,"Adult Social Care, Health & Public Protection ",Debit,265.20,parkway secure storage,23/01/2017
Nottinghamshire County Council,Office / General Equipment,"Adult Social Care, Health & Public Protection ",Debit,1.10,sainsburys s/mkt,23/01/2017
Nottinghamshire County Council,Office / General Equipment,"Adult Social Care, Health & Public Protection ",Debit,1.10,sainsburys s/mkt,19/01/2017
Nottinghamshire County Council,Office / General Equipment,"Adult Social Care, Health & Public Protection ",Debit,1.10,sainsburys s/mkt,18/01/2017
Nottinghamshire County Council,Office / General Equipment,"Adult Social Care, Health & Public Protection ",Debit,2.50,tesco store 3439,16/01/2017
Nottinghamshire County Council,Office / General Equipment,"Adult Social Care, Health & Public Protection ",Debit,18.66,screwfix direct,12/01/2017
Nottinghamshire County Council,Office / General Equipment,"Adult Social Care, Health & Public Protection ",Debit,248.43,screwfix direct,09/01/2017
Nottinghamshire County Council,Provisions,"Adult Social Care, Health & Public Protection ",Debit,60.60,sainsburys s/mkt,28/03/2017
Nottinghamshire County Council,Calor Gas,"Adult Social Care, Health & Public Protection ",Debit,28.99,robinsons caravans,27/03/2017
Nottinghamshire County Council,Provisions,"Adult Social Care, Health & Public Protection ",Debit,1.10,sainsburys s/mkt,10/03/2017
Nottinghamshire County Council,Provisions,"Adult Social Care, Health & Public Protection ",Debit,1.10,sainsburys s/mkt,03/03/2017
Nottinghamshire County Council,Subscriptions,"Children, Families & Cultural Services",Debit,91.00,trading standards inst,12/01/2017
Nottinghamshire County Council,Office / General Equipment,"Adult Social Care, Health & Public Protection ",Debit,11.97,aldi,27/01/2017
Nottinghamshire County Council,Office / General Equipment,"Adult Social Care, Health & Public Protection ",Debit,19.30,lidl uk,27/01/2017
Nottinghamshire County Council,Office / General Equipment,"Adult Social Care, Health & Public Protection ",Debit,37.98,bissell direct,27/01/2017
Nottinghamshire County Council,Office / General Equipment,"Adult Social Care, Health & Public Protection ",Debit,9.48,w boyes  co ltd,27/01/2017
Nottinghamshire County Council,Office / General Equipment,"Adult Social Care, Health & Public Protection ",Debit,101.43,tesco stores 5379,17/01/2017
Nottinghamshire County Council,Office / General Equipment,"Adult Social Care, Health & Public Protection ",Debit,13.35,lidl uk,09/01/2017
Nottinghamshire County Council,Office / General Equipment,"Adult Social Care, Health & Public Protection ",Debit,116.40,healthcare direct ltd,04/01/2017
Nottinghamshire County Council,Stationery,"Children, Families & Cultural Services",Debit,11.33,asap stamps ltd,27/01/2017
Nottinghamshire County Council,Furniture,"Children, Families & Cultural Services",Debit,56.99,framescouk,27/01/2017
Nottinghamshire County Council,Personal Needs,"Children, Families & Cultural Services",Debit,44.00,www.asda-photo.co.uk,11/01/2017
Nottinghamshire County Council,Office / General Equipment,"Children, Families & Cultural Services",Debit,24.99,amazon uk retail amazon.,01/03/2017
Nottinghamshire County Council,Office / General Equipment,"Children, Families & Cultural Services",Debit,3.21,amazon uk marketplace,23/02/2017
Nottinghamshire County Council,Office / General Equipment,"Children, Families & Cultural Services",Debit,7.49,amazon uk marketplace,23/02/2017
Nottinghamshire County Council,Computer Equipment,"Children, Families & Cultural Services",Debit,42.20,amazon uk marketplace,09/02/2017
Nottinghamshire County Council,Furniture,"Children, Families & Cultural Services",Debit,42.27,framescouk,08/02/2017
Nottinghamshire County Council,Provisions,"Children, Families & Cultural Services",Debit,171.72,owen taylor  sons,08/02/2017
Nottinghamshire County Council,Furniture,"Children, Families & Cultural Services",Debit,43.81,framescouk,08/02/2017
Nottinghamshire County Council,Stationery,"Children, Families & Cultural Services",Debit,4.97,amazon uk marketplace,28/03/2017
Nottinghamshire County Council,Cleaning Materials,"Children, Families & Cultural Services",Debit,60.99,amazon uk retail amazon.,23/03/2017
Nottinghamshire County Council,Stationery,"Children, Families & Cultural Services",Debit,9.65,amazon uk marketplace,22/03/2017
Nottinghamshire County Council,Provisions,"Children, Families & Cultural Services",Debit,161.18,owen taylor  sons,09/03/2017
Nottinghamshire County Council,Personal Needs,"Children, Families & Cultural Services",Debit,8.05,wm morrisons plc,30/03/2017
Nottinghamshire County Council,Provisions,"Children, Families & Cultural Services",Debit,58.39,aldi,30/03/2017
Nottinghamshire County Council,Provisions,"Children, Families & Cultural Services",Debit,42.45,aldi,25/03/2017
Nottinghamshire County Council,Provisions,"Children, Families & Cultural Services",Debit,1.00,asda store ston in as,15/03/2017
Nottinghamshire County Council,Provisions,"Children, Families & Cultural Services",Debit,3.87,mcdonalds,15/03/2017
Nottinghamshire County Council,Office / General Equipment,"Children, Families & Cultural Services",Debit,58.00,asda store ston in as,15/03/2017
Nottinghamshire County Council,Provisions,"Children, Families & Cultural Services",Debit,30.12,harvester meridian,04/03/2017
Nottinghamshire County Council,Provisions,"Children, Families & Cultural Services",Debit,105.00,j d sports 621,01/03/2017
Nottinghamshire County Council,Provisions,"Children, Families & Cultural Services",Debit,3.87,mcdonalds,01/03/2017
Nottinghamshire County Council,Provisions,"Children, Families & Cultural Services",Debit,34.55,frankie  bennys 5510,26/02/2017
Nottinghamshire County Council,Activities & Support,"Children, Families & Cultural Services",Debit,37.40,payasugym com,09/03/2017
Nottinghamshire County Council,Other Fee's & Services,Resources,Debit,25.00,www.moneyclaim.gov,31/03/2017
Nottinghamshire County Council,Other Fee's & Services,Resources,Debit,25.00,www.moneyclaim.gov,30/03/2017
Nottinghamshire County Council,Other Fee's & Services,Resources,Debit,105.00,www.moneyclaim.gov,31/03/2017
Nottinghamshire County Council,Other Fee's & Services,Resources,Debit,60.00,www.moneyclaim.gov,30/03/2017
Nottinghamshire County Council,Other Fee's & Services,Resources,Debit,105.00,www.moneyclaim.gov,30/03/2017
Nottinghamshire County Council,Other Fee's & Services,Resources,Debit,35.00,www.moneyclaim.gov,29/03/2017
Nottinghamshire County Council,Other Fee's & Services,Resources,Debit,35.00,www.moneyclaim.gov,29/03/2017
Nottinghamshire County Council,Other Fee's & Services,Resources,Debit,25.00,www.moneyclaim.gov,29/03/2017
Nottinghamshire County Council,Other Fee's & Services,Resources,Debit,25.00,www.moneyclaim.gov,28/03/2017
Nottinghamshire County Council,Other Fee's & Services,Resources,Debit,410.00,www.moneyclaim.gov,29/03/2017
Nottinghamshire County Council,Other Fee's & Services,Resources,Debit,25.00,www.moneyclaim.gov,29/03/2017
Nottinghamshire County Council,Other Fee's & Services,Resources,Debit,105.00,www.moneyclaim.gov,28/03/2017
Nottinghamshire County Council,Other Fee's & Services,Resources,Debit,105.00,www.moneyclaim.gov,29/03/2017
Nottinghamshire County Council,Other Fee's & Services,Resources,Debit,35.00,www.moneyclaim.gov,28/03/2017
Nottinghamshire County Council,Other Fee's & Services,Resources,Debit,25.00,www.moneyclaim.gov,28/03/2017
Nottinghamshire County Council,Other Fee's & Services,Resources,Debit,684.30,www.moneyclaim.gov,27/03/2017
Nottinghamshire County Council,Other Fee's & Services,Resources,Debit,25.00,www.moneyclaim.gov,24/03/2017
Nottinghamshire County Council,Other Fee's & Services,Resources,Debit,35.00,www.moneyclaim.gov,24/03/2017
Nottinghamshire County Council,Other Fee's & Services,Resources,Debit,35.00,www.moneyclaim.gov,24/03/2017
Nottinghamshire County Council,Other Fee's & Services,Resources,Debit,35.00,www.moneyclaim.gov,24/03/2017
Nottinghamshire County Council,Other Fee's & Services,Resources,Debit,105.00,www.moneyclaim.gov,23/03/2017
Nottinghamshire County Council,Other Fee's & Services,Resources,Debit,100.00,county court,21/03/2017
Nottinghamshire County Council,Other Fee's & Services,Resources,Debit,10.00,www.gov.uk,14/03/2017
Nottinghamshire County Council,Other Fee's & Services,Resources,Debit,410.00,www.moneyclaim.gov,22/02/2017
Nottinghamshire County Council,Other Fee's & Services,Resources,Debit,25.00,www.moneyclaim.gov,27/01/2017
Nottinghamshire County Council,Other Fee's & Services,Resources,Debit,35.00,www.moneyclaim.gov,25/01/2017
Nottinghamshire County Council,Other Fee's & Services,Resources,Debit,70.00,www.moneyclaim.gov,23/01/2017
Nottinghamshire County Council,Other Fee's & Services,Resources,Debit,105.00,www.moneyclaim.gov,23/01/2017
Nottinghamshire County Council,Other Fee's & Services,Resources,Debit,25.00,www.moneyclaim.gov,19/01/2017
Nottinghamshire County Council,Other Fee's & Services,Resources,Debit,35.00,www.moneyclaim.gov,12/01/2017
Nottinghamshire County Council,Other Fee's & Services,Resources,Debit,35.00,www.moneyclaim.gov,11/01/2017
Nottinghamshire County Council,Other Fee's & Services,Resources,Debit,35.00,www.moneyclaim.gov,11/01/2017
Nottinghamshire County Council,Other Fee's & Services,Resources,Debit,77.00,www.moneyclaim.gov,10/01/2017
Nottinghamshire County Council,Other Fee's & Services,Resources,Debit,185.00,www.moneyclaim.gov,10/01/2017
Nottinghamshire County Council,Other Fee's & Services,Resources,Debit,105.00,www.moneyclaim.gov,05/01/2017
Nottinghamshire County Council,Other Fee's & Services,"Children, Families & Cultural Services",Debit,165.00,paypal  ,24/01/2017
Nottinghamshire County Council,Other Fee's & Services,"Children, Families & Cultural Services",Debit,16.00,paylink internet,17/01/2017
Nottinghamshire County Council,Other Fee's & Services,"Children, Families & Cultural Services",Credit ,-23.40,gro hm passport office,05/01/2017
Nottinghamshire County Council,Other Fee's & Services,"Children, Families & Cultural Services",Debit,23.40,gro hm passport office,05/01/2017
Nottinghamshire County Council,Legal Fees,"Children, Families & Cultural Services",Debit,300.00,www.bannerjones.co.uk,04/01/2017
Nottinghamshire County Council,Other Fee's & Services,"Children, Families & Cultural Services",Debit,30.80,liverpool city council,09/02/2017
Nottinghamshire County Council,Other Fee's & Services,"Children, Families & Cultural Services",Debit,55.75,post office counter,09/02/2017
Nottinghamshire County Council,Legal Fees,"Children, Families & Cultural Services",Debit,215.00,www.justice.gov.uk,06/02/2017
Nottinghamshire County Council,Activities & Support,"Adult Social Care, Health & Public Protection ",Debit,124.87,asda george com leeds,02/03/2017
Nottinghamshire County Council,Activities & Support,"Adult Social Care, Health & Public Protection ",Debit,191.39,asda home shopping,17/02/2017
Nottinghamshire County Council,Activities & Support,"Adult Social Care, Health & Public Protection ",Credit ,-1.59,asda home shopping,17/02/2017
Nottinghamshire County Council,Activities & Support,"Adult Social Care, Health & Public Protection ",Debit,103.54,asda home shopping,03/02/2017
Nottinghamshire County Council,Activities & Support,"Adult Social Care, Health & Public Protection ",Debit,5.00,asda home shopping,02/02/2017
Nottinghamshire County Council,Activities & Support,"Adult Social Care, Health & Public Protection ",Debit,171.73,asda home shopping,20/01/2017
Nottinghamshire County Council,Activities & Support,"Adult Social Care, Health & Public Protection ",Credit ,-10.00,asda home shopping,20/01/2017
Nottinghamshire County Council,Activities & Support,"Adult Social Care, Health & Public Protection ",Credit ,-8.00,asda home shopping,31/03/2017
Nottinghamshire County Council,Activities & Support,"Adult Social Care, Health & Public Protection ",Credit ,-2.12,asda home shopping,31/03/2017
Nottinghamshire County Council,Activities & Support,"Adult Social Care, Health & Public Protection ",Debit,185.27,asda home shopping,31/03/2017
Nottinghamshire County Council,Activities & Support,"Adult Social Care, Health & Public Protection ",Debit,107.75,asda home shopping,24/03/2017
Nottinghamshire County Council,Activities & Support,"Adult Social Care, Health & Public Protection ",Debit,198.44,asda home shopping,18/03/2017
Nottinghamshire County Council,Activities & Support,"Adult Social Care, Health & Public Protection ",Credit ,-4.25,asda home shopping,18/03/2017
Nottinghamshire County Council,Activities & Support,"Adult Social Care, Health & Public Protection ",Debit,54.95,asda george com leeds,15/03/2017
Nottinghamshire County Council,Activities & Support,"Adult Social Care, Health & Public Protection ",Debit,40.94,asda home shopping,10/03/2017
Nottinghamshire County Council,Activities & Support,"Adult Social Care, Health & Public Protection ",Debit,5.00,asda home shopping,06/03/2017
Nottinghamshire County Council,Activities & Support,"Adult Social Care, Health & Public Protection ",Debit,5.00,asda home shopping,01/01/2017
Nottinghamshire County Council,Provisions,"Children, Families & Cultural Services",Debit,7.50,iceland,17/03/2017
Nottinghamshire County Council,Provisions,"Children, Families & Cultural Services",Debit,8.17,asda stores 4475,10/03/2017
Nottinghamshire County Council,Provisions,"Children, Families & Cultural Services",Debit,2.65,misterton foodstre,06/03/2017
Nottinghamshire County Council,Provisions,"Children, Families & Cultural Services",Debit,16.00,farmfoods- worksop,03/03/2017
Nottinghamshire County Council,Provisions,"Children, Families & Cultural Services",Debit,12.95,wilko retail limit,03/03/2017
Nottinghamshire County Council,Provisions,"Children, Families & Cultural Services",Debit,3.59,farmfoods- worksop,30/01/2017
Nottinghamshire County Council,Provisions,"Children, Families & Cultural Services",Debit,8.24,aldi,30/01/2017
Nottinghamshire County Council,Provisions,"Children, Families & Cultural Services",Debit,2.86,bm retail ltd,27/01/2017
Nottinghamshire County Council,Provisions,"Children, Families & Cultural Services",Debit,8.81,aldi,23/01/2017
Nottinghamshire County Council,Provisions,"Children, Families & Cultural Services",Debit,2.50,iceland,20/01/2017
Nottinghamshire County Council,Provisions,"Children, Families & Cultural Services",Debit,6.75,asda stores 4475,18/01/2017
Nottinghamshire County Council,Provisions,"Children, Families & Cultural Services",Debit,3.46,aldi,16/01/2017
Nottinghamshire County Council,Provisions,"Children, Families & Cultural Services",Debit,6.68,farmfoods- worksop,16/01/2017
Nottinghamshire County Council,Provisions,"Children, Families & Cultural Services",Debit,11.95,asda stores 4475,09/01/2017
Nottinghamshire County Council,Provisions,"Children, Families & Cultural Services",Debit,12.86,aldi,01/03/2017
Nottinghamshire County Council,Provisions,"Children, Families & Cultural Services",Debit,7.00,wilko retail limit,27/02/2017
Nottinghamshire County Council,Provisions,"Children, Families & Cultural Services",Debit,6.00,the works,27/02/2017
Nottinghamshire County Council,Provisions,"Children, Families & Cultural Services",Debit,27.98,argos ltd,22/02/2017
Nottinghamshire County Council,Provisions,"Children, Families & Cultural Services",Debit,12.00,cex retford,21/02/2017
Nottinghamshire County Council,Provisions,"Children, Families & Cultural Services",Debit,4.28,misterton foodstre,20/02/2017
Nottinghamshire County Council,Provisions,"Children, Families & Cultural Services",Debit,5.85,aldi,20/02/2017
Nottinghamshire County Council,Provisions,"Children, Families & Cultural Services",Debit,9.50,wilko retail limit,17/02/2017
Nottinghamshire County Council,Provisions,"Children, Families & Cultural Services",Debit,1.40,misterton foodstre,16/02/2017
Nottinghamshire County Council,Provisions,"Children, Families & Cultural Services",Debit,7.98,ryman,15/02/2017
Nottinghamshire County Council,Provisions,"Children, Families & Cultural Services",Debit,72.00,cex retford,14/02/2017
Nottinghamshire County Council,Provisions,"Children, Families & Cultural Services",Debit,14.11,bm retail ltd,14/02/2017
Nottinghamshire County Council,Provisions,"Children, Families & Cultural Services",Debit,7.84,misterton foodstre,13/02/2017
Nottinghamshire County Council,Provisions,"Children, Families & Cultural Services",Debit,14.50,asda superstore,10/02/2017
Nottinghamshire County Council,Provisions,"Children, Families & Cultural Services",Debit,7.83,asda stores 4475,08/02/2017
Nottinghamshire County Council,Provisions,"Children, Families & Cultural Services",Debit,6.00,iceland,07/02/2017
Nottinghamshire County Council,Provisions,"Children, Families & Cultural Services",Debit,2.48,aldi,06/02/2017
Nottinghamshire County Council,Office / General Equipment,"Adult Social Care, Health & Public Protection ",Debit,64.99,halfords 0900,20/02/2017
Nottinghamshire County Council,Staff Training,"Adult Social Care, Health & Public Protection ",Debit,447.94,premier inn44023605,14/02/2017
Nottinghamshire County Council,Subscriptions,"Adult Social Care, Health & Public Protection ",Debit,300.00,trading standards inst,15/02/2017
Nottinghamshire County Council,Office / General Equipment,"Adult Social Care, Health & Public Protection ",Debit,15.00,tesco stores 5437,23/01/2017
Nottinghamshire County Council,Books - General,"Adult Social Care, Health & Public Protection ",Debit,19.15,amazon uk retail,21/01/2017
Nottinghamshire County Council,Postages,"Adult Social Care, Health & Public Protection ",Debit,2.00,royal mail charges,19/01/2017
Nottinghamshire County Council,Postages,"Adult Social Care, Health & Public Protection ",Debit,2.00,royal mail charges,16/01/2017
Nottinghamshire County Council,Other Fee's & Services,"Adult Social Care, Health & Public Protection ",Debit,5.00,gov.uk/dart-charge,16/01/2017
Nottinghamshire County Council,Postages,"Adult Social Care, Health & Public Protection ",Debit,2.00,royal mail charges,16/01/2017
Nottinghamshire County Council,Stationery,"Adult Social Care, Health & Public Protection ",Debit,29.98,currys,09/01/2017
Nottinghamshire County Council,Stationery,"Adult Social Care, Health & Public Protection ",Debit,29.98,currys,09/01/2017
Nottinghamshire County Council,Provisions,"Adult Social Care, Health & Public Protection ",Debit,9.20,tesco stores 5437,05/01/2017
Nottinghamshire County Council,Other Fee's & Services,"Adult Social Care, Health & Public Protection ",Debit,500.00,companies house,17/03/2017
Nottinghamshire County Council,Phone and Network (Land Lines),"Adult Social Care, Health & Public Protection ",Debit,67.07,bt bill payment 2,17/03/2017
Nottinghamshire County Council,Protective Clothing,"Adult Social Care, Health & Public Protection ",Debit,136.00,www.millets.co.uk,08/03/2017
Nottinghamshire County Council,Minor Works,"Children, Families & Cultural Services",Debit,399.98,www.playbark.com,09/03/2017
Nottinghamshire County Council,Minor Works,"Children, Families & Cultural Services",Debit,74.79,amazon uk marketplace,09/03/2017
Nottinghamshire County Council,Minor Works,"Children, Families & Cultural Services",Debit,80.71,amazon uk marketplace,09/03/2017
Nottinghamshire County Council,Minor Works,"Children, Families & Cultural Services",Debit,159.96,amazon uk marketplace,09/03/2017
Nottinghamshire County Council,Minor Works,"Children, Families & Cultural Services",Debit,11.50,aldi,06/03/2017
Nottinghamshire County Council,Minor Works,"Children, Families & Cultural Services",Debit,244.61,paypal  muddyfacesl,03/03/2017
Nottinghamshire County Council,Office / General Equipment,"Children, Families & Cultural Services",Debit,13.65,paypal  trainline,30/01/2017
Nottinghamshire County Council,Office / General Equipment,"Children, Families & Cultural Services",Debit,3.28,wickes,27/01/2017
Nottinghamshire County Council,Office / General Equipment,"Children, Families & Cultural Services",Debit,35.59,paypal  jhtsupplies,23/01/2017
Nottinghamshire County Council,Office / General Equipment,"Children, Families & Cultural Services",Debit,70.60,wickes,19/01/2017
Nottinghamshire County Council,Office / General Equipment,"Children, Families & Cultural Services",Debit,26.15,baytree,11/01/2017
Nottinghamshire County Council,Office / General Equipment,"Children, Families & Cultural Services",Debit,2.00,paypal  instantdisp,10/01/2017
Nottinghamshire County Council,Office / General Equipment,"Children, Families & Cultural Services",Debit,2.00,paypal  instantdisp,09/01/2017
Nottinghamshire County Council,Office / General Equipment,"Children, Families & Cultural Services",Debit,5.25,amazon uk marketplace,09/01/2017
Nottinghamshire County Council,Office / General Equipment,"Children, Families & Cultural Services",Debit,17.39,www.tts-groups.co.uk,04/01/2017
Nottinghamshire County Council,Teaching Equipment,"Children, Families & Cultural Services",Debit,233.92,wwwforestschoolsshop,01/03/2017
Nottinghamshire County Council,Teaching Equipment,"Children, Families & Cultural Services",Debit,279.62,hall fast,28/02/2017
Nottinghamshire County Council,Teaching Equipment,"Children, Families & Cultural Services",Debit,20.00,wm morrisons petro,24/02/2017
Nottinghamshire County Council,Teaching Equipment,"Children, Families & Cultural Services",Debit,18.23,wickes,23/02/2017
Nottinghamshire County Council,Teaching Equipment,"Children, Families & Cultural Services",Debit,7.75,wm morrison store,20/02/2017
Nottinghamshire County Council,Teaching Equipment,"Children, Families & Cultural Services",Debit,6.50,amazon uk marketplace,13/02/2017
Nottinghamshire County Council,Teaching Equipment,"Children, Families & Cultural Services",Debit,6.79,amazon uk marketplace,10/02/2017
Nottinghamshire County Council,Teaching Equipment,"Children, Families & Cultural Services",Debit,6.42,amazon uk marketplace,10/02/2017
Nottinghamshire County Council,Teaching Equipment,"Children, Families & Cultural Services",Debit,18.98,amazon uk retail amazon.,10/02/2017
Nottinghamshire County Council,Teaching Equipment,"Children, Families & Cultural Services",Debit,17.98,amazon uk marketplace,09/02/2017
Nottinghamshire County Council,Teaching Equipment,"Children, Families & Cultural Services",Debit,19.98,amazon uk marketplace,07/02/2017
Nottinghamshire County Council,Activities & Support,"Children, Families & Cultural Services",Debit,2.00,costa arnold,27/02/2017
Nottinghamshire County Council,Activities & Support,"Children, Families & Cultural Services",Debit,5.50,nottingham climbing ce,24/02/2017
Nottinghamshire County Council,Activities & Support,"Children, Families & Cultural Services",Debit,44.20,nottingham climbing ce,03/03/2017
Nottinghamshire County Council,Cleaning Materials,"Adult Social Care, Health & Public Protection ",Debit,43.50,asda  stores 4201,22/03/2017
Nottinghamshire County Council,Cleaning Materials,"Adult Social Care, Health & Public Protection ",Debit,99.00,currys online,14/03/2017
Nottinghamshire County Council,Cleaning Materials,"Adult Social Care, Health & Public Protection ",Debit,5.64,w boyes  co ltd newar,26/01/2017
Nottinghamshire County Council,Cleaning Materials,"Adult Social Care, Health & Public Protection ",Debit,294.00,manage at home moto,25/01/2017
Nottinghamshire County Council,Activities & Support,"Adult Social Care, Health & Public Protection ",Debit,74.60,oriental pearl,15/02/2017
Nottinghamshire County Council,Activities & Support,"Adult Social Care, Health & Public Protection ",Debit,13.76,co-op group 065071,15/02/2017
Nottinghamshire County Council,Clients - H & S Equipt,"Children, Families & Cultural Services",Debit,94.88,argos retail group,24/02/2017
Nottinghamshire County Council,Clients - H & S Equipt,"Children, Families & Cultural Services",Debit,180.00,midland hotel,20/02/2017
Nottinghamshire County Council,Clients - H & S Equipt,"Children, Families & Cultural Services",Credit ,-6.99,argos retail group,16/02/2017
Nottinghamshire County Council,Clients - H & S Equipt,"Children, Families & Cultural Services",Debit,120.00,midland hotel,13/02/2017
Nottinghamshire County Council,Clients - H & S Equipt,"Children, Families & Cultural Services",Debit,190.97,premier inn44011570,10/02/2017
Nottinghamshire County Council,Clients - H & S Equipt,"Children, Families & Cultural Services",Debit,181.90,travelodge gb0000,10/02/2017
Nottinghamshire County Council,Clients - H & S Equipt,"Children, Families & Cultural Services",Credit ,-49.00,travelodge gb0000,10/02/2017
Nottinghamshire County Council,Clients - H & S Equipt,"Children, Families & Cultural Services",Credit ,-121.90,travelodge gb0000,10/02/2017
Nottinghamshire County Council,Clients - H & S Equipt,"Children, Families & Cultural Services",Debit,151.50,igloo accommodatio,07/02/2017
Nottinghamshire County Council,Clients - H & S Equipt,"Children, Families & Cultural Services",Debit,26.45,argos retail group,08/02/2017
Nottinghamshire County Council,Clients - H & S Equipt,"Children, Families & Cultural Services",Debit,43.46,argos retail group,07/02/2017
Nottinghamshire County Council,Aftercare - Equipment,"Children, Families & Cultural Services",Debit,21.99,argos retail group,25/01/2017
Nottinghamshire County Council,Aftercare - Equipment,"Children, Families & Cultural Services",Debit,27.93,argos retail group,25/01/2017
Nottinghamshire County Council,Clients - H & S Equipt,"Children, Families & Cultural Services",Debit,8.99,argos retail group,25/01/2017
Nottinghamshire County Council,Section 17,"Children, Families & Cultural Services",Debit,969.00,dfm sheffield 2,25/01/2017
Nottinghamshire County Council,Aftercare - Equipment,"Children, Families & Cultural Services",Debit,263.98,ao retail limited,24/01/2017
Nottinghamshire County Council,Aftercare - Equipment,"Children, Families & Cultural Services",Debit,599.40,carpetright plc,19/01/2017
Nottinghamshire County Council,Aftercare Lodging/Hostel,"Children, Families & Cultural Services",Debit,412.00,allpay moto (callpay/ivr,17/01/2017
Nottinghamshire County Council,Aftercare - Equipment,"Children, Families & Cultural Services",Debit,39.94,argos retail group,18/01/2017
Nottinghamshire County Council,Aftercare - Equipment,"Children, Families & Cultural Services",Debit,109.99,argos retail group,18/01/2017
Nottinghamshire County Council,Aftercare - Equipment,"Children, Families & Cultural Services",Debit,189.99,currys online,17/01/2017
Nottinghamshire County Council,Aftercare - Equipment,"Children, Families & Cultural Services",Debit,145.50,tvlicensing.co.uk,16/01/2017
Nottinghamshire County Council,Aftercare - Equipment,"Children, Families & Cultural Services",Debit,199.36,argos retail group,16/01/2017
Nottinghamshire County Council,Aftercare - Equipment,"Children, Families & Cultural Services",Debit,145.50,tvlicensing.co.uk,09/01/2017
Nottinghamshire County Council,Aftercare - Equipment,"Children, Families & Cultural Services",Debit,560.99,ao retail limited,30/03/2017
Nottinghamshire County Council,Aftercare - Equipment,"Children, Families & Cultural Services",Debit,234.99,ao retail limited,30/03/2017
Nottinghamshire County Council,Clients - H & S Equipt,"Children, Families & Cultural Services",Debit,14.99,tesco stores 5379,13/03/2017
Nottinghamshire County Council,Legal Fees,Resources,Debit,455.00,www.justice.gov.uk,28/03/2017
Nottinghamshire County Council,Legal Fees,Resources,Debit,455.00,www.justice.gov.uk,23/03/2017
Nottinghamshire County Council,Legal Fees,Resources,Debit,13.00,leic city council,17/03/2017
Nottinghamshire County Council,Legal Fees,Resources,Debit,155.00,county court,20/03/2017
Nottinghamshire County Council,Legal Fees,Resources,Debit,52.20,gotocitrix.com,17/03/2017
Nottinghamshire County Council,Legal Fees,Resources,Debit,10.00,lincolnshire cc card p,17/03/2017
Nottinghamshire County Council,Legal Fees,Resources,Debit,215.00,www.justice.gov.uk,10/03/2017
Nottinghamshire County Council,Legal Fees,Resources,Debit,155.00,www.justice.gov.uk,10/03/2017
Nottinghamshire County Council,Legal Fees,Resources,Debit,"2,055.00",www.justice.gov.uk,10/03/2017
Nottinghamshire County Council,Legal Fees,Resources,Debit,"2,055.00",www.justice.gov.uk,10/03/2017
Nottinghamshire County Council,Legal Fees,Resources,Debit,155.00,www.justice.gov.uk,10/03/2017
Nottinghamshire County Council,Legal Fees,Resources,Debit,155.00,www.justice.gov.uk,10/03/2017
Nottinghamshire County Council,Legal Fees,Resources,Debit,50.00,www.justice.gov.uk,10/03/2017
Nottinghamshire County Council,Legal Fees,Resources,Debit,155.00,www.justice.gov.uk,10/03/2017
Nottinghamshire County Council,Legal Fees,Resources,Debit,455.00,www.justice.gov.uk,10/03/2017
Nottinghamshire County Council,Legal Fees,Resources,Debit,"2,055.00",www.justice.gov.uk,10/03/2017
Nottinghamshire County Council,Legal Fees,Resources,Debit,50.00,www.justice.gov.uk,10/03/2017
Nottinghamshire County Council,Legal Fees,Resources,Debit,50.00,www.justice.gov.uk,10/03/2017
Nottinghamshire County Council,Legal Fees,Resources,Debit,155.00,combined court,10/03/2017
Nottinghamshire County Council,Legal Fees,Resources,Debit,455.00,www.justice.gov.uk,10/03/2017
Nottinghamshire County Council,Legal Fees,Resources,Debit,"2,055.00",www.justice.gov.uk,10/03/2017
Nottinghamshire County Council,Legal Fees,Resources,Debit,24.00,www.shop.emeraldin,10/03/2017
Nottinghamshire County Council,Legal Fees,Resources,Debit,215.00,www.justice.gov.uk,06/03/2017
Nottinghamshire County Council,Legal Fees,Resources,Debit,170.00,www.justice.gov.uk,06/03/2017
Nottinghamshire County Council,Legal Fees,Resources,Debit,11.00,doncaster mbc,27/01/2017
Nottinghamshire County Council,Legal Fees,Resources,Debit,455.00,www.justice.gov.uk,26/01/2017
Nottinghamshire County Council,Legal Fees,Resources,Debit,155.00,www.justice.gov.uk,20/01/2017
Nottinghamshire County Council,Legal Fees,Resources,Debit,155.00,www.justice.gov.uk,20/01/2017
Nottinghamshire County Council,Legal Fees,Resources,Debit,50.00,www.justice.gov.uk,20/01/2017
Nottinghamshire County Council,Legal Fees,Resources,Debit,155.00,www.justice.gov.uk,20/01/2017
Nottinghamshire County Council,Legal Fees,Resources,Debit,"2,055.00",www.justice.gov.uk,20/01/2017
Nottinghamshire County Council,Legal Fees,Resources,Debit,"2,055.00",www.justice.gov.uk,20/01/2017
Nottinghamshire County Council,Legal Fees,Resources,Debit,50.00,www.justice.gov.uk,20/01/2017
Nottinghamshire County Council,Legal Fees,Resources,Debit,5.12,amazon uk marketplace,18/01/2017
Nottinghamshire County Council,Legal Fees,Resources,Debit,2.56,amazon uk marketplace,18/01/2017
Nottinghamshire County Council,Legal Fees,Resources,Debit,5.12,amazon uk marketplace,18/01/2017
Nottinghamshire County Council,Legal Fees,Resources,Debit,52.20,gotocitrix.com,17/01/2017
Nottinghamshire County Council,Legal Fees,Resources,Debit,455.00,www.justice.gov.uk,10/01/2017
Nottinghamshire County Council,Legal Fees,Resources,Debit,11.00,paylink internet,04/01/2017
Nottinghamshire County Council,Legal Fees,Resources,Debit,11.00,paylink internet,04/01/2017
Nottinghamshire County Council,Legal Fees,Resources,Debit,170.00,www.justice.gov.uk,01/03/2017
Nottinghamshire County Council,Legal Fees,Resources,Debit,5.67,amazon uk marketplace,28/02/2017
Nottinghamshire County Council,Legal Fees,Resources,Debit,455.00,www.justice.gov.uk,23/02/2017
Nottinghamshire County Council,Legal Fees,Resources,Debit,52.20,gotocitrix.com,17/02/2017
Nottinghamshire County Council,Legal Fees,Resources,Debit,19.66,amazon uk marketplace,17/02/2017
Nottinghamshire County Council,Legal Fees,Resources,Debit,355.00,county court,17/02/2017
Nottinghamshire County Council,Legal Fees,Resources,Debit,50.00,www.justice.gov.uk,15/02/2017
Nottinghamshire County Council,Legal Fees,Resources,Debit,"2,055.00",www.justice.gov.uk,15/02/2017
Nottinghamshire County Council,Legal Fees,Resources,Debit,215.00,www.justice.gov.uk,15/02/2017
Nottinghamshire County Council,Legal Fees,Resources,Debit,155.00,www.justice.gov.uk,15/02/2017
Nottinghamshire County Council,Legal Fees,Resources,Debit,"2,055.00",www.justice.gov.uk,15/02/2017
Nottinghamshire County Council,Legal Fees,Resources,Debit,"2,055.00",www.justice.gov.uk,15/02/2017
Nottinghamshire County Council,Legal Fees,Resources,Debit,"2,055.00",www.justice.gov.uk,15/02/2017
Nottinghamshire County Council,Legal Fees,Resources,Debit,50.00,www.justice.gov.uk,15/02/2017
Nottinghamshire County Council,Legal Fees,Resources,Debit,155.00,www.justice.gov.uk,15/02/2017
Nottinghamshire County Council,Legal Fees,Resources,Debit,"2,055.00",www.justice.gov.uk,15/02/2017
Nottinghamshire County Council,Legal Fees,Resources,Debit,"2,055.00",www.justice.gov.uk,15/02/2017
Nottinghamshire County Council,Legal Fees,Resources,Debit,"2,055.00",www.justice.gov.uk,15/02/2017
Nottinghamshire County Council,Legal Fees,Resources,Debit,"2,055.00",www.justice.gov.uk,15/02/2017
Nottinghamshire County Council,Legal Fees,Resources,Debit,"2,055.00",www.justice.gov.uk,15/02/2017
Nottinghamshire County Council,Legal Fees,Resources,Debit,50.00,www.justice.gov.uk,15/02/2017
Nottinghamshire County Council,Legal Fees,Resources,Debit,50.00,www.justice.gov.uk,15/02/2017
Nottinghamshire County Council,Legal Fees,Resources,Debit,155.00,www.justice.gov.uk,15/02/2017
Nottinghamshire County Council,Legal Fees,Resources,Debit,"2,055.00",www.justice.gov.uk,15/02/2017
Nottinghamshire County Council,Legal Fees,Resources,Debit,50.00,www.justice.gov.uk,15/02/2017
Nottinghamshire County Council,Legal Fees,Resources,Debit,"2,055.00",www.justice.gov.uk,15/02/2017
Nottinghamshire County Council,Legal Fees,Resources,Debit,355.00,www.justice.gov.uk,14/02/2017
Nottinghamshire County Council,Legal Fees,Resources,Debit,"6,830.08",www.justice.gov.uk,14/02/2017
Nottinghamshire County Council,Legal Fees,Resources,Debit,215.00,combined court,13/02/2017
Nottinghamshire County Council,Legal Fees,Resources,Debit,10.00,bradford met council,09/02/2017
Nottinghamshire County Council,Legal Fees,Resources,Credit ,-10.00,calderdale mbc,09/02/2017
Nottinghamshire County Council,Legal Fees,Resources,Debit,455.00,www.justice.gov.uk,08/02/2017
Nottinghamshire County Council,Legal Fees,Resources,Debit,31.70,calderdale mbc,08/02/2017
Nottinghamshire County Council,Legal Fees,Resources,Debit,455.00,www.justice.gov.uk,08/02/2017
Nottinghamshire County Council,Minor Works,"Children, Families & Cultural Services",Debit,13.99,amazon uk marketplace,24/02/2017
Nottinghamshire County Council,Minor Works,"Children, Families & Cultural Services",Debit,12.45,amazon uk marketplace,22/02/2017
Nottinghamshire County Council,Minor Works,"Children, Families & Cultural Services",Debit,90.29,wm morrison food.com,21/02/2017
Nottinghamshire County Council,Minor Works,"Children, Families & Cultural Services",Debit,130.40,wm morrison food.com,14/02/2017
Nottinghamshire County Council,Minor Works,"Children, Families & Cultural Services",Debit,148.21,wm morrison food.com,13/02/2017
Nottinghamshire County Council,Minor Works,"Children, Families & Cultural Services",Debit,45.98,mountain training,19/01/2017
Nottinghamshire County Council,Minor Works,"Children, Families & Cultural Services",Debit,47.21,amazon uk retail,18/01/2017
Nottinghamshire County Council,Minor Works,"Children, Families & Cultural Services",Debit,923.41,www.woodland-ways.co.u,11/01/2017
Nottinghamshire County Council,Minor Works,"Children, Families & Cultural Services",Debit,48.96,amazon uk marketplace,11/01/2017
Nottinghamshire County Council,Minor Works,"Children, Families & Cultural Services",Debit,"3,200.00",www.belltent.co.uk,11/01/2017
Nottinghamshire County Council,Minor Works,"Children, Families & Cultural Services",Debit,395.00,west notts college,06/01/2017
Nottinghamshire County Council,Minor Works,"Children, Families & Cultural Services",Debit,360.00,british canoeing,21/03/2017
Nottinghamshire County Council,Minor Works,"Children, Families & Cultural Services",Debit,484.80,access expeditions ltd,03/03/2017
Nottinghamshire County Council,Minor Works,"Children, Families & Cultural Services",Debit,96.75,wm morrison food.com,10/03/2017
Nottinghamshire County Council,Minor Works,"Children, Families & Cultural Services",Debit,210.60,access expeditions ltd,03/03/2017
Nottinghamshire County Council,TV Licences,"Adult Social Care, Health & Public Protection ",Debit,145.50,tvlicensing.co.uk,22/03/2017
Nottinghamshire County Council,Office / General Equipment,"Adult Social Care, Health & Public Protection ",Debit,265.20,parkway secure storage,22/03/2017
Nottinghamshire County Council,Cleaning Materials,"Adult Social Care, Health & Public Protection ",Debit,517.32,sp  worklayers ltd,21/03/2017
Nottinghamshire County Council,Calor Gas,"Adult Social Care, Health & Public Protection ",Debit,28.99,robinsons caravans,09/03/2017
Nottinghamshire County Council,Cleaning Materials,"Adult Social Care, Health & Public Protection ",Debit,34.68,sp  worklayers ltd,07/03/2017
Nottinghamshire County Council,Calor Gas,"Adult Social Care, Health & Public Protection ",Debit,28.99,robinsons caravans,01/02/2017
Nottinghamshire County Council,Provisions,"Adult Social Care, Health & Public Protection ",Debit,4.10,tesco store 3439,30/01/2017
Nottinghamshire County Council,Calor Gas,"Adult Social Care, Health & Public Protection ",Debit,28.99,robinsons caravans,24/01/2017
Nottinghamshire County Council,Calor Gas,"Adult Social Care, Health & Public Protection ",Debit,28.99,robinsons caravans,12/01/2017
Nottinghamshire County Council,Other Fee's & Services,"Adult Social Care, Health & Public Protection ",Debit,265.20,parkway secure storage,23/02/2017
Nottinghamshire County Council,Calor Gas,"Adult Social Care, Health & Public Protection ",Debit,28.99,robinsons caravans,20/02/2017
Nottinghamshire County Council,Staff Training,Resources,Debit,479.88,paypal  localinform,09/02/2017
Nottinghamshire County Council,Office / General Equipment,Resources,Debit,27.20,paypal  archtools,23/01/2017
Nottinghamshire County Council,Office / General Equipment,Resources,Debit,144.00,pp birminghamm,23/01/2017
Nottinghamshire County Council,Office / General Equipment,Resources,Debit,22.70,www.dotcomgiftshop,16/01/2017
Nottinghamshire County Council,Office / General Equipment,Resources,Debit,28.14,amazon uk marketplace,10/03/2017
Nottinghamshire County Council,Office / General Equipment,Resources,Debit,11.94,amazon uk marketplace,09/03/2017
Nottinghamshire County Council,Office / General Equipment,Resources,Debit,90.00,estate office,08/03/2017
Nottinghamshire County Council,Office / General Equipment,Resources,Debit,60.00,mm catering,08/03/2017
Nottinghamshire County Council,Office / General Equipment,Resources,Debit,23.97,amazon uk marketplace,03/01/2017
Nottinghamshire County Council,Provisions,"Children, Families & Cultural Services",Debit,3.75,tesco stores 2366,17/03/2017
Nottinghamshire County Council,Provisions,"Children, Families & Cultural Services",Debit,7.19,central eng coop r,16/03/2017
Nottinghamshire County Council,Provisions,"Children, Families & Cultural Services",Debit,107.30,booker limited nottingha,15/03/2017
Nottinghamshire County Council,Provisions,"Children, Families & Cultural Services",Debit,8.00,tesco stores 5329,15/03/2017
Nottinghamshire County Council,Provisions,"Children, Families & Cultural Services",Debit,4.50,sainsburys spmkts,10/03/2017
Nottinghamshire County Council,Provisions,"Children, Families & Cultural Services",Debit,3.00,tesco stores 2366,10/03/2017
Nottinghamshire County Council,Provisions,"Children, Families & Cultural Services",Debit,15.56,asda stores,09/03/2017
Nottinghamshire County Council,Provisions,"Children, Families & Cultural Services",Debit,1.90,tesco stores 2366,30/01/2017
Nottinghamshire County Council,Provisions,"Children, Families & Cultural Services",Debit,2.74,lidl uk,25/01/2017
Nottinghamshire County Council,Provisions,"Children, Families & Cultural Services",Debit,17.31,tesco stores 5329,23/01/2017
Nottinghamshire County Council,Provisions,"Children, Families & Cultural Services",Debit,15.58,tesco stores 3297,19/01/2017
Nottinghamshire County Council,Provisions,"Children, Families & Cultural Services",Debit,124.82,booker limited nottingha,16/01/2017
Nottinghamshire County Council,Provisions,"Children, Families & Cultural Services",Debit,17.07,co-op group 310059,16/01/2017
Nottinghamshire County Council,Provisions,"Children, Families & Cultural Services",Credit ,-9.09,amazon uk marketplace,14/01/2017
Nottinghamshire County Council,Provisions,"Children, Families & Cultural Services",Debit,6.39,lidl uk,09/01/2017
Nottinghamshire County Council,Provisions,"Children, Families & Cultural Services",Debit,1.10,tesco stores 2366,01/03/2017
Nottinghamshire County Council,Provisions,"Children, Families & Cultural Services",Debit,15.00,lidl uk,01/03/2017
Nottinghamshire County Council,Provisions,"Children, Families & Cultural Services",Debit,16.00,tesco stores 5329,27/02/2017
Nottinghamshire County Council,Provisions,"Children, Families & Cultural Services",Debit,69.07,booker limited nottingha,13/02/2017
Nottinghamshire County Council,Provisions,"Children, Families & Cultural Services",Debit,6.00,tesco stores 5329,13/02/2017
Nottinghamshire County Council,Provisions,"Children, Families & Cultural Services",Debit,27.10,poundworld retail,09/02/2017
Nottinghamshire County Council,Provisions,"Children, Families & Cultural Services",Debit,22.25,the range,09/02/2017
Nottinghamshire County Council,Provisions,"Children, Families & Cultural Services",Debit,31.55,hobbycraft,09/02/2017
Nottinghamshire County Council,Provisions,"Children, Families & Cultural Services",Debit,17.38,tesco stores 5329,09/02/2017
Nottinghamshire County Council,Provisions,"Children, Families & Cultural Services",Debit,15.50,tesco stores 5329,06/02/2017
Nottinghamshire County Council,Provisions,"Children, Families & Cultural Services",Debit,31.37,tesco stores 5329,03/02/2017
Nottinghamshire County Council,Provisions,"Adult Social Care, Health & Public Protection ",Debit,499.80,amazon uk marketplace,08/03/2017
Nottinghamshire County Council,Office / General Equipment,Place,Debit,450.90,frontline safety (uk),03/03/2017
Nottinghamshire County Council,Office / General Equipment,Place,Debit,19.00,dvla digital tacho,01/03/2017
Nottinghamshire County Council,Office / General Equipment,Place,Debit,14.45,amazon uk retail,20/02/2017
Nottinghamshire County Council,Office / General Equipment,Place,Debit,37.99,amazon uk marketplace,17/02/2017
Nottinghamshire County Council,Office / General Equipment,Place,Debit,360.00,www.tdi.tc,13/02/2017
Nottinghamshire County Council,Office / General Equipment,Place,Debit,124.00,bq direct,20/01/2017
Nottinghamshire County Council,Office / General Equipment,Place,Debit,50.75,ukbreathalysers lt,19/01/2017
Nottinghamshire County Council,Office / General Equipment,Place,Debit,144.99,halfords on line,10/01/2017
Nottinghamshire County Council,Office / General Equipment,Place,Debit,181.20,keytek vt,05/01/2017
Nottinghamshire County Council,Family Financial Assistance,"Children, Families & Cultural Services",Debit,21.00,notts county council,26/01/2017
Nottinghamshire County Council,Family Financial Assistance,"Children, Families & Cultural Services",Debit,9.25,gro hm passport office,25/01/2017
Nottinghamshire County Council,Family Financial Assistance,"Children, Families & Cultural Services",Debit,9.25,gro hm passport office,25/01/2017
Nottinghamshire County Council,Family Financial Assistance,"Children, Families & Cultural Services",Credit ,-9.25,gro hm passport office,03/01/2017
Nottinghamshire County Council,Family Financial Assistance,"Children, Families & Cultural Services",Debit,9.25,gro hm passport office,15/02/2017
Nottinghamshire County Council,Family Financial Assistance,"Children, Families & Cultural Services",Credit ,-9.25,gro hm passport office,25/01/2017
Nottinghamshire County Council,Family Financial Assistance,"Children, Families & Cultural Services",Debit,34.99,argos retail group,13/02/2017
Nottinghamshire County Council,Family Financial Assistance,"Children, Families & Cultural Services",Credit ,-9.25,gro hm passport office,15/02/2017
Nottinghamshire County Council,Family Financial Assistance,"Children, Families & Cultural Services",Credit ,-21.00,notts county council,06/03/2017
Nottinghamshire County Council,Family Financial Assistance,"Children, Families & Cultural Services",Debit,21.94,argos retail group,03/03/2017
Nottinghamshire County Council,Family Financial Assistance,"Children, Families & Cultural Services",Debit,9.25,gro hm passport office,03/01/2017
Nottinghamshire County Council,Family Financial Assistance,"Children, Families & Cultural Services",Debit,81.62,ashfield district,03/01/2017
Nottinghamshire County Council,Family Financial Assistance,"Children, Families & Cultural Services",Debit,9.25,gro hm passport office,03/01/2017
Nottinghamshire County Council,Activities & Support,"Children, Families & Cultural Services",Debit,10.50,frankie  bennys 5176,21/03/2017
Nottinghamshire County Council,Activities & Support,"Children, Families & Cultural Services",Debit,13.86,wm morrisons,20/03/2017
Nottinghamshire County Council,Activities & Support,"Children, Families & Cultural Services",Debit,7.40,frankie  bennys 5176,13/03/2017
Nottinghamshire County Council,Activities & Support,"Children, Families & Cultural Services",Debit,7.50,upt - emt nottingham rai,10/03/2017
Nottinghamshire County Council,Activities & Support,"Children, Families & Cultural Services",Debit,38.80,east midlands trai,10/03/2017
Nottinghamshire County Council,Activities & Support,"Children, Families & Cultural Services",Debit,7.40,frankie  bennys 5176,06/03/2017
Nottinghamshire County Council,Activities & Support,"Children, Families & Cultural Services",Debit,36.35,odeon upt,16/02/2017
Nottinghamshire County Council,Activities & Support,"Children, Families & Cultural Services",Debit,0.75,wm morrisons,16/02/2017
Nottinghamshire County Council,Activities & Support,"Children, Families & Cultural Services",Debit,20.00,junction fish bar,14/02/2017
Nottinghamshire County Council,Activities & Support,"Children, Families & Cultural Services",Debit,3.79,nisa,14/02/2017
Nottinghamshire County Council,Activities & Support,"Children, Families & Cultural Services",Debit,32.45,t j morris ltd,13/02/2017
Nottinghamshire County Council,Activities & Support,"Children, Families & Cultural Services",Debit,12.86,mcdonalds,11/02/2017
Nottinghamshire County Council,Activities & Support,"Children, Families & Cultural Services",Debit,10.20,sheffield arena,11/02/2017
Nottinghamshire County Council,Activities & Support,"Children, Families & Cultural Services",Debit,2.89,mcdonalds,11/02/2017
Nottinghamshire County Council,Activities & Support,"Children, Families & Cultural Services",Debit,168.00,lkqc,01/02/2017
Nottinghamshire County Council,Activities & Support,"Children, Families & Cultural Services",Debit,13.59,mcdonalds,30/01/2017
Nottinghamshire County Council,Activities & Support,"Children, Families & Cultural Services",Debit,162.45,ticketmaster uk,06/01/2017
Nottinghamshire County Council,Activities & Support,"Children, Families & Cultural Services",Debit,7.47,mcdonalds,10/01/2017
Nottinghamshire County Council,Activities & Support,"Children, Families & Cultural Services",Debit,0.99,home bargains worksop,10/01/2017
Nottinghamshire County Council,Activities & Support,"Children, Families & Cultural Services",Debit,120.35,savoy cinemas work,04/01/2017
Nottinghamshire County Council,Activities & Support,"Children, Families & Cultural Services",Debit,12.00,sainsburys spmkts,02/02/2017
Nottinghamshire County Council,Activities & Support,"Children, Families & Cultural Services",Debit,6.15,sainsburys spmkts,27/01/2017
Nottinghamshire County Council,Activities & Support,"Children, Families & Cultural Services",Debit,12.85,sainsburys s/mkts,26/01/2017
Nottinghamshire County Council,Activities & Support,"Children, Families & Cultural Services",Debit,8.25,sainsburys spmkts,20/01/2017
Nottinghamshire County Council,Activities & Support,"Children, Families & Cultural Services",Debit,48.80,booker limited nottingha,19/01/2017
Nottinghamshire County Council,Activities & Support,"Children, Families & Cultural Services",Debit,13.50,lidl uk,13/01/2017
Nottinghamshire County Council,Activities & Support,"Children, Families & Cultural Services",Debit,6.80,sainsburys spmkts,02/03/2017
Nottinghamshire County Council,Activities & Support,"Children, Families & Cultural Services",Debit,8.61,co-op group 065071,28/02/2017
Nottinghamshire County Council,Activities & Support,"Children, Families & Cultural Services",Debit,63.72,booker limited nottingha,24/02/2017
Nottinghamshire County Council,Activities & Support,"Children, Families & Cultural Services",Debit,6.00,sainsburys spmkts,23/02/2017
Nottinghamshire County Council,Activities & Support,"Children, Families & Cultural Services",Debit,8.90,sainsburys spmkts,21/02/2017
Nottinghamshire County Council,Activities & Support,"Children, Families & Cultural Services",Debit,25.96,decathlon,20/02/2017
Nottinghamshire County Council,Activities & Support,"Children, Families & Cultural Services",Debit,19.64,aldi,17/02/2017
Nottinghamshire County Council,Activities & Support,"Children, Families & Cultural Services",Debit,4.50,sainsburys s/mkt,16/02/2017
Nottinghamshire County Council,Activities & Support,"Children, Families & Cultural Services",Debit,7.70,sainsburys spmkts,14/02/2017
Nottinghamshire County Council,Activities & Support,"Children, Families & Cultural Services",Debit,50.68,booker limited nottingha,10/02/2017
Nottinghamshire County Council,Activities & Support,"Children, Families & Cultural Services",Debit,14.07,lidl uk,09/02/2017
Nottinghamshire County Council,Activities & Support,"Children, Families & Cultural Services",Debit,8.05,sainsburys spmkts,07/02/2017
Nottinghamshire County Council,Activities & Support,"Children, Families & Cultural Services",Debit,24.97,lidl uk,17/03/2017
Nottinghamshire County Council,Activities & Support,"Children, Families & Cultural Services",Debit,20.49,tesco stores 3297,16/03/2017
Nottinghamshire County Council,Activities & Support,"Children, Families & Cultural Services",Debit,41.44,booker limited nottingha,13/03/2017
Nottinghamshire County Council,Activities & Support,"Children, Families & Cultural Services",Debit,7.43,lidl uk,10/03/2017
Nottinghamshire County Council,Activities & Support,"Children, Families & Cultural Services",Debit,7.33,lidl uk,09/03/2017
Nottinghamshire County Council,Activities & Support,"Children, Families & Cultural Services",Debit,18.55,tesco stores 3297,07/03/2017
Nottinghamshire County Council,Activities & Support,"Children, Families & Cultural Services",Debit,21.59,lidl uk,03/03/2017
Nottinghamshire County Council,Contract Car Parking ,"Children, Families & Cultural Services",Debit,10.00,bassetlaw d.c.,07/03/2017
Nottinghamshire County Council,Other Fee's & Services,"Children, Families & Cultural Services",Debit,9.25,gro hm passport office,06/03/2017
Nottinghamshire County Council,Contract Car Parking ,"Children, Families & Cultural Services",Debit,10.00,bassetlaw d.c.,03/01/2017
Nottinghamshire County Council,Contract Car Parking ,"Children, Families & Cultural Services",Debit,10.00,bassetlaw d.c.,20/02/2017
Nottinghamshire County Council,Foster Carers Equipment,"Children, Families & Cultural Services",Debit,125.00,tesco direct,15/02/2017
Nottinghamshire County Council,Office / General Equipment,"Children, Families & Cultural Services",Debit,100.00,heads yard,13/01/2017
Nottinghamshire County Council,Aftercare Lodging/Hostel,"Children, Families & Cultural Services",Debit,86.71,bassetlaw district cou,13/01/2017
Nottinghamshire County Council,Personal Needs,"Children, Families & Cultural Services",Debit,51.69,amz party delights l,23/01/2017
Nottinghamshire County Council,Other Fee's & Services,"Children, Families & Cultural Services",Debit,65.00,pcs fa health ltd,01/03/2017
Nottinghamshire County Council,Aftercare Lodging/Hostel,"Children, Families & Cultural Services",Debit,5.30,wilko retail limit,08/01/2017
Nottinghamshire County Council,Staff Training,Resources ,Debit,234.00,eb  adass careapps con,01/02/2017
Nottinghamshire County Council,Software Purchases,Resources ,Debit,119.26,fsprg.com vueminder,25/01/2017
Nottinghamshire County Council,Software Purchases,Resources ,Debit,122.39,dnh godaddy.com europe,24/01/2017
Nottinghamshire County Council,Software Purchases,Resources ,Debit,87.51,pure chat inc,23/01/2017
Nottinghamshire County Council,Software Purchases,Resources ,Debit,126.26,bc.basecamp 112397,12/01/2017
Nottinghamshire County Council,Network Maintenance,Resources ,Debit,734.36,dnh godaddy.com europe,12/01/2017
Nottinghamshire County Council,Software Purchases,Resources ,Debit,87.00,pure chat inc,23/02/2017
Nottinghamshire County Council,Software Purchases,Resources ,Debit,176.36,dnh godaddy.com europe,21/02/2017
Nottinghamshire County Council,Software Purchases,Resources ,Debit,123.34,bc.basecamp 112397,12/02/2017
Nottinghamshire County Council,Agency Staff,Resources ,Debit,"1,035.78",wpy modern dev,03/02/2017
Nottinghamshire County Council,Software Purchases,Resources ,Debit,20.67,github.com  dg6q2,03/02/2017
Nottinghamshire County Council,Software Purchases,Resources ,Debit,21.10,github.com  dg6q2,03/01/2017
Nottinghamshire County Council,Software Purchases,Resources ,Debit,170.40,eccouncil,31/03/2017
Nottinghamshire County Council,Software Purchases,Resources ,Debit,170.60,eccouncil,25/03/2017
Nottinghamshire County Council,Software Purchases,Resources ,Debit,86.76,pure chat inc,23/03/2017
Nottinghamshire County Council,Software Purchases,Resources ,Debit,32.32,jam software gmbh,21/03/2017
Nottinghamshire County Council,Hospitality,Resources ,Debit,271.50,marksspencer plc,16/03/2017
Nottinghamshire County Council,Software Purchases,Resources ,Debit,126.38,bc.basecamp 112397,12/03/2017
Nottinghamshire County Council,Books - General,Resources ,Credit ,-148.49,amz amazon.co.uk,08/03/2017
Nottinghamshire County Council,Books - General,Resources ,Debit,88.49,amazon uk retail amazon.,07/03/2017
Nottinghamshire County Council,Books - General,Resources ,Debit,148.49,amazon uk retail amazon.,07/03/2017
Nottinghamshire County Council,Staff Training,Resources ,Debit,234.00,eb  adass careapps con,06/03/2017
Nottinghamshire County Council,Software Purchases,Resources ,Debit,21.08,github.com  dg6q2,03/03/2017
Nottinghamshire County Council,Activities & Support,"Children, Families & Cultural Services",Debit,42.70,nottingham climbing ce,03/02/2017
Nottinghamshire County Council,Activities & Support,"Children, Families & Cultural Services",Debit,13.50,tesco stores 5437,03/02/2017
Nottinghamshire County Council,Activities & Support,"Children, Families & Cultural Services",Debit,41.70,nottingham climbing ce,13/01/2017
Nottinghamshire County Council,Provisions,"Children, Families & Cultural Services",Debit,6.57,asda stores 4474,01/02/2017
Nottinghamshire County Council,Provisions,"Children, Families & Cultural Services",Debit,6.84,heron foods ltd,31/01/2017
Nottinghamshire County Council,Provisions,"Children, Families & Cultural Services",Debit,32.07,tesco stores 2995,31/01/2017
Nottinghamshire County Council,Provisions,"Children, Families & Cultural Services",Debit,11.15,tesco stores 2995,26/01/2017
Nottinghamshire County Council,Provisions,"Children, Families & Cultural Services",Debit,17.67,w boyes  co ltd,26/01/2017
Nottinghamshire County Council,Provisions,"Children, Families & Cultural Services",Debit,5.11,tesco stores 5091,20/01/2017
Nottinghamshire County Council,Provisions,"Children, Families & Cultural Services",Debit,6.77,w boyes  co ltd,19/01/2017
Nottinghamshire County Council,Provisions,"Children, Families & Cultural Services",Debit,3.12,tesco stores 2995,17/01/2017
Nottinghamshire County Council,Provisions,"Children, Families & Cultural Services",Debit,14.37,bm retail,13/01/2017
Nottinghamshire County Council,Provisions,"Children, Families & Cultural Services",Debit,12.27,w boyes  co ltd,12/01/2017
Nottinghamshire County Council,Provisions,"Children, Families & Cultural Services",Debit,5.30,tesco stores 2995,12/01/2017
Nottinghamshire County Council,Provisions,"Children, Families & Cultural Services",Debit,46.95,tesco stores 2995,10/01/2017
Nottinghamshire County Council,Provisions,"Children, Families & Cultural Services",Debit,4.55,tesco stores 5091,24/02/2017
Nottinghamshire County Council,Provisions,"Children, Families & Cultural Services",Debit,6.00,one stop 3018,22/02/2017
Nottinghamshire County Council,Provisions,"Children, Families & Cultural Services",Debit,7.24,heron foods ltd,22/02/2017
Nottinghamshire County Council,Provisions,"Children, Families & Cultural Services",Debit,4.02,tesco stores 5091,17/02/2017
Nottinghamshire County Council,Provisions,"Children, Families & Cultural Services",Debit,25.78,bm retail,15/02/2017
Nottinghamshire County Council,Provisions,"Children, Families & Cultural Services",Debit,5.99,heron foods ltd,08/02/2017
Nottinghamshire County Council,Provisions,"Children, Families & Cultural Services",Debit,6.97,w boyes  co ltd,08/02/2017
Nottinghamshire County Council,Provisions,"Children, Families & Cultural Services",Debit,8.15,asda  stores 4201,03/02/2017
Nottinghamshire County Council,Provisions,"Children, Families & Cultural Services",Debit,1.29,heron foods ltd,23/03/2017
Nottinghamshire County Council,Provisions,"Children, Families & Cultural Services",Debit,3.96,w boyes  co ltd,23/03/2017
Nottinghamshire County Council,Provisions,"Children, Families & Cultural Services",Debit,3.05,heron foods ltd,21/03/2017
Nottinghamshire County Council,Provisions,"Children, Families & Cultural Services",Debit,4.99,tesco stores 5091,17/03/2017
Nottinghamshire County Council,Provisions,"Children, Families & Cultural Services",Debit,7.98,w boyes  co ltd,15/03/2017
Nottinghamshire County Council,Provisions,"Children, Families & Cultural Services",Debit,5.20,tesco stores 2995,14/03/2017
Nottinghamshire County Council,Provisions,"Children, Families & Cultural Services",Debit,45.33,tesco stores 2995,14/03/2017
Nottinghamshire County Council,Provisions,"Children, Families & Cultural Services",Debit,10.05,one stop 3018,08/03/2017
Nottinghamshire County Council,Provisions,"Children, Families & Cultural Services",Debit,7.48,w boyes  co ltd,07/03/2017
Nottinghamshire County Council,Training Fees,"Adult Social Care, Health & Public Protection ",Debit,"1,418.97",currys online,07/03/2017
Nottinghamshire County Council,Training Fees,"Adult Social Care, Health & Public Protection ",Debit,254.98,currys,01/03/2017
Nottinghamshire County Council,Training Fees,"Adult Social Care, Health & Public Protection ",Debit,51.34,asda store ston in as,01/03/2017
Nottinghamshire County Council,Training Fees,"Adult Social Care, Health & Public Protection ",Debit,8.97,b  m retail,01/03/2017
Nottinghamshire County Council,Training Fees,"Adult Social Care, Health & Public Protection ",Debit,93.33,aldi,01/03/2017
Nottinghamshire County Council,Training Fees,"Adult Social Care, Health & Public Protection ",Debit,163.74,capital hb ltd,24/02/2017
Nottinghamshire County Council,Training Fees,"Adult Social Care, Health & Public Protection ",Debit,66.00,pp amelectric,24/02/2017
Nottinghamshire County Council,Training Fees,"Adult Social Care, Health & Public Protection ",Debit,190.97,cvle / mplc,20/02/2017
Nottinghamshire County Council,Training Fees,"Adult Social Care, Health & Public Protection ",Debit,7.50,b  q 1261,05/01/2017
Nottinghamshire County Council,Training Fees,"Adult Social Care, Health & Public Protection ",Debit,1.52,b  q 1261,05/01/2017
Nottinghamshire County Council,Training Fees,"Adult Social Care, Health & Public Protection ",Debit,1.00,b  q 1261,05/01/2017
Nottinghamshire County Council,Training Fees,"Adult Social Care, Health & Public Protection ",Debit,7.85,b  q 1261,05/01/2017
Nottinghamshire County Council,Training Fees,"Adult Social Care, Health & Public Protection ",Debit,7.68,b  q 1261,05/01/2017
Nottinghamshire County Council,Training Fees,"Adult Social Care, Health & Public Protection ",Debit,3.50,b  q 1261,05/01/2017
Nottinghamshire County Council,Training Fees,"Adult Social Care, Health & Public Protection ",Debit,7.82,b  q 1261,05/01/2017
Nottinghamshire County Council,Training Fees,"Adult Social Care, Health & Public Protection ",Debit,9.00,b  q 1261,05/01/2017
Nottinghamshire County Council,Training Fees,"Adult Social Care, Health & Public Protection ",Debit,3.08,b  q 1261,05/01/2017
Nottinghamshire County Council,Training Fees,"Adult Social Care, Health & Public Protection ",Debit,1.00,b  q 1261,05/01/2017
Nottinghamshire County Council,Training Fees,"Adult Social Care, Health & Public Protection ",Debit,7.93,b  q 1261,05/01/2017
Nottinghamshire County Council,Training Fees,"Adult Social Care, Health & Public Protection ",Debit,1.52,b  q 1261,05/01/2017
Nottinghamshire County Council,Training Fees,"Adult Social Care, Health & Public Protection ",Debit,1.00,b  q 1261,05/01/2017
Nottinghamshire County Council,Training Fees,"Adult Social Care, Health & Public Protection ",Debit,234.04,asda store ston in as,02/02/2017
Nottinghamshire County Council,Training Fees,"Adult Social Care, Health & Public Protection ",Debit,5.98,amazon uk marketplace,27/01/2017
Nottinghamshire County Council,Training Fees,"Adult Social Care, Health & Public Protection ",Debit,12.70,amazon uk marketplace,27/01/2017
Nottinghamshire County Council,Training Fees,"Adult Social Care, Health & Public Protection ",Debit,52.09,amazon uk marketplace,26/01/2017
Nottinghamshire County Council,Training Fees,"Adult Social Care, Health & Public Protection ",Debit,142.74,amazon uk marketplace,25/01/2017
Nottinghamshire County Council,Training Fees,"Adult Social Care, Health & Public Protection ",Debit,204.00,a b waste disposal ltd,25/01/2017
Nottinghamshire County Council,Training Fees,"Adult Social Care, Health & Public Protection ",Debit,16.02,amazon uk retail,21/01/2017
Nottinghamshire County Council,Training Fees,"Adult Social Care, Health & Public Protection ",Debit,14.95,amazon uk retail,20/01/2017
Nottinghamshire County Council,Training Fees,"Adult Social Care, Health & Public Protection ",Debit,86.79,amazon uk marketplace,19/01/2017
Nottinghamshire County Council,Training Fees,"Adult Social Care, Health & Public Protection ",Debit,103.15,ikea limited,18/01/2017
Nottinghamshire County Council,Training Fees,"Adult Social Care, Health & Public Protection ",Debit,190.97,cvle / mplc,13/01/2017
Nottinghamshire County Council,Training Fees,"Adult Social Care, Health & Public Protection ",Debit,7.86,amazon uk retail amazon.,12/01/2017
Nottinghamshire County Council,Training Fees,"Adult Social Care, Health & Public Protection ",Debit,2.75,amazon uk marketplace,13/01/2017
Nottinghamshire County Council,Training Fees,"Adult Social Care, Health & Public Protection ",Debit,54.96,amari nottingham,13/01/2017
Nottinghamshire County Council,Training Fees,"Adult Social Care, Health & Public Protection ",Debit,114.99,amazon uk marketplace,12/01/2017
Nottinghamshire County Council,Training Fees,"Adult Social Care, Health & Public Protection ",Debit,181.66,currys,12/01/2017
Nottinghamshire County Council,Training Fees,"Adult Social Care, Health & Public Protection ",Debit,10.00,sainsburys s/mkts,09/01/2017
Nottinghamshire County Council,Training Fees,"Adult Social Care, Health & Public Protection ",Debit,21.62,aldi,09/01/2017
Nottinghamshire County Council,Training Fees,"Adult Social Care, Health & Public Protection ",Debit,107.48,amazon uk marketplace,07/01/2017
Nottinghamshire County Council,Training Fees,"Adult Social Care, Health & Public Protection ",Debit,429.98,argos ltd,06/01/2017
Nottinghamshire County Council,Clients - H & S Equipt,"Children, Families & Cultural Services",Debit,10.13,tesco-stores-5705,31/01/2017
Nottinghamshire County Council,Clients - H & S Equipt,"Children, Families & Cultural Services",Debit,11.78,homebase ltd 088,31/01/2017
Nottinghamshire County Council,Aftercare Lodging/Hostel,"Children, Families & Cultural Services",Debit,63.57,ncc internet,30/01/2017
Nottinghamshire County Council,Clients - H & S Equipt,"Children, Families & Cultural Services",Debit,10.48,sainsburys smkt,20/01/2017
Nottinghamshire County Council,Clients - H & S Equipt,"Children, Families & Cultural Services",Debit,1.39,tesco stores 5329,16/01/2017
Nottinghamshire County Council,Aftercare - Equipment,"Children, Families & Cultural Services",Debit,95.88,the range,02/03/2017
Nottinghamshire County Council,Clients - H & S Equipt,"Children, Families & Cultural Services",Debit,5.40,starbucks,02/03/2017
Nottinghamshire County Council,Clients - H & S Equipt,"Children, Families & Cultural Services",Debit,1.80,euro car parks,02/03/2017
Nottinghamshire County Council,Aftercare - Equipment,"Children, Families & Cultural Services",Debit,230.00,furniture market,02/03/2017
Nottinghamshire County Council,Clients - H & S Equipt,"Children, Families & Cultural Services",Debit,13.48,sainsburys smkt,28/02/2017
Nottinghamshire County Council,Clients - H & S Equipt,"Children, Families & Cultural Services",Debit,3.80,ginger cow catering co,28/02/2017
Nottinghamshire County Council,Aftercare - Equipment,"Children, Families & Cultural Services",Debit,203.81,argos retail group,27/02/2017
Nottinghamshire County Council,Aftercare - Equipment,"Children, Families & Cultural Services",Debit,108.46,www.allpay e-com/app,24/02/2017
Nottinghamshire County Council,Clients - H & S Equipt,"Children, Families & Cultural Services",Debit,2.10,w m morrisons cafe,24/02/2017
Nottinghamshire County Council,Aftercare Lodging/Hostel,"Children, Families & Cultural Services",Debit,725.98,www.nicholasjhumphreys.c,16/02/2017
Nottinghamshire County Council,Aftercare - Equipment,"Children, Families & Cultural Services",Debit,200.00,furniture market,14/02/2017
Nottinghamshire County Council,Aftercare - Equipment,"Children, Families & Cultural Services",Debit,6.98,bm retail ltd,14/02/2017
Nottinghamshire County Council,Aftercare - Equipment,"Children, Families & Cultural Services",Debit,22.26,the range,14/02/2017
Nottinghamshire County Council,Clients - H & S Equipt,"Children, Families & Cultural Services",Debit,4.65,w m morrisons cafe,24/03/2017
Nottinghamshire County Council,Aftercare - Equipment,"Children, Families & Cultural Services",Credit ,-18.99,currys online,22/03/2017
Nottinghamshire County Council,Aftercare - Equipment,"Children, Families & Cultural Services",Credit ,-359.98,currys online,10/03/2017
Nottinghamshire County Council,Clients - H & S Equipt,"Children, Families & Cultural Services",Debit,1.80,euro car parks,22/03/2017
Nottinghamshire County Council,Aftercare - Equipment,"Children, Families & Cultural Services",Debit,620.00,furniture market,22/03/2017
Nottinghamshire County Council,Aftercare - Equipment,"Children, Families & Cultural Services",Debit,624.97,currys online,22/03/2017
Nottinghamshire County Council,Clients - H & S Equipt,"Children, Families & Cultural Services",Debit,7.15,starbucks,22/03/2017
Nottinghamshire County Council,Aftercare - Equipment,"Children, Families & Cultural Services",Debit,596.39,www.nicholasjhumphreys.c,22/03/2017
Nottinghamshire County Council,Aftercare - Equipment,"Children, Families & Cultural Services",Debit,145.50,tvlicensing.co.uk,10/03/2017
Nottinghamshire County Council,Aftercare - Equipment,"Children, Families & Cultural Services",Debit,359.98,currys online,10/03/2017
Nottinghamshire County Council,Clients - H & S Equipt,"Children, Families & Cultural Services",Debit,48.00,severn trent water,03/03/2017
Nottinghamshire County Council,Aftercare - Equipment,"Children, Families & Cultural Services",Debit,550.78,preston  toft floorin,03/03/2017
Nottinghamshire County Council,Office / General Equipment,"Children, Families & Cultural Services",Debit,47.47,tenease elbow device,24/03/2017
Nottinghamshire County Council,Office / General Equipment,"Children, Families & Cultural Services",Debit,26.00,times newspapers ltd,22/03/2017
Nottinghamshire County Council,Office / General Equipment,"Children, Families & Cultural Services",Debit,45.00,the first service co,08/03/2017
Nottinghamshire County Council,Office / General Equipment,"Children, Families & Cultural Services",Debit,26.00,times newspapers ltd,22/02/2017
Nottinghamshire County Council,Office / General Equipment,"Children, Families & Cultural Services",Debit,30.00,http://www.derbyshire.,21/02/2017
Nottinghamshire County Council,Office / General Equipment,"Children, Families & Cultural Services",Debit,26.00,times newspapers ltd,22/01/2017
Nottinghamshire County Council,Office / General Equipment,"Children, Families & Cultural Services",Debit,190.80,acm training,18/01/2017
Nottinghamshire County Council,Other Fee's & Services,"Children, Families & Cultural Services",Debit,46.80,gro hm passport office,02/02/2017
Nottinghamshire County Council,Other Fee's & Services,"Children, Families & Cultural Services",Debit,12.00,northumberland cc crd,19/01/2017
Nottinghamshire County Council,Other Fee's & Services,"Children, Families & Cultural Services",Debit,11.00,paylink internet,18/01/2017
Nottinghamshire County Council,Other Fee's & Services,"Children, Families & Cultural Services",Debit,9.25,gro hm passport office,04/01/2017
Nottinghamshire County Council,Other Fee's & Services,"Children, Families & Cultural Services",Debit,11.00,paylink internet,03/02/2017
Nottinghamshire County Council,Other Fee's & Services,"Children, Families & Cultural Services",Debit,46.00,ips durham contact ctr,31/03/2017
Nottinghamshire County Council,Other Fee's & Services,"Children, Families & Cultural Services",Debit,11.00,paylink internet,28/03/2017
Nottinghamshire County Council,Provisions,"Adult Social Care, Health & Public Protection ",Debit,18.75,tesco stores 2995,23/03/2017
Nottinghamshire County Council,Provisions,"Adult Social Care, Health & Public Protection ",Debit,145.50,tvlicensing.co.uk,16/03/2017
Nottinghamshire County Council,Provisions,"Adult Social Care, Health & Public Protection ",Debit,33.85,cmpcareshop,16/03/2017
Nottinghamshire County Council,Provisions,"Adult Social Care, Health & Public Protection ",Debit,80.75,www.hcsuk.co.uk,16/03/2017
Nottinghamshire County Council,Provisions,"Adult Social Care, Health & Public Protection ",Debit,4.99,amazon uk marketplace,12/03/2017
Nottinghamshire County Council,Provisions,"Adult Social Care, Health & Public Protection ",Debit,32.67,amazon uk marketplace,10/03/2017
Nottinghamshire County Council,Provisions,"Adult Social Care, Health & Public Protection ",Debit,29.78,amazon uk marketplace,09/03/2017
Nottinghamshire County Council,Provisions,"Adult Social Care, Health & Public Protection ",Debit,14.26,amazon uk marketplace,09/03/2017
Nottinghamshire County Council,Provisions,"Adult Social Care, Health & Public Protection ",Debit,22.73,amazon uk marketplace,27/02/2017
Nottinghamshire County Council,Provisions,"Adult Social Care, Health & Public Protection ",Debit,12.50,tesco stores 2995,31/01/2017
Nottinghamshire County Council,Provisions,"Adult Social Care, Health & Public Protection ",Debit,109.80,cmpcareshop,26/01/2017
Nottinghamshire County Council,Provisions,"Adult Social Care, Health & Public Protection ",Debit,19.14,firstaid4less.co.uk,24/01/2017
Nottinghamshire County Council,Provisions,"Adult Social Care, Health & Public Protection ",Debit,95.88,www.crosbys.co.uk,24/01/2017
Nottinghamshire County Council,Provisions,"Adult Social Care, Health & Public Protection ",Debit,62.95,cmpcareshop,24/01/2017
Nottinghamshire County Council,Provisions,"Children, Families & Cultural Services",Debit,26.30,iceland,12/01/2017
Nottinghamshire County Council,Clothing/Shoes/Uniforms,"Children, Families & Cultural Services",Debit,5.00,tesco stores 5437,12/01/2017
Nottinghamshire County Council,Provisions,"Children, Families & Cultural Services",Debit,10.20,tesco stores 5437,12/01/2017
Nottinghamshire County Council,Personal Needs,"Children, Families & Cultural Services",Debit,27.70,king  miller,01/03/2017
Nottinghamshire County Council,Provisions,"Children, Families & Cultural Services",Debit,113.02,aldi,13/02/2017
Nottinghamshire County Council,Personal Needs,"Children, Families & Cultural Services",Debit,3.39,aldi,10/02/2017
Nottinghamshire County Council,Provisions,"Children, Families & Cultural Services",Debit,23.40,aldi,10/02/2017
Nottinghamshire County Council,Provisions,"Children, Families & Cultural Services",Debit,10.65,tesco stores 5281,25/03/2017
Nottinghamshire County Council,Provisions,"Children, Families & Cultural Services",Debit,45.67,tesco stores 5437,17/03/2017
Nottinghamshire County Council,Provisions,"Children, Families & Cultural Services",Debit,40.12,aldi,10/03/2017
Nottinghamshire County Council,Grounds Maintenance,"Children, Families & Cultural Services",Debit,16.95,b  m retail,10/03/2017
Nottinghamshire County Council,Office / General Equipment,"Children, Families & Cultural Services",Debit,67.42,sensetoys limited,16/03/2017
Nottinghamshire County Council,Office / General Equipment,"Children, Families & Cultural Services",Debit,66.00,back in action,14/03/2017
Nottinghamshire County Council,Office / General Equipment,"Children, Families & Cultural Services",Debit,17.90,amazon uk retail,28/02/2017
Nottinghamshire County Council,Office / General Equipment,"Children, Families & Cultural Services",Debit,14.50,www.johnlewis.com,28/02/2017
Nottinghamshire County Council,Office / General Equipment,"Children, Families & Cultural Services",Debit,17.90,amazon uk retail amazon.,28/02/2017
Nottinghamshire County Council,Office / General Equipment,"Children, Families & Cultural Services",Debit,22.99,amazon uk marketplace,27/02/2017
Nottinghamshire County Council,Office / General Equipment,"Children, Families & Cultural Services",Debit,22.38,amazon uk marketplace,27/02/2017
Nottinghamshire County Council,Office / General Equipment,"Children, Families & Cultural Services",Debit,56.32,www.tts-groups.co.uk,27/02/2017
Nottinghamshire County Council,Office / General Equipment,"Children, Families & Cultural Services",Debit,360.92,www.tts-groups.co.uk,27/02/2017
Nottinghamshire County Council,Office / General Equipment,"Children, Families & Cultural Services",Debit,67.80,www.helpkidzlearn.com,27/02/2017
Nottinghamshire County Council,Office / General Equipment,"Children, Families & Cultural Services",Debit,76.95,www.learningspaceuk.co,27/02/2017
Nottinghamshire County Council,Office / General Equipment,"Children, Families & Cultural Services",Debit,22.99,amazon uk marketplace,27/02/2017
Nottinghamshire County Council,Office / General Equipment,"Children, Families & Cultural Services",Debit,38.55,amazon uk marketplace,05/02/2017
Nottinghamshire County Council,Office / General Equipment,"Children, Families & Cultural Services",Debit,100.00,ucl - fso,03/02/2017
Nottinghamshire County Council,Office / General Equipment,"Children, Families & Cultural Services",Debit,1.65,amazon uk marketplace,02/02/2017
Nottinghamshire County Council,Office / General Equipment,"Children, Families & Cultural Services",Debit,22.30,amazon svcs europesar,02/02/2017
Nottinghamshire County Council,Office / General Equipment,"Children, Families & Cultural Services",Debit,154.67,posturite (uk) ltd,13/01/2017
Nottinghamshire County Council,Office / General Equipment,"Children, Families & Cultural Services",Debit,343.20,www.officefurnitureonl,11/01/2017
Nottinghamshire County Council,Office / General Equipment,"Children, Families & Cultural Services",Credit ,-125.90,www.posturite.co.uk,09/01/2017
Nottinghamshire County Council,Clients - H & S Equipt,"Children, Families & Cultural Services",Debit,3.77,tesco stores (5378),25/01/2017
Nottinghamshire County Council,Clients - H & S Equipt,"Children, Families & Cultural Services",Debit,2.98,tesco stores 5437,24/01/2017
Nottinghamshire County Council,Clients - H & S Equipt,"Children, Families & Cultural Services",Debit,1.35,w m morrisons cafe,24/01/2017
Nottinghamshire County Council,Clients - H & S Equipt,"Children, Families & Cultural Services",Debit,20.00,dvla driver online,17/03/2017
Nottinghamshire County Council,Clients - H & S Equipt,"Children, Families & Cultural Services",Debit,33.94,www.argos.co.uk,17/03/2017
Nottinghamshire County Council,Activities & Support,"Children, Families & Cultural Services",Debit,2.99,post office shop,02/03/2017
Nottinghamshire County Council,Activities & Support,"Children, Families & Cultural Services",Debit,37.50,post office shop,02/03/2017
Nottinghamshire County Council,Activities & Support,"Children, Families & Cultural Services",Debit,21.10,amazon uk retail amazon.,16/02/2017
Nottinghamshire County Council,Activities & Support,"Children, Families & Cultural Services",Debit,14.68,amazon uk marketplace,16/02/2017
Nottinghamshire County Council,Provisions,"Children, Families & Cultural Services",Debit,4.17,mcdonalds,27/02/2017
Nottinghamshire County Council,Provisions,"Children, Families & Cultural Services",Debit,9.50,primark 642,22/02/2017
Nottinghamshire County Council,Provisions,"Children, Families & Cultural Services",Credit ,-5.00,hmcourts-service.g,23/02/2017
Nottinghamshire County Council,Provisions,"Children, Families & Cultural Services",Debit,5.45,bargain booze,23/02/2017
Nottinghamshire County Council,Provisions,"Children, Families & Cultural Services",Debit,28.05,next 0847 sheffield me,22/02/2017
Nottinghamshire County Council,Provisions,"Children, Families & Cultural Services",Debit,25.40,frankie  bennys 5182,22/02/2017
Nottinghamshire County Council,Provisions,"Children, Families & Cultural Services",Debit,20.00,i jump trampoline park,20/02/2017
Nottinghamshire County Council,Provisions,"Children, Families & Cultural Services",Debit,5.66,bargain booze,19/02/2017
Nottinghamshire County Council,Provisions,"Children, Families & Cultural Services",Debit,20.00,hmcourts-service.g,14/02/2017
Nottinghamshire County Council,Provisions,"Children, Families & Cultural Services",Debit,24.00,megazone,13/02/2017
Nottinghamshire County Council,Provisions,"Children, Families & Cultural Services",Debit,139.00,tesco direct,08/02/2017
Nottinghamshire County Council,Provisions,"Children, Families & Cultural Services",Credit ,-14.79,amazon uk marketplace,03/02/2017
Nottinghamshire County Council,Personal Needs,"Children, Families & Cultural Services",Debit,3.95,post office counter,01/02/2017
Nottinghamshire County Council,Provisions,"Children, Families & Cultural Services",Debit,62.32,aldi,16/01/2017
Nottinghamshire County Council,Provisions,"Children, Families & Cultural Services",Debit,83.06,aldi,23/01/2017
Nottinghamshire County Council,Office / General Equipment,"Children, Families & Cultural Services",Debit,35.50,sainsburys s/mkts,23/01/2017
Nottinghamshire County Council,Cleaning Materials,"Children, Families & Cultural Services",Debit,11.20,sainsburys s/mkts,16/01/2017
Nottinghamshire County Council,Provisions,"Children, Families & Cultural Services",Debit,16.55,sainsburys s/mkts,16/01/2017
Nottinghamshire County Council,Personal Needs,"Children, Families & Cultural Services",Credit ,-22.99,amazon uk marketplace,06/01/2017
Nottinghamshire County Council,Personal Needs,"Children, Families & Cultural Services",Debit,16.77,amazon uk marketplace,05/01/2017
Nottinghamshire County Council,Personal Needs,"Children, Families & Cultural Services",Debit,6.99,amazon uk marketplace,04/01/2017
Nottinghamshire County Council,Personal Needs,"Children, Families & Cultural Services",Debit,10.00,asda retail mansfield,04/01/2017
Nottinghamshire County Council,Cleaning Materials,"Children, Families & Cultural Services",Debit,10.20,asda superstore 04261,04/01/2017
Nottinghamshire County Council,Cleaning Materials,"Children, Families & Cultural Services",Debit,31.00,tesco stores 5437,29/03/2017
Nottinghamshire County Council,Personal Needs,"Children, Families & Cultural Services",Debit,20.00,hmcourts-service.g,29/03/2017
Nottinghamshire County Council,Provisions,"Children, Families & Cultural Services",Debit,42.80,springwater,28/03/2017
Nottinghamshire County Council,Provisions,"Children, Families & Cultural Services",Debit,11.00,tesco stores 2995,17/03/2017
Nottinghamshire County Council,Provisions,"Children, Families & Cultural Services",Debit,106.57,aldi,14/03/2017
Nottinghamshire County Council,Provisions,"Children, Families & Cultural Services",Debit,5.80,sainsburys s/mkts,14/03/2017
Nottinghamshire County Council,Personal Needs,"Children, Families & Cultural Services",Debit,20.00,i jump trampoline park,07/03/2017
Nottinghamshire County Council,Provisions,"Children, Families & Cultural Services",Debit,6.80,sainsburys s/mkts,07/03/2017
Nottinghamshire County Council,Office / General Equipment,"Children, Families & Cultural Services",Debit,21.99,halfords 0900,07/03/2017
Nottinghamshire County Council,Provisions,"Children, Families & Cultural Services",Debit,2.29,tesco stores 2995,06/03/2017
Nottinghamshire County Council,Cleaning Materials,"Children, Families & Cultural Services",Debit,2.60,tesco stores 2995,06/03/2017
Nottinghamshire County Council,Teaching Equipment,"Children, Families & Cultural Services",Debit,242.26,essential papers,03/03/2017
Nottinghamshire County Council,Teaching Equipment,"Children, Families & Cultural Services",Debit,9.99,amazon uk retail,31/03/2017
Nottinghamshire County Council,Teaching Equipment,"Children, Families & Cultural Services",Debit,174.00,www.childmentalhealthc,20/03/2017
Nottinghamshire County Council,Teaching Equipment,"Children, Families & Cultural Services",Debit,2.29,amazon uk marketplace,20/03/2017
Nottinghamshire County Council,Teaching Equipment,"Children, Families & Cultural Services",Debit,394.50,amazon uk retail,19/03/2017
Nottinghamshire County Council,Teaching Equipment,"Children, Families & Cultural Services",Debit,23.67,amazon uk retail amazon.,19/03/2017
Nottinghamshire County Council,Teaching Equipment,"Children, Families & Cultural Services",Debit,21.69,amazon uk marketplace,18/03/2017
Nottinghamshire County Council,Teaching Equipment,"Children, Families & Cultural Services",Debit,14.98,amazon uk marketplace,18/03/2017
Nottinghamshire County Council,Teaching Equipment,"Children, Families & Cultural Services",Debit,81.92,amazon uk retail amazon.,08/03/2017
Nottinghamshire County Council,Teaching Equipment,"Children, Families & Cultural Services",Debit,174.00,www.childmentalhealthc,09/03/2017
Nottinghamshire County Council,Teaching Equipment,"Children, Families & Cultural Services",Debit,6.29,amazon uk marketplace,08/03/2017
Nottinghamshire County Council,Teaching Equipment,"Children, Families & Cultural Services",Debit,111.68,amazon uk retail amazon.,06/03/2017
Nottinghamshire County Council,Teaching Equipment,"Children, Families & Cultural Services",Debit,45.92,amazon uk retail amazon.,06/03/2017
Nottinghamshire County Council,Teaching Equipment,"Children, Families & Cultural Services",Debit,341.70,paypal  loggerheadp,06/03/2017
Nottinghamshire County Council,Teaching Equipment,"Children, Families & Cultural Services",Debit,24.10,amazon uk marketplace,06/03/2017
Nottinghamshire County Council,Teaching Equipment,"Children, Families & Cultural Services",Debit,54.99,emotion works cic,03/03/2017
Nottinghamshire County Council,Teaching Equipment,"Children, Families & Cultural Services",Debit,54.75,amazon uk retail amazon.,05/03/2017
Nottinghamshire County Council,Teaching Equipment,"Children, Families & Cultural Services",Debit,20.00,eb  aet post 16 nation,03/03/2017
Nottinghamshire County Council,Teaching Equipment,"Children, Families & Cultural Services",Debit,1.98,amazon uk marketplace,26/01/2017
Nottinghamshire County Council,Teaching Equipment,"Children, Families & Cultural Services",Debit,8.50,amazon uk marketplace,17/01/2017
Nottinghamshire County Council,Teaching Equipment,"Children, Families & Cultural Services",Debit,13.47,amazon uk marketplace,17/01/2017
Nottinghamshire County Council,Teaching Equipment,"Children, Families & Cultural Services",Debit,46.70,the dyslexia shop ltd,16/01/2017
Nottinghamshire County Council,Teaching Equipment,"Children, Families & Cultural Services",Debit,26.72,amazon uk marketplace,10/02/2017
Nottinghamshire County Council,Provisions,"Children, Families & Cultural Services",Debit,21.99,mapperley footwear  spo,02/03/2017
Nottinghamshire County Council,Provisions,"Children, Families & Cultural Services",Debit,22.73,asda superstore,02/03/2017
Nottinghamshire County Council,Provisions,"Children, Families & Cultural Services",Debit,5.35,asda stores 4474,28/02/2017
Nottinghamshire County Council,Provisions,"Children, Families & Cultural Services",Debit,39.96,farmfoods- worksop,27/02/2017
Nottinghamshire County Council,Provisions,"Children, Families & Cultural Services",Debit,1.58,co-op group 011261,22/02/2017
Nottinghamshire County Council,Provisions,"Children, Families & Cultural Services",Debit,3.48,post office counter,21/02/2017
Nottinghamshire County Council,Provisions,"Children, Families & Cultural Services",Debit,14.67,co-op group 011261,21/02/2017
Nottinghamshire County Council,Provisions,"Children, Families & Cultural Services",Debit,8.50,co-op group 011261,17/02/2017
Nottinghamshire County Council,Provisions,"Children, Families & Cultural Services",Debit,4.99,misterton foodstre,10/02/2017
Nottinghamshire County Council,Provisions,"Children, Families & Cultural Services",Debit,"1,176.00",smart interiors (uk) l,09/02/2017
Nottinghamshire County Council,Provisions,"Children, Families & Cultural Services",Debit,43.72,wm morrison food.com,06/02/2017
Nottinghamshire County Council,Provisions,"Children, Families & Cultural Services",Debit,20.02,farmfoods- worksop,02/02/2017
Nottinghamshire County Council,Provisions,"Children, Families & Cultural Services",Debit,6.03,misterton foodstre,23/01/2017
Nottinghamshire County Council,Provisions,"Children, Families & Cultural Services",Debit,6.03,misterton foodstre,20/01/2017
Nottinghamshire County Council,Provisions,"Children, Families & Cultural Services",Debit,8.11,misterton foodstre,12/01/2017
Nottinghamshire County Council,Provisions,"Children, Families & Cultural Services",Debit,14.87,co-op group 011261,16/03/2017
Nottinghamshire County Council,Provisions,"Children, Families & Cultural Services",Debit,13.68,co-op group 011261,14/03/2017
Nottinghamshire County Council,Provisions,"Children, Families & Cultural Services",Debit,6.00,co-op group 011261,10/03/2017
Nottinghamshire County Council,Provisions,"Children, Families & Cultural Services",Debit,6.54,tesco store 3439,09/03/2017
Nottinghamshire County Council,Provisions,"Children, Families & Cultural Services",Debit,31.96,wickes,09/03/2017
Nottinghamshire County Council,Provisions,"Children, Families & Cultural Services",Debit,16.51,co-op group 011261,03/03/2017
Nottinghamshire County Council,Provisions,"Children, Families & Cultural Services",Debit,13.05,sainsburys s/mkts,30/03/2017
Nottinghamshire County Council,Provisions,"Children, Families & Cultural Services",Debit,47.45,www.dominos.co.uk,06/03/2017
Nottinghamshire County Council,Provisions,"Children, Families & Cultural Services",Debit,3.75,sainsburys s/mkts,27/01/2017
Nottinghamshire County Council,Provisions,"Children, Families & Cultural Services",Debit,3.84,post office counter,16/01/2017
Nottinghamshire County Council,Provisions,"Children, Families & Cultural Services",Debit,220.00,post office counter,16/01/2017
Nottinghamshire County Council,Provisions,"Children, Families & Cultural Services",Debit,17.55,sainsburys s/mkts,22/02/2017
Nottinghamshire County Council,Provisions,"Children, Families & Cultural Services",Debit,8.70,tesco stores 5329,16/02/2017
Nottinghamshire County Council,Provisions,"Children, Families & Cultural Services",Debit,23.97,www.dominos.co.uk,13/02/2017
Nottinghamshire County Council,Provisions,"Children, Families & Cultural Services",Debit,31.58,asda superstore 04261,28/02/2017
Nottinghamshire County Council,Provisions,"Children, Families & Cultural Services",Debit,30.00,asda superstore 04261,28/02/2017
Nottinghamshire County Council,Provisions,"Children, Families & Cultural Services",Debit,4.95,poundstretcher 715,24/02/2017
Nottinghamshire County Council,Provisions,"Children, Families & Cultural Services",Debit,7.68,the craft shop mansfie,24/02/2017
Nottinghamshire County Council,Provisions,"Children, Families & Cultural Services",Debit,8.94,aldi,24/02/2017
Nottinghamshire County Council,Provisions,"Children, Families & Cultural Services",Debit,23.05,sainsburys s/mkts,24/02/2017
Nottinghamshire County Council,Provisions,"Children, Families & Cultural Services",Debit,25.00,tesco stores 5437,23/02/2017
Nottinghamshire County Council,Provisions,"Children, Families & Cultural Services",Debit,5.00,wilko retail limit,22/02/2017
Nottinghamshire County Council,Provisions,"Children, Families & Cultural Services",Debit,13.00,tesco stores 5437,21/02/2017
Nottinghamshire County Council,Provisions,"Children, Families & Cultural Services",Debit,25.70,tesco stores 5437,21/02/2017
Nottinghamshire County Council,Provisions,"Children, Families & Cultural Services",Debit,32.27,tesco stores 5437,21/02/2017
Nottinghamshire County Council,Provisions,"Children, Families & Cultural Services",Debit,23.37,tesco stores 5437,16/02/2017
Nottinghamshire County Council,Provisions,"Children, Families & Cultural Services",Debit,17.53,tesco stores 5437,14/02/2017
Nottinghamshire County Council,Provisions,"Children, Families & Cultural Services",Debit,10.72,asda store ston in as,07/02/2017
Nottinghamshire County Council,Provisions,"Children, Families & Cultural Services",Debit,27.59,asda store ston in as,07/02/2017
Nottinghamshire County Council,Provisions,"Children, Families & Cultural Services",Debit,3.38,b  m retail,03/02/2017
Nottinghamshire County Council,Provisions,"Children, Families & Cultural Services",Debit,5.10,fcc electrical whs ltd,02/02/2017
Nottinghamshire County Council,Provisions,"Children, Families & Cultural Services",Debit,31.11,asda superstore 04261,31/01/2017
Nottinghamshire County Council,Provisions,"Children, Families & Cultural Services",Debit,34.96,asda superstore 04261,23/01/2017
Nottinghamshire County Council,Provisions,"Children, Families & Cultural Services",Debit,29.46,bm retail ltd,17/01/2017
Nottinghamshire County Council,Provisions,"Children, Families & Cultural Services",Debit,11.00,tesco stores 5437,17/01/2017
Nottinghamshire County Council,Provisions,"Children, Families & Cultural Services",Debit,13.97,asda superstore 04261,16/01/2017
Nottinghamshire County Council,Provisions,"Children, Families & Cultural Services",Debit,23.86,asda superstore 04261,09/01/2017
Nottinghamshire County Council,Provisions,"Children, Families & Cultural Services",Debit,3.40,primark,21/03/2017
Nottinghamshire County Council,Provisions,"Children, Families & Cultural Services",Debit,3.00,tesco stores 5437,21/03/2017
Nottinghamshire County Council,Provisions,"Children, Families & Cultural Services",Debit,5.50,tesco stores 5437,21/03/2017
Nottinghamshire County Council,Provisions,"Children, Families & Cultural Services",Debit,5.29,tesco stores 5437,17/03/2017
Nottinghamshire County Council,Provisions,"Children, Families & Cultural Services",Debit,25.25,tesco stores 5437,17/03/2017
Nottinghamshire County Council,Provisions,"Children, Families & Cultural Services",Debit,6.48,aldi,14/03/2017
Nottinghamshire County Council,Provisions,"Children, Families & Cultural Services",Debit,6.00,the works,14/03/2017
Nottinghamshire County Council,Provisions,"Children, Families & Cultural Services",Debit,2.00,poundland,14/03/2017
Nottinghamshire County Council,Provisions,"Children, Families & Cultural Services",Debit,14.95,b  m retail,14/03/2017
Nottinghamshire County Council,Provisions,"Children, Families & Cultural Services",Debit,25.37,wm morrisons plc,13/03/2017
Nottinghamshire County Council,Provisions,"Children, Families & Cultural Services",Debit,5.40,tesco stores 5437,10/03/2017
Nottinghamshire County Council,Provisions,"Children, Families & Cultural Services",Debit,1.05,tesco stores 5437,08/03/2017
Nottinghamshire County Council,Provisions,"Children, Families & Cultural Services",Debit,6.00,poundland,07/03/2017
Nottinghamshire County Council,Office / General Equipment,Place,Debit,10.98,wh smith,23/03/2017
Nottinghamshire County Council,Office / General Equipment,Place,Debit,7.99,argos ltd,16/03/2017
Nottinghamshire County Council,Building Maintenance,Place,Debit,122.40,phs group,16/03/2017
Nottinghamshire County Council,Postages,Place,Debit,3.35,the post office,14/03/2017
Nottinghamshire County Council,Stationery,Place,Debit,28.04,wilko retail limit,03/03/2017
Nottinghamshire County Council,Stationery,Place,Debit,4.04,wh smith,03/03/2017
Nottinghamshire County Council,Cleaning Materials,Place,Debit,3.05,bm retail ltd,25/01/2017
Nottinghamshire County Council,Building Maintenance,Place,Debit,2.75,amazon uk marketplace,11/01/2017
Nottinghamshire County Council,Activities & Support,"Children, Families & Cultural Services",Debit,7.30,asda superstore 04030,25/01/2017
Nottinghamshire County Council,Activities & Support,"Children, Families & Cultural Services",Debit,22.41,asda superstore,23/01/2017
Nottinghamshire County Council,Activities & Support,"Children, Families & Cultural Services",Debit,60.00,eb  mental health firs,07/02/2017
Nottinghamshire County Council,Activities & Support,"Children, Families & Cultural Services",Debit,20.28,amazon uk retail,25/03/2017
Nottinghamshire County Council,Activities & Support,"Children, Families & Cultural Services",Debit,41.88,sainsburys s/mkt,21/03/2017
Nottinghamshire County Council,Activities & Support,"Children, Families & Cultural Services",Debit,29.99,amazon uk retail amazon.,17/03/2017
Nottinghamshire County Council,Activities & Support,"Children, Families & Cultural Services",Debit,4.59,amazon uk marketplace,11/03/2017
Nottinghamshire County Council,Provisions,"Children, Families & Cultural Services",Debit,1.00,wm morrisons plc,16/03/2017
Nottinghamshire County Council,Provisions,"Children, Families & Cultural Services",Debit,11.34,heron foods ltd,14/03/2017
Nottinghamshire County Council,Provisions,"Children, Families & Cultural Services",Debit,16.00,poundland,07/03/2017
Nottinghamshire County Council,Provisions,"Children, Families & Cultural Services",Debit,2.00,primark,01/03/2017
Nottinghamshire County Council,Provisions,"Children, Families & Cultural Services",Debit,3.84,tesco stores 5437,28/02/2017
Nottinghamshire County Council,Provisions,"Children, Families & Cultural Services",Debit,3.45,wm morrisons plc,28/02/2017
Nottinghamshire County Council,Provisions,"Children, Families & Cultural Services",Debit,2.78,heron foods ltd,21/02/2017
Nottinghamshire County Council,Provisions,"Children, Families & Cultural Services",Debit,4.05,poundworld retail,21/02/2017
Nottinghamshire County Council,Provisions,"Children, Families & Cultural Services",Debit,9.97,farmfoods- woodhou,14/02/2017
Nottinghamshire County Council,Provisions,"Children, Families & Cultural Services",Debit,6.78,farmfoods- woodhou,02/02/2017
Nottinghamshire County Council,Provisions,"Children, Families & Cultural Services",Debit,4.36,tesco stores 5437,31/01/2017
Nottinghamshire County Council,Provisions,"Children, Families & Cultural Services",Debit,6.35,wm morrisons plc,24/01/2017
Nottinghamshire County Council,Provisions,"Children, Families & Cultural Services",Debit,9.05,poundland,24/01/2017
Nottinghamshire County Council,Provisions,"Children, Families & Cultural Services",Debit,18.61,tesco stores 5437,24/01/2017
Nottinghamshire County Council,Provisions,"Children, Families & Cultural Services",Debit,7.50,wilko retail limit,24/01/2017
Nottinghamshire County Council,Provisions,"Children, Families & Cultural Services",Debit,4.97,b  m retail,17/01/2017
Nottinghamshire County Council,Provisions,"Children, Families & Cultural Services",Debit,8.29,aldi,17/01/2017
Nottinghamshire County Council,Provisions,"Children, Families & Cultural Services",Debit,2.68,tesco stores 5437,16/01/2017
Nottinghamshire County Council,Provisions,"Children, Families & Cultural Services",Debit,1.23,wm morrisons plc,10/01/2017
Nottinghamshire County Council,Subscriptions,"Children, Families & Cultural Services",Debit,12.00,mountain training,02/02/2017
Nottinghamshire County Council,Subscriptions,"Children, Families & Cultural Services",Debit,100.00,mountain training,09/01/2017
Nottinghamshire County Council,Subscriptions,"Children, Families & Cultural Services",Debit,140.00,mountain training,09/01/2017
Nottinghamshire County Council,Subscriptions,"Children, Families & Cultural Services",Debit,20.00,tahdah staff fee,28/02/2017
Nottinghamshire County Council,Subscriptions,"Children, Families & Cultural Services",Debit,18.00,mountain training,24/02/2017
Nottinghamshire County Council,Staff Training,"Children, Families & Cultural Services",Debit,50.00,mountain training,15/02/2017
Nottinghamshire County Council,Office / General Equipment,"Children, Families & Cultural Services",Debit,22.13,wm morrison 023,28/03/2017
Nottinghamshire County Council,Subscriptions,"Children, Families & Cultural Services",Debit,90.00,ami,23/03/2017
Nottinghamshire County Council,Office / General Equipment,"Children, Families & Cultural Services",Debit,6.00,mountain training,27/03/2017
Nottinghamshire County Council,Minor Works,"Children, Families & Cultural Services",Debit,53.55,hitch n hike,03/03/2017
Nottinghamshire County Council,Activities & Support,"Children, Families & Cultural Services",Debit,27.35,w m morrisons,13/02/2017
Nottinghamshire County Council,Provisions,"Children, Families & Cultural Services",Debit,11.85,aldi,06/01/2017
Nottinghamshire County Council,Personal Needs,"Children, Families & Cultural Services",Debit,4.26,mega value,31/03/2017
Nottinghamshire County Council,Personal Needs,"Children, Families & Cultural Services",Debit,1.10,aldi,31/03/2017
Nottinghamshire County Council,Personal Needs,"Children, Families & Cultural Services",Debit,55.99,sportsdirect 292,31/03/2017
Nottinghamshire County Council,Provisions,"Children, Families & Cultural Services",Debit,25.71,aldi,31/03/2017
Nottinghamshire County Council,Provisions,"Children, Families & Cultural Services",Debit,8.67,aldi,31/03/2017
Nottinghamshire County Council,Personal Needs,"Children, Families & Cultural Services",Debit,18.20,kostas fishbar ltd,24/03/2017
Nottinghamshire County Council,Provisions,"Children, Families & Cultural Services",Debit,28.35,aldi,24/03/2017
Nottinghamshire County Council,Provisions,"Children, Families & Cultural Services",Debit,81.73,aldi,13/03/2017
Nottinghamshire County Council,Office / General Equipment,"Adult Social Care, Health & Public Protection ",Debit,30.45,premier property,23/03/2017
Nottinghamshire County Council,Fuel - Diesel,"Adult Social Care, Health & Public Protection ",Debit,49.69,selston service uk ltd,20/03/2017
Nottinghamshire County Council,Office / General Equipment,"Adult Social Care, Health & Public Protection ",Debit,21.00,timpson ltd,18/03/2017
Nottinghamshire County Council,Provisions,"Adult Social Care, Health & Public Protection ",Debit,16.29,lidl uk,10/03/2017
Nottinghamshire County Council,Office / General Equipment,"Adult Social Care, Health & Public Protection ",Debit,57.00,timpson ltd,25/01/2017
Nottinghamshire County Council,Provisions,"Adult Social Care, Health & Public Protection ",Debit,12.01,wm morrison 023,17/01/2017
Nottinghamshire County Council,Office / General Equipment,"Adult Social Care, Health & Public Protection ",Debit,3.89,screwfix direct,17/01/2017
Nottinghamshire County Council,Provisions,"Adult Social Care, Health & Public Protection ",Debit,10.85,asda superstore 04261,10/01/2017
Nottinghamshire County Council,Fuel - Diesel,"Adult Social Care, Health & Public Protection ",Debit,56.00,southwell service,09/01/2017
Nottinghamshire County Council,Fuel - Diesel,"Adult Social Care, Health & Public Protection ",Debit,32.88,southwell service,04/01/2017
Nottinghamshire County Council,Provisions,"Children, Families & Cultural Services",Debit,14.65,sainsburys s/mkts,30/01/2017
Nottinghamshire County Council,Provisions,"Children, Families & Cultural Services",Debit,8.09,sainsburys s/mkts,25/01/2017
Nottinghamshire County Council,Provisions,"Children, Families & Cultural Services",Debit,30.04,farmfoods- carlton,23/01/2017
Nottinghamshire County Council,Provisions,"Children, Families & Cultural Services",Debit,17.40,sainsburys s/mkts,18/01/2017
Nottinghamshire County Council,Provisions,"Children, Families & Cultural Services",Credit ,-7.02,amazon uk marketplace,17/01/2017
Nottinghamshire County Council,Provisions,"Children, Families & Cultural Services",Debit,12.02,amazon uk marketplace,13/01/2017
Nottinghamshire County Council,Provisions,"Children, Families & Cultural Services",Debit,136.25,booker limited nottingha,15/01/2017
Nottinghamshire County Council,Provisions,"Children, Families & Cultural Services",Debit,31.63,baker ross ltd,13/01/2017
Nottinghamshire County Council,Provisions,"Children, Families & Cultural Services",Debit,7.02,amazon uk marketplace,12/01/2017
Nottinghamshire County Council,Provisions,"Children, Families & Cultural Services",Debit,7.52,sportsdirect 195,11/01/2017
Nottinghamshire County Council,Provisions,"Children, Families & Cultural Services",Debit,22.00,sainsburys s/mkts,10/01/2017
Nottinghamshire County Council,Provisions,"Children, Families & Cultural Services",Debit,18.01,farmfoods- carlton,09/01/2017
Nottinghamshire County Council,Provisions,"Children, Families & Cultural Services",Debit,6.01,sportsdirect 195,01/03/2017
Nottinghamshire County Council,Provisions,"Children, Families & Cultural Services",Debit,17.37,wm morrison 067,28/02/2017
Nottinghamshire County Council,Provisions,"Children, Families & Cultural Services",Debit,57.62,booker limited nottingha,28/02/2017
Nottinghamshire County Council,Provisions,"Children, Families & Cultural Services",Debit,14.37,farmfoods- carlton,27/02/2017
Nottinghamshire County Council,Provisions,"Children, Families & Cultural Services",Debit,29.88,www.homebargins.co.uk,24/02/2017
Nottinghamshire County Council,Provisions,"Children, Families & Cultural Services",Debit,15.41,aldi,22/02/2017
Nottinghamshire County Council,Provisions,"Children, Families & Cultural Services",Debit,9.80,sainsburys s/mkts,21/02/2017
Nottinghamshire County Council,Provisions,"Children, Families & Cultural Services",Debit,32.25,wm morrison 067,13/02/2017
Nottinghamshire County Council,Provisions,"Children, Families & Cultural Services",Debit,22.48,asda superstore,07/02/2017
